﻿Department,Account,Date,Amount,Fund,Description,VendorPayee
City Clerk,Other profess & tech services,01/04/2021,58.01,General Fund,12/20 MM CCO CC Fees,Bank of America EFT
Community Resources,Contractor services,01/04/2021,476.80,Open Space Fund,2020 Utility locates,UTILITY NOTIFICATION CTR OF COLORADO
Community Resources,Contractor services,01/04/2021,860.00,General Fund,maintenance fee,POO FREE PARKS
Community Resources,Other profess & tech services,01/04/2021,260.00,General Fund,maintenance fee,POO FREE PARKS
Community Resources,Other profess & tech services,01/04/2021,1203.51,General Fund,12/20 MM RTOL CC Fees,Bank of America EFT
Community Resources,Other profess & tech services,01/04/2021,439.37,Golf Course Enterprise Fund,12/20 R&F HME ST CC Fees,Auth Net/BOA EFT
Community Resources,Other profess & tech services,01/04/2021,865.75,Golf Course Enterprise Fund,12/20 R&F FOXHW CC Fees,Auth Net/BOA EFT
Community Resources,Other profess & tech services,01/04/2021,538.66,Golf Course Enterprise Fund,12/20 R&F HMEST CC Fees,Bank of America EFT
Community Resources,Other profess & tech services,01/04/2021,830.92,Golf Course Enterprise Fund,12/20 R&F FOXHW CC Fees,Bank of America EFT
Community Resources,Other profess & tech services,01/04/2021,16.45,General Fund,12/20 R&F WRC CC Fees,Bank of America EFT
Community Resources,Other profess & tech services,01/04/2021,314.56,General Fund,12/20 R&F CARM CC Fees,Bank of America EFT
Community Resources,Other profess & tech services,01/04/2021,466.30,General Fund,12/20 R&F GMRC CC Fees,Bank of America EFT
Community Resources,Other profess & tech services,01/04/2021,66.58,General Fund,12/20 R&F CC CCC Fees,Bank of America EFT
Community Resources,Other profess & tech services,01/04/2021,97.28,General Fund,12/20 R&F LINK CC Fees,Bank of America EFT
Community Resources,Other profess & tech services,01/04/2021,0.00,General Fund,12/20 R&F CWRC CC Fees,Bank of America EFT
Community Resources,Other profess & tech services,01/04/2021,2.10,General Fund,12/20 R&F CR CC Fees,Bank of America EFT
Community Resources,Other profess & tech services,01/04/2021,595.52,Open Space Fund,12/20 R&F BCLP CC Fees,Bank of America EFT
Community Resources,Other profess & tech services,01/04/2021,13.29,"Heritage, Culture & Arts Fund",12/20 R&F LCC CC Fees,Bank of America EFT
Community Resources,Other profess & tech services,01/04/2021,195.62,"Heritage, Culture & Arts Fund",12/20 R&F HLBP CC Fees,Bank of America EFT
Community Resources,Other profess & tech services,01/04/2021,120.49,"Heritage, Culture & Arts Fund",12/20 R&F WH CC Fees,Bank of America EFT
Community Resources,Other profess & tech services,01/04/2021,0.18,"Heritage, Culture & Arts Fund",12/20 R&F LCC SW CC Fees,Bank of America EFT
Municipal Court,Other profess & tech services,01/04/2021,472.34,General Fund,12/20 MC CC Fees,Bank of America EFT
Municipal Court,Other profess & tech services,01/04/2021,32.74,General Fund,12/20 MC Bond CC Fees,Bank of America EFT
Municipal Court,Other profess & tech services,01/04/2021,805.43,General Fund,12/20 MC Online Ct CC Fees,Bank of America EFT
Municipal Court,Other profess & tech services,01/04/2021,5.00,General Fund,12/20 Muni Ct ECheck Fee,Authorize.Net EFT
Municipal Court,Other profess & tech services,01/04/2021,75.10,General Fund,12/20 Muni Ct CC Trans Fee,Authorize.Net EFT
Municipal Court,Other profess & tech services,01/04/2021,3.10,General Fund,12/20 Muni Ct CC Batch Fee,Authorize.Net EFT
Municipal Court,Other profess & tech services,01/04/2021,25.00,General Fund,01/21 Muni Ct Gateway Fee,Authorize.Net EFT
Municipal Court,Promotional expense,01/04/2021,5.99,General Fund,2020 Employee Recog ET,LAKEWOOD MUNICIPAL COURT
Police,Meal expense,01/04/2021,114.40,General Fund,2020 - promo (C Bates),SAMS CLUB
Police,Other profess & tech services,01/04/2021,37.50,General Fund,2020 - WEAPS INSP REIMB,"ALDEN, WILLIAM ALAN"
Police,Other profess & tech services,01/04/2021,669561.00,General Fund,1ST QTR - JEFFCOM PER IGA,JEFFERSON COUNTY COMMUNICATIONS CENTER
Police,Other profess & tech services,01/04/2021,110.45,General Fund,12/20 MM PD Records CC Fees,Bank of America EFT
Public Works,Construc Costs-Sewer Lines,01/04/2021,236.91,Sewer Enterprise Fund,Decem2020 Water and Sewer UNCC,UTILITY NOTIFICATION CTR OF COLORADO
Public Works,Construc Costs-Water Lines,01/04/2021,238.40,Water Enterprise Fund,Decem2020 Water and Sewer UNCC,UTILITY NOTIFICATION CTR OF COLORADO
Public Works,Electricity,01/04/2021,37.14,Sewer Enterprise Fund,2020Electricity Sanitation Di,XCEL ENERGY
Public Works,Other profess & tech services,01/04/2021,220.24,Water Enterprise Fund,12/20 WSS Online CC Fees,Bank of America EFT
Public Works,Other profess & tech services,01/04/2021,1798.60,Sewer Enterprise Fund,12/20 WSS Online CC Fees,Bank of America EFT
Public Works,Other profess & tech services,01/04/2021,1651.78,Stormwater Enterprise Fund,12/20 WSS Online CC Fees,Bank of America EFT
Public Works,Other profess & tech services,01/04/2021,7476.93,General Fund,12/20 MM PW Online CC Fees,Bank of America EFT
Public Works,Other profess & tech services,01/04/2021,747.34,General Fund,12/20 MM PW CC Fees,Bank of America EFT
Public Works,Other services,01/04/2021,634.74,General Fund,2020 RTL Transmissions,UTILITY NOTIFICATION CTR OF COLORADO
Public Works,Travel - auto expense,01/04/2021,115.00,General Fund,2020 Mileage Reimbursement,"KAMMERMEIER, KYLE ANTHONY"
Community Resources,Other profess & tech services,01/05/2021,48.27,Golf Course Enterprise Fund,12/20 R&F HME ST CC Fees,American Express EFT
Community Resources,Other profess & tech services,01/05/2021,50.38,Golf Course Enterprise Fund,12/20 R&F FOXHW CC Fees,American Express EFT
Community Resources,Water,01/05/2021,11.74,Open Space Fund,10060 W LEHIGH AVE,LAKEHURST WATER
Community Resources,Water,01/05/2021,9.50,Open Space Fund,4950 S. JELLISON WY,LAKEHURST WATER
Planning,Other profess & tech services,01/05/2021,1000.00,Grants Fund (Oper & Capital),COVID CDBG 0064 Whichard,DENVER WEST INN
Police,Contractor services,01/05/2021,117939.73,General Fund,ANNUAL DEBT ASSESSMENT -  2021,JEFFERSON COUNTY TREASURER
Public Works,Electricity-traffic signals,01/05/2021,460.33,General Fund,2020 Electricity,XCEL ENERGY
Public Works,Electricity-traffic signals,01/05/2021,70.92,General Fund,2020 electricity,XCEL ENERGY
City Clerk,Other profess & tech services,01/06/2021,15.00,General Fund,12/20 MM  CCO CC FEES,Plug & Pay Technologies EFT
Community Resources,Other profess & tech services,01/06/2021,15.00,Open Space Fund,12/20 MM  BCLP CC FEES,Plug & Pay Technologies EFT
Community Resources,Other profess & tech services,01/06/2021,15.00,General Fund,12/20 MM  CARM CC FEES,Plug & Pay Technologies EFT
Community Resources,Other profess & tech services,01/06/2021,15.00,General Fund,12/20 MM  CWRC CC FEES,Plug & Pay Technologies EFT
Community Resources,Other profess & tech services,01/06/2021,15.00,General Fund,12/20 MM  CCC CC FEES,Plug & Pay Technologies EFT
Community Resources,Other profess & tech services,01/06/2021,15.00,General Fund,12/20 MM  CR CC FEES,Plug & Pay Technologies EFT
Community Resources,Other profess & tech services,01/06/2021,15.00,"Heritage, Culture & Arts Fund",12/20 MM  LCC CC FEES,Plug & Pay Technologies EFT
Community Resources,Other profess & tech services,01/06/2021,15.00,Golf Course Enterprise Fund,12/20 MM  FOXHW CC FEES,Plug & Pay Technologies EFT
Community Resources,Other profess & tech services,01/06/2021,15.00,General Fund,12/20 MM  GMRC CC FEES,Plug & Pay Technologies EFT
Community Resources,Other profess & tech services,01/06/2021,15.00,"Heritage, Culture & Arts Fund",12/20 MM  LHC CC FEES,Plug & Pay Technologies EFT
Community Resources,Other profess & tech services,01/06/2021,15.00,Golf Course Enterprise Fund,12/20 MM  HMEST CC FEES,Plug & Pay Technologies EFT
Community Resources,Other profess & tech services,01/06/2021,15.00,General Fund,12/20 MM  LINK CC FEES,Plug & Pay Technologies EFT
Community Resources,Other profess & tech services,01/06/2021,15.00,General Fund,12/20 MM  RTOL CC FEES,Plug & Pay Technologies EFT
Community Resources,Other profess & tech services,01/06/2021,15.00,"Heritage, Culture & Arts Fund",12/20 MM  WH CC FEES,Plug & Pay Technologies EFT
Community Resources,Other profess & tech services,01/06/2021,15.00,General Fund,12/20 MM  WRC CC FEES,Plug & Pay Technologies EFT
Community Resources,Recreational supplies,01/06/2021,140.00,"Heritage, Culture & Arts Fund",2020 Kiln Repair,MARK'S KILN REPAIR
Community Resources,Rent - land & buildings,01/06/2021,600.00,Grants Fund (Oper & Capital),UCC December Rental,LAKEWOOD UNITED CHURCH OF CHRIST
Community Resources,Travel - auto expense,01/06/2021,82.11,Grants Fund (Oper & Capital),MILEAGE MENDOZA Nov and Dec,"MENDOZA, GERI ANN"
Police,Dues and memberships,01/06/2021,1750.00,General Fund,MEMBERSHIP DUES,INTERNATIONAL ASSOCIATION OF CHIEFS OF
Police,Other profess & tech services,01/06/2021,15.00,General Fund,12/20 MM  PDREC CC FEES,Plug & Pay Technologies EFT
Police,Other profess & tech services,01/06/2021,3135.00,General Fund,INSTRUCTOR - 2020-2 CRA,PHILIP J BACA
Police,Travel - other,01/06/2021,57.42,General Fund,Reimbursement for fuel and mea,"SIMPSON, DANIEL S"
Public Works,Other profess & tech services,01/06/2021,15.00,General Fund,12/20 MM  BP CC FEES,Plug & Pay Technologies EFT
City Manager,Redevelopment Costs Reimbursed,01/07/2021,1734.50,Economic Development Fund,LWA2BB 11/20,Belmar Hotel Accom Shbk 11/20
Community Resources,Other profess & tech services,01/07/2021,35.00,General Fund,TRAILS for R. Castleberry,COLORADO DEPARTMENT OF HUMAN SERVICES
Community Resources,Other profess & tech services,01/07/2021,29.90,"Heritage, Culture & Arts Fund",2020  Ticket Sales,ACCESSO SHOWARE
Community Resources,Travel - auto expense,01/07/2021,69.69,Grants Fund (Oper & Capital),Mileage Tucker Dec 2020,"TUCKER, SUSAN S"
Community Resources,Travel - auto expense,01/07/2021,244.04,Grants Fund (Oper & Capital),Mileage Sluzalis Nov-Dec 2020,"SLUZALIS, TRACY RENEE"
Police,Other profess & tech services,01/07/2021,37.50,General Fund,WEAP INSP REIMB,"OSCKEL, PAUL JAMES"
Public Works,Electricity-traffic signals,01/07/2021,2503.05,General Fund,2020 electricity,XCEL ENERGY
Public Works,Electricity-traffic signals,01/07/2021,297.55,General Fund,2020 electricity,XCEL ENERGY
Community Resources,Consulting,01/08/2021,3000.00,Open Space Fund,ROONEY VALLEY LAND VALUATION,WEST TERRA INC
Community Resources,Other profess & tech services,01/08/2021,2106.35,General Fund,Head Start Food Services,MICHAEL'S OF DENVER
Community Resources,Other profess & tech services,01/08/2021,842.54,General Fund,Head Start Food Services,MICHAEL'S OF DENVER
Information Technology,Computer software & supplies,01/08/2021,1000.00,General Fund,ArcGIS DT Basic w/Ext SU Prim,ESRI INC
Information Technology,Computer software & supplies,01/08/2021,1800.00,General Fund,ArcGIS DT Basic w/Ext SU Sec,ESRI INC
Information Technology,Computer software & supplies,01/08/2021,10000.00,General Fund,ArcGIS Online Creator,ESRI INC
Information Technology,Computer software & supplies,01/08/2021,10383.56,General Fund,ArcGIS Online Creator,ESRI INC
Information Technology,Computer software & supplies,01/08/2021,1869.04,General Fund,ArcGIS Developer Professional,ESRI INC
Information Technology,Computer software & supplies,01/08/2021,4300.00,General Fund,ArcGIS Developer Enterprise,ESRI INC
Information Technology,Computer software & supplies,01/08/2021,10000.00,General Fund,ArcGIS Enterprise Standard,ESRI INC
Information Technology,Computer software & supplies,01/08/2021,3000.00,General Fund,ArcGIS Adv Con Use Primary,ESRI INC
Information Technology,Computer software & supplies,01/08/2021,3600.00,General Fund,ArcGIS Adv Con Use Secondary,ESRI INC
Information Technology,Computer software & supplies,01/08/2021,700.00,General Fund,ArcGIS Bas Con Use Primary,ESRI INC
Information Technology,Computer software & supplies,01/08/2021,4500.00,General Fund,ArcGIS Bas Con Use Secondary,ESRI INC
Information Technology,Computer software & supplies,01/08/2021,500.00,General Fund,ArcGIS Spatial Analyst Primary,ESRI INC
Information Technology,Computer software & supplies,01/08/2021,500.00,General Fund,ArcGIS 3D Analyst Primary,ESRI INC
Municipal Court,Other profess & tech services,01/08/2021,960.95,General Fund,Alternative Legal Counsel per,GOLDEN LEGAL CLINIC
Municipal Court,Other profess & tech services,01/08/2021,218.79,General Fund,Alternative Legal Counsel per,GOLDEN LEGAL CLINIC
Municipal Court,Other profess & tech services,01/08/2021,11681.40,General Fund,Respresentation of Indigent,LAW OFFICE OF KEVIN C FLESCH LLC
Planning,Other profess & tech services,01/08/2021,150000.00,Grants Fund (Oper & Capital),Non-Congregate Shelter,JEFFERSON COUNTY-NON-CONGREGATE SHELTER
Planning,Other profess & tech services,01/08/2021,1680.00,Grants Fund (Oper & Capital),Jefferson County,JEFFERSON COUNTY HOUSING AUTHORITY
Police,Clothing & Uniforms,01/08/2021,75.63,General Fund,uniform reimbursement,"ALDERETE, ADRIAN L"
Police,Other profess & tech services,01/08/2021,4537.50,General Fund,2020-Security,DENVER METRO SECURITY UTC INC
Police,Other profess & tech services,01/08/2021,1521.54,General Fund,Dec Translation & Interpreting,1ST JUDICIAL DISTRICT ATTORNEY'S OFFICE
Police,Other profess & tech services,01/08/2021,612.50,General Fund,Dec 2020 Security,DENVER METRO SECURITY UTC INC
Public Works,Construc Costs-Streets/Roadway,01/08/2021,3339.00,Capital Improvement Fund,2020 Chevy Silverado 3500,JOHN ELWAY CHEVROLET
Public Works,Construc Costs-Streets/Roadway,01/08/2021,136.05,Capital Improvement Fund,Grade SX - Prod ID 5462,MARTIN MARIETTA MATERIALS
Public Works,Construc Costs-Streets/Roadway,01/08/2021,93.39,Capital Improvement Fund,Grade SX - Prod ID 5462,MARTIN MARIETTA MATERIALS
Public Works,Construc Costs-Streets/Roadway,01/08/2021,103.72,Capital Improvement Fund,Grade SX - Prod ID 5462,MARTIN MARIETTA MATERIALS
Public Works,Construc Costs-Streets/Roadway,01/08/2021,94.74,Capital Improvement Fund,Grade SX - Prod ID 5462,MARTIN MARIETTA MATERIALS
Public Works,Construc Costs-Streets/Roadway,01/08/2021,92.49,Capital Improvement Fund,Grade SX - Prod ID 5462,MARTIN MARIETTA MATERIALS
Public Works,Construc Costs-Streets/Roadway,01/08/2021,1628.07,Capital Improvement Fund,Grade SX - Prod ID 5462,MARTIN MARIETTA MATERIALS
Public Works,Motor Vehicles,01/08/2021,76018.00,Equipment Replacement Fund,2020 Chevy Silverado 3500,JOHN ELWAY CHEVROLET
Public Works,Repairs & maint-plant/system,01/08/2021,9595.00,General Fund,KEYper MX288 Complete,KEYPER SYSTEMS
Public Works,Repairs & maint-plant/system,01/08/2021,3300.00,General Fund,KEYper MX128 Add On,KEYPER SYSTEMS
Public Works,Repairs & maint-plant/system,01/08/2021,4795.00,General Fund,KEYper MX32 Complete,KEYPER SYSTEMS
Public Works,Repairs & maint-plant/system,01/08/2021,6595.00,General Fund,KEYper MX128 Complete,KEYPER SYSTEMS
Public Works,Repairs & maint-plant/system,01/08/2021,6595.00,General Fund,KEYper MX128 Add On,KEYPER SYSTEMS
Public Works,Repairs & maint-plant/system,01/08/2021,1800.00,General Fund,KEYper Installation & Training,KEYPER SYSTEMS
Public Works,Repairs & maint-plant/system,01/08/2021,843.12,General Fund,Shipping,KEYPER SYSTEMS
Public Works,Sanitation,01/08/2021,2589.57,Stormwater Enterprise Fund,Street Sweeping/Landfill,REPUBLIC SERVICES OF COLORADO
City Attorney,Books & Publications,01/11/2021,533.63,General Fund,2020 Nov Westlaw Charges,THOMSON WEST TCD
City Attorney,Books & Publications,01/11/2021,533.64,General Fund,2020 Nov Westlaw Charges,THOMSON WEST TCD
City Attorney,Office furn & equip-non cap,01/11/2021,598.90,General Fund,Card Stock Printer City Attorn,AMAZON.COM
City Attorney,Telecommunications,01/11/2021,43.23,General Fund,City Cell Phones,ATT BILL PAYMENT
City Clerk,Consulting,01/11/2021,38.50,General Fund,CBI Civilian Fingerprint Proce,CO DORA LICENSING
City Clerk,Contractor services,01/11/2021,25.00,General Fund,SAVE Program,BURLINGTON FINANCE CENTER
City Clerk,Dues and memberships,01/11/2021,136.00,General Fund,CMCA Membership Renewal - City,COLORADO MUNICIPAL CLERKS
City Clerk,Dues and memberships,01/11/2021,136.00,General Fund,CMCA Membership Renewal - Depu,COLORADO MUNICIPAL CLERKS
City Clerk,Dues and memberships,01/11/2021,130.00,General Fund,ARMA Membership  - Records Man,ARMA INTERNATIONAL
City Clerk,Legal publications,01/11/2021,652.78,General Fund,2020 Legal Publication ordinan,DENVER POST ADV-DAILY DE
City Clerk,Office supplies,01/11/2021,23.07,General Fund,Office Supplies - 2021 calenda,STAPLES
City Clerk,Office supplies,01/11/2021,73.15,General Fund,"Office Supplies - tape, keyboa",STAPLES
City Clerk,Office supplies,01/11/2021,88.00,General Fund,Office Supplies - coffee machi,ROCKY MOUNTAIN BOTTLED WA
City Clerk,Office supplies,01/11/2021,21.33,General Fund,Office Supplies - 2021 calenda,OFFICEMAX/OFFICEDEPT#6874
City Clerk,Office supplies,01/11/2021,29.31,General Fund,Office Supplies - envelopes,OFFICE DEPOT #1080
City Clerk,Office supplies,01/11/2021,-23.07,General Fund,Credit for returned 2021 calen,STAPLES
City Clerk,Telecommunications,01/11/2021,145.09,General Fund,City Cell Phones,ATT BILL PAYMENT
City Manager,Books & Publications,01/11/2021,8.00,Economic Development Fund,Business Den Subscription,BUSINESSDEN LLC
City Manager,Books & Publications,01/11/2021,40.67,General Fund,Subscription,D J WALL STREET JOURNA
City Manager,Books & Publications,01/11/2021,17.00,General Fund,Subscription,NYTIMES NYTIMES
City Manager,Books & Publications,01/11/2021,2.99,General Fund,Subscription  (storage per IT),APL APPLE ONLINE STORE
City Manager,Books & Publications,01/11/2021,40.67,General Fund,Subscription,D J WALL STREET JOURNA
City Manager,Computer software & supplies,01/11/2021,42.99,Economic Development Fund,Computer Supplies- Cases,AMAZON.COM
City Manager,Computer software & supplies,01/11/2021,127.13,Economic Development Fund,Computer Supplies- Bags,AMAZON.COM
City Manager,Computer software & supplies,01/11/2021,34.99,General Fund,Creative Cloud Licensing CMO/W,ADOBE  ACROPRO SUBS
City Manager,Computer software & supplies,01/11/2021,139.96,Economic Development Fund,Creative Cloud Licensing ED,ADOBE  ACROPRO SUBS
City Manager,Dues and memberships,01/11/2021,2190.00,General Fund,NATOA membership dues,NATIOAL ASSOCIATION OF
City Manager,Dues and memberships,01/11/2021,557.95,General Fund,Email newsletter subscription,MAILCHIMP
City Manager,Dues and memberships,01/11/2021,90.00,General Fund,CCCMA membership (BG),WPY CCCMA
City Manager,Dues and memberships,01/11/2021,125.00,General Fund,CCCMA membership (KH),WPY CCCMA
City Manager,Meal expense,01/11/2021,40.00,General Fund,CAO Meeting,TEDS MONTANA GRILL
City Manager,Meal expense,01/11/2021,66.29,General Fund,CMO Planning,TST  MANNING S STEAKS AND
City Manager,Office supplies,01/11/2021,14.95,Economic Development Fund,Office supplies- voice recordi,TARGET        00027177
City Manager,Office supplies,01/11/2021,54.44,General Fund,Calendar inserts (ML),FRANKLIN PLANNER
City Manager,Office supplies,01/11/2021,40.98,General Fund,Office supplies,SOURCE OFFICE - VITAL
City Manager,Other profess & tech services,01/11/2021,34.99,General Fund,Creative Cloud Licensing CMO/P,ADOBE  ACROPRO SUBS
City Manager,Other profess & tech services,01/11/2021,34.99,General Fund,Creative Cloud Licensing CMO/T,ADOBE  ACROPRO SUBS
City Manager,Other profess & tech services,01/11/2021,69.98,General Fund,Creative Cloud Licensing CMO/C,ADOBE  ACROPRO SUBS
City Manager,Other profess & tech services,01/11/2021,3809.97,Economic Development Fund,PO 10512 Inv 112710936-1 Costa,COSTAR GROUP INC
City Manager,"Printing, copying & binding",01/11/2021,1329.00,General Fund,Copy paper,LEWIS PAPER PLACE#3
City Manager,"Printing, copying & binding",01/11/2021,90.67,General Fund,Copy paper,LEWIS PAPER PLACE#3
City Manager,"Printing, copying & binding",01/11/2021,102.65,General Fund,Regular envelopes,LEWIS PAPER PLACE#3
City Manager,"Printing, copying & binding",01/11/2021,475.27,General Fund,2 boxes Adhesive foam core boa,ULINE   SHIP SUPPLIES
City Manager,"Printing, copying & binding",01/11/2021,192.93,General Fund,Digital window envelopes,WESTERN STATES ENVELOPE &
City Manager,"Printing, copying & binding",01/11/2021,257.60,General Fund,1- box Adhesive foam core boar,ULINE   SHIP SUPPLIES
City Manager,"Printing, copying & binding",01/11/2021,127.49,General Fund,Laminating pouches,STAPLES
City Manager,Promotional expense,01/11/2021,4.99,Economic Development Fund,Grant Advertising,FACEBOOK.COM ADS
City Manager,Promotional expense,01/11/2021,245.94,General Fund,Token (TC),KING SOOPERS #0127
City Manager,Promotional expense,01/11/2021,200.00,General Fund,Retirement (MP),AMAZON.COM
City Manager,Radio & communications equip,01/11/2021,2000.00,Equipment Replacement Fund,Cloud live streaming,MEDIA CONTROL SYSTEMS
City Manager,Rental of equipment & vehicles,01/11/2021,47.59,General Fund,PO 10172 Inv 269939406 6120 Me,KONICA MINOLTA USA
City Manager,Rental of equipment & vehicles,01/11/2021,1060.97,General Fund,PO 10172 Inv 269938909 C3070 M,KONICA MINOLTA USA
City Manager,Rental of equipment & vehicles,01/11/2021,1543.80,General Fund,PO 10172 Inv 36782958 Print Sh,CUSTOMER FINANCING
City Manager,Telecommunications,01/11/2021,80.02,General Fund,PD Aircards,VERIZON WIRELESS
City Manager,Telecommunications,01/11/2021,196.50,General Fund,City Cell Phones,ATT BILL PAYMENT
City Manager,Telecommunications,01/11/2021,27.99,Economic Development Fund,City Cell Phones,ATT BILL PAYMENT
City Manager,Telecommunications,01/11/2021,141.48,General Fund,City Cell Phones,ATT BILL PAYMENT
City Manager,Telecommunications,01/11/2021,98.25,General Fund,City Cell Phones,ATT BILL PAYMENT
City Manager,Training,01/11/2021,-630.00,Economic Development Fund,ICSC Conference refund,ICSC-NY
City Manager,Training,01/11/2021,-630.00,Economic Development Fund,ICSC Conference refund,ICSC-NY
City Manager,Training,01/11/2021,50.00,General Fund,Virtual event (KH),BIZJTIXTHE FUTURE OF
Community Resources,Advertising,01/11/2021,10.00,"Heritage, Culture & Arts Fund",FB boost of class social media,FACEBOOK.COM ADS
Community Resources,Advertising,01/11/2021,138.81,General Fund,Facebook Ads - Rec Program Reg,FACEBOOK.COM ADS
Community Resources,Advertising,01/11/2021,50.00,"Heritage, Culture & Arts Fund",Facebook Ads - LCCP Livestream,FACEBOOK.COM ADS
Community Resources,Advertising,01/11/2021,20.00,"Heritage, Culture & Arts Fund",Facebook Promotion for Museum,FACEBOOK.COM ADS
Community Resources,Agricultural supplies,01/11/2021,75.00,Open Space Fund,Employee appreciation cards,KING SOOPERS #0050
Community Resources,Agricultural supplies,01/11/2021,267.55,Golf Course Enterprise Fund,topdress sand,GOLF SPORT SOLUTIONS LL
Community Resources,Agricultural supplies,01/11/2021,401.31,Golf Course Enterprise Fund,topdress sand,GOLF SPORT SOLUTIONS LL
Community Resources,Alarm systems,01/11/2021,80.00,General Fund,PD - LPD offsite evidence Unit,4TE JDE INC
Community Resources,Alarm systems,01/11/2021,141.00,General Fund,BCLP - Glass Break - PO 10376,4TE JDE INC
Community Resources,Alarm systems,01/11/2021,299.00,Open Space Fund,"Links - Replaced pull station,",4TE JDE INC
Community Resources,Alarm systems,01/11/2021,132.00,Open Space Fund,Whitlock - replaced repeater l,4TE JDE INC
Community Resources,Alarm systems,01/11/2021,2152.00,General Fund,Civic Center - replaced CPU in,4TE JDE INC
Community Resources,Bldg Construction Costs,01/11/2021,1448.50,Capital Improvement Fund,Civic North - Fire alarm Remod,4TE JDE INC
Community Resources,Bldg Construction Costs,01/11/2021,748.42,"Heritage, Culture & Arts Fund",2020-CARETAKER'S TECH,ACTIVE CABLING & COMMUNICATIONS
Community Resources,Bldg Construction Costs,01/11/2021,486.14,"Heritage, Culture & Arts Fund",caretakers exhibit wall,FRONT RANGE LUMBER
Community Resources,Bldg Construction Costs,01/11/2021,653.76,"Heritage, Culture & Arts Fund",pexi for caretakers exhibit wa,PLASTICARE
Community Resources,Bldg Construction Costs,01/11/2021,211.00,"Heritage, Culture & Arts Fund",Fire Extinguisher Purchase- Ca,PYE BARKER - DENVER
Community Resources,Bldg Construction Costs,01/11/2021,1229.00,"Heritage, Culture & Arts Fund",Security Installation- Caretak,4TE JDE INC
Community Resources,Bldg Construction Costs,01/11/2021,420.00,"Heritage, Culture & Arts Fund",Knox Box Purchase- Caretaker's,THE KNOX COMPANY
Community Resources,Board and commissions,01/11/2021,168.89,Grants Fund (Oper & Capital),Policy Council,PAPA JOHN'S #4255
Community Resources,Building material supplies,01/11/2021,8.21,Open Space Fund,Carmody -       PVC fittings,THE HOME DEPOT 1514
Community Resources,Building material supplies,01/11/2021,63.72,Open Space Fund,"GMRC -        solder,flux",CHARLES D JONES/DENVER
Community Resources,Building material supplies,01/11/2021,127.00,Open Space Fund,Sika post mix for installation,LOWES #01903
Community Resources,Building material supplies,01/11/2021,1567.50,General Fund,BCLP - Maintenance shop Doors,VORTEX COLORADO INC
Community Resources,Building material supplies,01/11/2021,2389.00,General Fund,Civic South - Receiving Door G,VORTEX COLORADO INC
Community Resources,Building material supplies,01/11/2021,21.89,General Fund,Ohio Street - Threshold,IMLSS UTAH
Community Resources,Building material supplies,01/11/2021,31.34,General Fund,"Civic South, CMO - Paint for D",SHERWIN WILLIAMS 701642
Community Resources,Building material supplies,01/11/2021,158.21,General Fund,Truck 389 - Drill Bits,THE HOME DEPOT 1514
Community Resources,Building material supplies,01/11/2021,92.82,General Fund,"Patterson H.S. - Door, Frame a",THE HOME DEPOT 1514
Community Resources,Building material supplies,01/11/2021,21.81,General Fund,Truck 389 - Paint Supplies,THE HOME DEPOT 1514
Community Resources,Building material supplies,01/11/2021,37.44,General Fund,Civic South & PSC Truck Fastne,GREEN MOUNTAIN ACE HDW
Community Resources,Building material supplies,01/11/2021,3.98,Open Space Fund,Cove wall  base adhesive for s,THE HOME DEPOT 1514
Community Resources,Building material supplies,01/11/2021,213.90,Open Space Fund,Hardware for park rule signs.,THE HOME DEPOT 1514
Community Resources,Building material supplies,01/11/2021,32.55,Open Space Fund,Materials to fabricate new gat,THE HOME DEPOT 1514
Community Resources,Building material supplies,01/11/2021,95.94,Open Space Fund,Wood for benches at Mountair P,LOWES #01903
Community Resources,Building material supplies,01/11/2021,25.62,Open Space Fund,"fasteners, screen and screen r",GREEN MOUNTAIN ACE HDW
Community Resources,Building material supplies,01/11/2021,55.56,Open Space Fund,led light bulbs,THE HOME DEPOT 1514
Community Resources,Building material supplies,01/11/2021,112.75,Open Space Fund,"spray paint, steel round stock",THE HOME DEPOT 1514
Community Resources,Building material supplies,01/11/2021,140.77,"Heritage, Culture & Arts Fund",wood restore,PLASTICARE
Community Resources,Building material supplies,01/11/2021,104.28,"Heritage, Culture & Arts Fund",shop supplies,THE HOME DEPOT 1514
Community Resources,Building material supplies,01/11/2021,11.99,"Heritage, Culture & Arts Fund",paint brushes,AMAZON.COM
Community Resources,Building material supplies,01/11/2021,24.04,"Heritage, Culture & Arts Fund",nitrile gloves,WW GRAINGER
Community Resources,Building material supplies,01/11/2021,-0.17,"Heritage, Culture & Arts Fund",paint for streer exterior tax,SHERWIN WILLIAMS 701642
Community Resources,Building material supplies,01/11/2021,444.80,"Heritage, Culture & Arts Fund",siding for streer,FRONT RANGE LUMBER
Community Resources,Building material supplies,01/11/2021,124.37,"Heritage, Culture & Arts Fund",paint for steer,SHERWIN WILLIAMS 701642
Community Resources,Building material supplies,01/11/2021,240.00,Open Space Fund,Expanded metal for park rules,ALTITUDE STEEL
Community Resources,Building material supplies,01/11/2021,42.15,Open Space Fund,Mouse traps - Parks maintenanc,THE HOME DEPOT 1514
Community Resources,Building material supplies,01/11/2021,367.69,Open Space Fund,Stain and lumber - parks signs,THE HOME DEPOT 1514
Community Resources,Building material supplies,01/11/2021,50.80,Open Space Fund,Sika fence post mix for instal,LOWES #01903
Community Resources,Building material supplies,01/11/2021,81.46,Open Space Fund,Hardware to install expanded m,LOWES #01903
Community Resources,Building material supplies,01/11/2021,18.00,Open Space Fund,Hardware to install expanded m,THE HOME DEPOT 1514
Community Resources,Building material supplies,01/11/2021,6.38,Open Space Fund,Self-tapping screws to install,THE HOME DEPOT 1514
Community Resources,Building material supplies,01/11/2021,874.22,Open Space Fund,Split Rail Fence Order,ROCKY MOUNTAIN FOREST PRO
Community Resources,Building material supplies,01/11/2021,750.84,Open Space Fund,Fuel tank alarm repair,KUBAT EQUIPMENT AND SE
Community Resources,Building material supplies,01/11/2021,20.31,Open Space Fund,Fuel pump adaptor,WW GRAINGER
Community Resources,Building material supplies,01/11/2021,60.96,Open Space Fund,Sign post repair materials,THE HOME DEPOT 1514
Community Resources,Building material supplies,01/11/2021,26.49,General Fund,Break room Kleenex,AMAZON.COM
Community Resources,Building material supplies,01/11/2021,26.49,General Fund,Break room Kleenex,AMAZON.COM
Community Resources,Building material supplies,01/11/2021,64.56,General Fund,Break room hand medic,AMAZON.COM
Community Resources,Building material supplies,01/11/2021,741.40,Open Space Fund,"gate, gate wheel and wood gate",STOCKYARDS RANCH SUPPL
Community Resources,Building material supplies,01/11/2021,4928.37,General Fund,City Facilities - Lock cores,IMLSS UTAH
Community Resources,Building material supplies,01/11/2021,64.50,General Fund,Core stamps,IMLSS UTAH
Community Resources,Building material supplies,01/11/2021,49.51,General Fund,"Shop lacquer thinner, cleaning",LOWES #01903
Community Resources,Building material supplies,01/11/2021,34.91,General Fund,"Van, drill bits, Allen wrenche",THE HOME DEPOT 1514
Community Resources,Building material supplies,01/11/2021,50.66,General Fund,"Break room supplies tea, salt",KING SOOPERS #0065
Community Resources,Building material supplies,01/11/2021,9.90,Open Space Fund,Green mtn carriage bolts for d,GREEN MOUNTAIN ACE HDW
Community Resources,Building material supplies,01/11/2021,91.39,General Fund,Replacement battery for I pad,BATTERIES PLUS #080
Community Resources,Building material supplies,01/11/2021,10.46,Open Space Fund,Green mtn allthread for dip ba,THE HOME DEPOT 1514
Community Resources,Building material supplies,01/11/2021,24.97,General Fund,Van wire strippers,THE HOME DEPOT 1514
Community Resources,Building material supplies,01/11/2021,103.00,Open Space Fund,Replacement lenses,WILEY X INC INTERNET
Community Resources,Building material supplies,01/11/2021,111.41,Golf Course Enterprise Fund,Boards for water cooler repair,FRONT RANGE LUMBER
Community Resources,Building material supplies,01/11/2021,137.36,Golf Course Enterprise Fund,Paint/stain for water cooler r,DIAMOND VOGEL PAINT CENT
Community Resources,Building material supplies,01/11/2021,23.98,Open Space Fund,Cell Phone Cover,AMAZON.COM
Community Resources,Building material supplies,01/11/2021,1011.30,Open Space Fund,Buck and rail fencing sections,STOCKYARDS RANCH SUPPL
Community Resources,Building material supplies,01/11/2021,520.85,General Fund,Civic South- Electric Strike &,IMLSS UTAH
Community Resources,Building material supplies,01/11/2021,11.56,General Fund,Patterson H.S. - Supplies for,THE HOME DEPOT 1514
Community Resources,Building material supplies,01/11/2021,68.21,General Fund,"Patterson H.S - Trim, Square a",THE HOME DEPOT 1514
Community Resources,Building material supplies,01/11/2021,7.84,General Fund,Daniel’s H.S. - Trim,THE HOME DEPOT 1514
Community Resources,Building material supplies,01/11/2021,32.76,General Fund,Truck 389 - Hand wipes(Tax was,OREILLY AUTO  00027128
Community Resources,Building material supplies,01/11/2021,21.53,General Fund,Civic South - CMO - Paint for,SHERWIN WILLIAMS 701642
Community Resources,Building material supplies,01/11/2021,11.38,General Fund,Patterson- batteries and light,LOWES #01903
Community Resources,Building material supplies,01/11/2021,12.99,General Fund,Civic South- wall file for HR,OFFICE DEPOT #1080
Community Resources,Building material supplies,01/11/2021,49.99,General Fund,Shop- work phone case,BEST BUY MHT  00002105
Community Resources,Building material supplies,01/11/2021,29.98,General Fund,Truck- Pliers,LOWES #01903
Community Resources,Building material supplies,01/11/2021,8.98,Open Space Fund,WHAC- TP dispenser,LOWES #01903
Community Resources,Building material supplies,01/11/2021,6.96,General Fund,Truck- buckets,LOWES #01903
Community Resources,Building material supplies,01/11/2021,53.63,General Fund,"Truck- saw blade, flashlight",THE HOME DEPOT 1514
Community Resources,Building material supplies,01/11/2021,280.47,General Fund,Heritage center-   Barn electr,WW GRAINGER
Community Resources,Building material supplies,01/11/2021,249.87,General Fund,Morse Park-   Electric heater,WW GRAINGER
Community Resources,Building material supplies,01/11/2021,60.32,General Fund,CIVIC North  2qty. 120v relays,WW GRAINGER
Community Resources,Building material supplies,01/11/2021,36.95,General Fund,STOCK       12qty. pleated air,WW GRAINGER
Community Resources,Building material supplies,01/11/2021,125.16,General Fund,STOCK     24qty. pleated air f,WW GRAINGER
Community Resources,Building material supplies,01/11/2021,110.14,General Fund,"STOCK    12qty. air filters,",WW GRAINGER
Community Resources,Building material supplies,01/11/2021,127.00,Open Space Fund,Sika fence post mix for instal,THE HOME DEPOT 1514
Community Resources,Chem. & lab. supplies,01/11/2021,79.40,General Fund,Bulk CO2 For Pools at Rec. Cen,GREEN CO2 SYSTEMS
Community Resources,Chem. & lab. supplies,01/11/2021,47.12,"Heritage, Culture & Arts Fund",Glaze for pottery studio,STONE LEAF POTTERY INC
Community Resources,Chem. & lab. supplies,01/11/2021,84.00,"Heritage, Culture & Arts Fund",Clay for pottery studio,STONE LEAF POTTERY INC
Community Resources,Chem. & lab. supplies,01/11/2021,934.96,"Heritage, Culture & Arts Fund",Clay and glaze supplies,STONE LEAF POTTERY INC
Community Resources,Chem. & lab. supplies,01/11/2021,31.00,"Heritage, Culture & Arts Fund",Glaze material for pottery stu,STONE LEAF POTTERY INC
Community Resources,Chem. & lab. supplies,01/11/2021,210.00,General Fund,Bulk CO2 For Pools at Rec. Cen,GREEN CO2 SYSTEMS
Community Resources,Chem. & lab. supplies,01/11/2021,180.20,General Fund,Bulk CO2 For Pools at Rec. Cen,GREEN CO2 SYSTEMS
Community Resources,Cleaning & janitorial services,01/11/2021,13484.77,General Fund,PO 10221 INVOICE 1506119,ISS FACILITYSVCSHOLDING
Community Resources,Cleaning supplies,01/11/2021,270.83,General Fund,AIR CARE PROGRAM,STATE CHEMIC STATE CHE
Community Resources,Cleaning supplies,01/11/2021,375.00,Golf Course Enterprise Fund,DEN ENZYMES FOR GREASE TRAP,UNITED LABORATORIES INC
Community Resources,Cleaning supplies,01/11/2021,832.50,Open Space Fund,pop up towels,IN  STAR INDUSTRIAL SUPPL
Community Resources,Cleaning supplies,01/11/2021,292.50,Golf Course Enterprise Fund,CLUB HOUSE CLEANING,ALSCO INC.
Community Resources,Clothing & Uniforms,01/11/2021,107.65,Open Space Fund,Uniform shirts for new mainten,LL BEAN MAILORDER
Community Resources,Clothing & Uniforms,01/11/2021,645.91,General Fund,Uniform pieces for Aquatics Co,SUPER TEES
Community Resources,Clothing & Uniforms,01/11/2021,50.00,Open Space Fund,installed ranger patches on un,US RECOGNITION
Community Resources,Clothing & Uniforms,01/11/2021,114.25,"Heritage, Culture & Arts Fund",Winter jacket logo embroidery,CHOICE IMAGE INC
Community Resources,Clothing & Uniforms,01/11/2021,53.95,Open Space Fund,Replacement hoodie - Lucci,INTERMOUNTAIN SAFETY SHOE
Community Resources,Clothing & Uniforms,01/11/2021,150.00,Golf Course Enterprise Fund,TOWELS AND RAGS,ALSCO INC.
Community Resources,Clothing & Uniforms,01/11/2021,452.70,Golf Course Enterprise Fund,TOWELS AND RAGS,ALSCO INC.
Community Resources,Clothing & Uniforms,01/11/2021,5.70,Golf Course Enterprise Fund,uniform and rug rental,CINTAS CORP # 060A
Community Resources,Clothing & Uniforms,01/11/2021,28.99,Golf Course Enterprise Fund,uniform and rug rental,CINTAS CORP # 060A
Community Resources,Clothing & Uniforms,01/11/2021,19.33,Golf Course Enterprise Fund,uniform and rug rental,CINTAS CORP # 060A
Community Resources,Clothing & Uniforms,01/11/2021,5.70,Golf Course Enterprise Fund,uniform and rug rental,CINTAS CORP # 060A
Community Resources,Clothing & Uniforms,01/11/2021,28.99,Golf Course Enterprise Fund,uniform and rug rental,CINTAS CORP # 060A
Community Resources,Clothing & Uniforms,01/11/2021,19.33,Golf Course Enterprise Fund,uniform and rug rental,CINTAS CORP # 060A
Community Resources,Clothing & Uniforms,01/11/2021,5.70,Golf Course Enterprise Fund,uniform and rug rental,CINTAS CORP # 060A
Community Resources,Clothing & Uniforms,01/11/2021,28.99,Golf Course Enterprise Fund,uniform and rug rental,CINTAS CORP # 060A
Community Resources,Clothing & Uniforms,01/11/2021,19.33,Golf Course Enterprise Fund,uniform and rug rental,CINTAS CORP # 060A
Community Resources,Clothing & Uniforms,01/11/2021,5.70,Golf Course Enterprise Fund,uniform and rug rental,CINTAS CORP # 060A
Community Resources,Clothing & Uniforms,01/11/2021,28.99,Golf Course Enterprise Fund,uniform and rug rental,CINTAS CORP # 060A
Community Resources,Clothing & Uniforms,01/11/2021,19.33,Golf Course Enterprise Fund,uniform and rug rental,CINTAS CORP # 060A
Community Resources,Clothing & Uniforms,01/11/2021,59.99,Open Space Fund,Replacement winter jacket,ARMY NAVY SURPLUS STORE
Community Resources,Clothing & Uniforms,01/11/2021,298.66,General Fund,Trainer shirts,SUPER TEES
Community Resources,Collection & Exhibit Supplies,01/11/2021,28.76,"Heritage, Culture & Arts Fund",Doorstops for 1920s house,HOUSE OF ANTIQUE HARDWAR
Community Resources,Collection & Exhibit Supplies,01/11/2021,165.00,"Heritage, Culture & Arts Fund",Juried Exhibit Recognition gif,VILLAGE ROASTER CC
Community Resources,Computer software & supplies,01/11/2021,99.00,"Heritage, Culture & Arts Fund",Research Program for Research,ANC ANCESTRY.COM
Community Resources,Computer software & supplies,01/11/2021,59.98,Open Space Fund,Storage for files,WALGREENS #6621    Q03
Community Resources,Computer software & supplies,01/11/2021,360.00,General Fund,Paraplan Scheduling Software,IN  PASSIO TECHNOLOGIES (
Community Resources,Computer software & supplies,01/11/2021,52.99,General Fund,Adobe software subscription,ADOBE  ACROPRO SUBS
Community Resources,Computer software & supplies,01/11/2021,-52.99,General Fund,Adobe software subscription -,ADOBE  ACROPRO SUBS
Community Resources,Computer software & supplies,01/11/2021,52.99,General Fund,Adobe software subscription,ADOBE  ACROPRO SUBS
Community Resources,Computer software & supplies,01/11/2021,52.99,General Fund,Adobe software subscription,ADOBE  ACROPRO SUBS
Community Resources,Computer software & supplies,01/11/2021,52.99,General Fund,Adobe software subscription,ADOBE  ACROPRO SUBS
Community Resources,Computer software & supplies,01/11/2021,52.99,General Fund,Adobe software subscription,ADOBE  ACROPRO SUBS
Community Resources,Computer software & supplies,01/11/2021,29.99,General Fund,Adobe stock photo subscription,ADOBE  ACROPRO SUBS
Community Resources,Computer software & supplies,01/11/2021,34.99,Open Space Fund,Creative Cloud Licensing CR,ADOBE  ACROPRO SUBS
Community Resources,Computer software & supplies,01/11/2021,14.99,"Heritage, Culture & Arts Fund",Creative Cloud Licensing CR/HE,ADOBE  ACROPRO SUBS
Community Resources,Computer software & supplies,01/11/2021,14.99,"Heritage, Culture & Arts Fund",Creative Cloud Licensing CR/PR,ADOBE  ACROPRO SUBS
Community Resources,Computer software & supplies,01/11/2021,34.99,"Heritage, Culture & Arts Fund",Creative Cloud Licensing HCA,ADOBE  ACROPRO SUBS
Community Resources,Computer software & supplies,01/11/2021,119.88,General Fund,Presentation Software for CR,MENTIMETER
Community Resources,Construc Costs-Site Improve,01/11/2021,9936.19,Open Space Fund,PO 10427 Inv 8201345421 Carmod,TANDUS  FLOORING
Community Resources,Construc Costs-Site Improve,01/11/2021,8077.30,Open Space Fund,PO 10427 Inv  8201398099 Carmo,TANDUS  FLOORING
Community Resources,Construction Costs-Other Impro,01/11/2021,6051.05,Open Space Fund,PO 10428 Inv 8201361356 GMRC T,TANDUS  FLOORING
Community Resources,Construction Costs-Other Impro,01/11/2021,120.00,Golf Course Enterprise Fund,Permit Fee- Fox Hollow Golf Co,WEST METRO FIRE RESCU
Community Resources,Construction Costs-Other Impro,01/11/2021,89.99,Open Space Fund,CARETAKER'S COTTAGE,THE HOME DEPOT 1514
Community Resources,Contractor services,01/11/2021,385.00,Open Space Fund,2020 utility locate,HARRIS KOCHER SMITH
Community Resources,Contractor services,01/11/2021,550.00,General Fund,Contracted tree service 12/3,SQ  SCHULHOFF TREE& LAWN
Community Resources,Contractor services,01/11/2021,1817.00,General Fund,Contracted tree service 12/2,SQ  SCHULHOFF TREE& LAWN
Community Resources,Contractor services,01/11/2021,2788.00,General Fund,Contracted tree service  10/23,SQ  SCHULHOFF TREE& LAWN
Community Resources,Dues and memberships,01/11/2021,28.00,Open Space Fund,CPW salvage permit,RAOCOPARKS&WILDLIFE CO
Community Resources,Dues and memberships,01/11/2021,50.00,Open Space Fund,Membership FT employee Spawn,BB  AMER HORT SOCIETY
Community Resources,Dues and memberships,01/11/2021,14.00,"Heritage, Culture & Arts Fund",Monthly subscription for POS s,SHOPIFY  92757585
Community Resources,Dues and memberships,01/11/2021,50.00,Golf Course Enterprise Fund,annual RMGCSA dues for Doug Sc,RMGCSA           00 OF 00
Community Resources,Dues and memberships,01/11/2021,170.00,Golf Course Enterprise Fund,Jeff annual RMGCSA dues,RMGCSA           00 OF 00
Community Resources,Dues and memberships,01/11/2021,50.00,Golf Course Enterprise Fund,Membership dues for Steve.,RMGCSA           00 OF 00
Community Resources,Dues and memberships,01/11/2021,170.00,Golf Course Enterprise Fund,Membership dues for Kevin.,RMGCSA           00 OF 00
Community Resources,Dues and memberships,01/11/2021,2375.00,General Fund,Annual NRPA Membership Renewal,NRPA OPERATING
Community Resources,Dues and memberships,01/11/2021,294.00,Open Space Fund,LA License Renewal - NF,CO DORA LICENSING
Community Resources,Dues and memberships,01/11/2021,150.00,Golf Course Enterprise Fund,ANNUAL CLUB MEMBERSHIP DUES,USGA MEMBERSHIP
Community Resources,"Fuel, oil, lubricants",01/11/2021,-6.19,Golf Course Enterprise Fund,refund of taxes charged.  see,"MOMAR, INC"
Community Resources,"Fuel, oil, lubricants",01/11/2021,-4.12,Golf Course Enterprise Fund,refund of taxes charged.  see,"MOMAR, INC"
Community Resources,"Fuel, oil, lubricants",01/11/2021,35.51,Golf Course Enterprise Fund,PROPANE FOR OUTDOOR HEATERS,ACE HDWE OF JEWELL SQ
Community Resources,"Fuel, oil, lubricants",01/11/2021,47.08,Golf Course Enterprise Fund,PROPANE FOR OUTDOOR HEATERS,ACE HDWE OF JEWELL SQ
Community Resources,"Fuel, oil, lubricants",01/11/2021,63.44,Golf Course Enterprise Fund,PROANE FOR OUTDOOR HEATERS,ACE HDWE OF JEWELL SQ
Community Resources,Gasoline,01/11/2021,1502.21,General Fund,PO 10365 Invoice 481312,HILL PETROLEUM
Community Resources,Irrigation supplies,01/11/2021,16.34,Open Space Fund,Irrigation repair parts,CPS DISTRIBUTORS #18
Community Resources,Irrigation supplies,01/11/2021,166.83,Open Space Fund,Irrigation repair parts,CPS DISTRIBUTORS #18
Community Resources,Irrigation supplies,01/11/2021,97.86,Open Space Fund,Irrigation repair parts,CPS DISTRIBUTORS #18
Community Resources,Irrigation supplies,01/11/2021,974.12,Golf Course Enterprise Fund,Compressor rental for blowout.,"WAGNER EXCHANGE, LLC"
Community Resources,Irrigation supplies,01/11/2021,1461.18,Golf Course Enterprise Fund,Compressor rental for blowout.,"WAGNER EXCHANGE, LLC"
Community Resources,Irrigation supplies,01/11/2021,353.41,Golf Course Enterprise Fund,Repair kits for frost free hyd,SQ  TEN POINT SALES & MAR
Community Resources,Irrigation supplies,01/11/2021,1549.70,Golf Course Enterprise Fund,"Eagle 900/500 sprinkler heads,",HERITAGE LANDSCAPE SUP
Community Resources,Irrigation supplies,01/11/2021,174.56,Open Space Fund,Irrigation repair parts and su,TESSCO TECHNOLOGIES
Community Resources,Irrigation supplies,01/11/2021,541.42,Open Space Fund,Irrigation repair parts and su,TESSCO TECHNOLOGIES
Community Resources,Irrigation supplies,01/11/2021,907.62,Open Space Fund,Irrigation repair parts,CPS DISTRIBUTORS #18
Community Resources,Irrigation supplies,01/11/2021,173.08,Open Space Fund,Replacement hose for water tra,CPS DISTRIBUTORS #18
Community Resources,Meal expense,01/11/2021,46.71,"Heritage, Culture & Arts Fund",Volunteer Hospitality - Invent,PANERA BREAD #202446 P
Community Resources,Med. & phar. supplies,01/11/2021,353.15,Open Space Fund,first aid supplies,CINTAS CORP # 060A
Community Resources,Med. & phar. supplies,01/11/2021,11.77,General Fund,CR Cabinet Supplies,CINTAS CORP # 060A
Community Resources,Med. & phar. supplies,01/11/2021,43.62,General Fund,CR Cabinet Supplies,CINTAS CORP # 060A
Community Resources,Med. & phar. supplies,01/11/2021,60.42,Golf Course Enterprise Fund,THERMOMETERS,AMAZON.COM
Community Resources,Office supplies,01/11/2021,60.42,Golf Course Enterprise Fund,THERMOMETERS,AMAZON.COM
Community Resources,Office supplies,01/11/2021,91.92,Golf Course Enterprise Fund,OFFICE SUPPLIES,OFFICE DEPOT #1080
Community Resources,Office supplies,01/11/2021,612.56,Golf Course Enterprise Fund,City Cell Phones,ATT BILL PAYMENT
Community Resources,Office supplies,01/11/2021,19.49,General Fund,Office Supplies,AMAZON.COM
Community Resources,Office supplies,01/11/2021,-14.99,General Fund,Office Supplies,AMAZON.COM
Community Resources,Office supplies,01/11/2021,95.82,General Fund,Office Supplies,AMAZON.COM
Community Resources,Office supplies,01/11/2021,9.66,General Fund,Office Supplies,AMAZON.COM
Community Resources,Office supplies,01/11/2021,10.41,General Fund,Office Supplies,AMAZON.COM
Community Resources,Office supplies,01/11/2021,16.09,General Fund,Office Supplies,AMAZON.COM
Community Resources,Office supplies,01/11/2021,49.66,General Fund,Office Supplies,AMAZON.COM
Community Resources,Office supplies,01/11/2021,15.19,General Fund,Office Supplies,STAPLES
Community Resources,Office supplies,01/11/2021,14.12,"Heritage, Culture & Arts Fund",Office Supplies For LCC,STAPLES
Community Resources,Office supplies,01/11/2021,19.03,General Fund,Office Supplies for Planning &,AMAZON.COM
Community Resources,Office supplies,01/11/2021,82.26,General Fund,Office Supplies for Planning &,AMAZON.COM
Community Resources,Office supplies,01/11/2021,24.94,General Fund,Office Supplies for Planning &,AMAZON.COM
Community Resources,Office supplies,01/11/2021,19.09,General Fund,Office Supplies,AMAZON.COM
Community Resources,Office supplies,01/11/2021,60.79,General Fund,Office Supplies for Planning &,AMAZON.COM
Community Resources,Office supplies,01/11/2021,-19.49,General Fund,Office Supplies,AMAZON.COM
Community Resources,Office supplies,01/11/2021,868.15,General Fund,Inv 477169 Compostable Bin Lin,IN  BIOBAG USA
Community Resources,Office supplies,01/11/2021,80.90,Golf Course Enterprise Fund,"Keyboard, pen, screen protecto",AMAZON.COM
Community Resources,Office supplies,01/11/2021,121.25,General Fund,Office Supplies,TARGET  00017764
Community Resources,Office supplies,01/11/2021,7.34,General Fund,Office Supplies,STAPLES
Community Resources,Office supplies,01/11/2021,37.94,General Fund,Office Supplies,STAPLES
Community Resources,Office supplies,01/11/2021,81.91,Golf Course Enterprise Fund,CR Golf Course Rainbird MS Sur,AMAZON.COM
Community Resources,Office supplies,01/11/2021,21.26,"Heritage, Culture & Arts Fund",File folders and dish soap for,OFFICE DEPOT #1080
Community Resources,Office supplies,01/11/2021,4.50,"Heritage, Culture & Arts Fund",Water for staff/volunteers,ELDORADO ARTESIAN SPRINGS
Community Resources,Office supplies,01/11/2021,108.00,General Fund,Coffee Services,ROCKY MOUNTAIN BOTTLED WA
Community Resources,Office supplies,01/11/2021,18.49,General Fund,Planner for GM,STAPLES
Community Resources,Office supplies,01/11/2021,19.56,Golf Course Enterprise Fund,office mop heads,LOWES #01903
Community Resources,Office supplies,01/11/2021,10.36,Open Space Fund,Car phone chargers for mainten,STAPLES
Community Resources,Office supplies,01/11/2021,41.28,Open Space Fund,Charging cable and wall charge,STAPLES
Community Resources,Office supplies,01/11/2021,63.12,Open Space Fund,Gloves for maintenance,STAPLES
Community Resources,Office supplies,01/11/2021,28.44,Open Space Fund,Coffee for the North crew.,KING SOOPERS #0065
Community Resources,Office supplies,01/11/2021,132.11,"Heritage, Culture & Arts Fund",Misc office supplies - calenda,AMAZON.COM
Community Resources,Office supplies,01/11/2021,20.67,General Fund,Cords needed for laptops,AMAZON.COM
Community Resources,Office supplies,01/11/2021,30.28,General Fund,WRC office supplies,STAPLES
Community Resources,Office supplies,01/11/2021,-4.89,General Fund,Desk Pad Calendar return-CCC,STAPLES
Community Resources,Office supplies,01/11/2021,19.29,General Fund,Desk Calendar refill-CCC,STAPLES
Community Resources,Office supplies,01/11/2021,140.86,General Fund,"Wall calendar, Planner, Desk r",STAPLES
Community Resources,Office supplies,01/11/2021,4.89,General Fund,Desk Pad Calendar-CCC,STAPLES
Community Resources,Office supplies,01/11/2021,90.89,Golf Course Enterprise Fund,"Keyboard, pen, screen protecto",AMAZON.COM
Community Resources,Office supplies,01/11/2021,16.21,General Fund,Office supplies,AMAZON.COM
Community Resources,Office supplies,01/11/2021,7.45,General Fund,tab sheets,STAPLES
Community Resources,Office supplies,01/11/2021,195.52,General Fund,"pencils, laminate, sheet prote",STAPLES
Community Resources,Office supplies,01/11/2021,97.44,General Fund,whiteboard sign,STAPLES
Community Resources,Office supplies,01/11/2021,148.44,General Fund,can liners,STAPLES
Community Resources,Office supplies,01/11/2021,165.93,General Fund,whiteboard sign,STAPLES
Community Resources,Office supplies,01/11/2021,1015.14,General Fund,"can liners, batteries, sanitiz",STAPLES
Community Resources,Office supplies,01/11/2021,311.67,General Fund,"pens, stickies, binders",STAPLES
Community Resources,Office supplies,01/11/2021,26.04,General Fund,poster board,STAPLES
Community Resources,Office supplies,01/11/2021,113.99,General Fund,sign holders,STAPLES
Community Resources,Office supplies,01/11/2021,113.99,General Fund,sign holders,STAPLES
Community Resources,Office supplies,01/11/2021,25.74,General Fund,lable tape,STAPLES
Community Resources,Office supplies,01/11/2021,262.00,General Fund,"pens, pads, staples",STAPLES
Community Resources,Office supplies,01/11/2021,24.57,General Fund,label tape,STAPLES
Community Resources,Office supplies,01/11/2021,4.79,General Fund,pens,STAPLES
Community Resources,Office supplies,01/11/2021,278.18,General Fund,"highlighters, lamination, clip",STAPLES
Community Resources,Office supplies,01/11/2021,14.40,Golf Course Enterprise Fund,monthly service charge for cof,ROCKY MOUNTAIN BOTTLED WA
Community Resources,Office supplies,01/11/2021,9.60,Golf Course Enterprise Fund,monthly service charge for cof,ROCKY MOUNTAIN BOTTLED WA
Community Resources,Office supplies,01/11/2021,99.00,Golf Course Enterprise Fund,COFFEE,ROCKY MOUNTAIN BOTTLED WA
Community Resources,Office supplies,01/11/2021,3.29,General Fund,Office Supplies,AMAZON.COM
Community Resources,Office supplies,01/11/2021,12.95,General Fund,Office Supplies,AMAZON.COM
Community Resources,Office supplies,01/11/2021,51.92,General Fund,Cards for virtual participants,TARGET        00027177
Community Resources,Operating supplies,01/11/2021,-0.12,General Fund,Refund-Amazon Tax-Broadway Sho,AMAZON.COM
Community Resources,Operating supplies,01/11/2021,14.73,Grants Fund (Oper & Capital),DanHS materials for remote lea,KING SOOPERS #0082
Community Resources,Operating supplies,01/11/2021,42.89,Grants Fund (Oper & Capital),UCC HS  ink,AMAZON.COM
Community Resources,Operating supplies,01/11/2021,166.64,Grants Fund (Oper & Capital),classroom supplies end of year,SAMSCLUB #6635
Community Resources,Operating supplies,01/11/2021,43.96,Grants Fund (Oper & Capital),Classroom supplies PCC,AMAZON.COM
Community Resources,Operating supplies,01/11/2021,14.45,Grants Fund (Oper & Capital),Special diet purchase for Patt,KING SOOPERS #0047 S1H
Community Resources,Operating supplies,01/11/2021,26.97,Grants Fund (Oper & Capital),classroom supplies PCC,AMAZON.COM
Community Resources,Operating supplies,01/11/2021,171.89,Grants Fund (Oper & Capital),Toner for PHS printer,AMAZON.COM
Community Resources,Operating supplies,01/11/2021,3.06,Grants Fund (Oper & Capital),classroom materials,HOBBY-LOBBY # 425
Community Resources,Operating supplies,01/11/2021,-17.38,Grants Fund (Oper & Capital),Purchase with tax refunded,WAL-MART
Community Resources,Operating supplies,01/11/2021,17.14,Grants Fund (Oper & Capital),Supplies for Home Visits,WAL-MART
Community Resources,Operating supplies,01/11/2021,17.38,Grants Fund (Oper & Capital),Purchase with tax,WAL-MART
Community Resources,Operating supplies,01/11/2021,9.99,Grants Fund (Oper & Capital),consumable classroom materials,MICHAELS #2104
Community Resources,Operating supplies,01/11/2021,2309.94,Grants Fund (Oper & Capital),City Cell Phones,ATT BILL PAYMENT
Community Resources,Other general supplies,01/11/2021,431.37,General Fund,"BCLP 2020 purchase Plexiglass,",THE HOME DEPOT 1514
Community Resources,Other general supplies,01/11/2021,30.16,General Fund,BCLP 2020 purchase hinges and,THE HOME DEPOT 1514
Community Resources,Other general supplies,01/11/2021,1850.51,General Fund,BCLP 2020 purchase 3 large int,FASTSIGNS
Community Resources,Other general supplies,01/11/2021,179.58,General Fund,BCLP 2020 purchase Skins and s,NATURE-WATCH
Community Resources,Other general supplies,01/11/2021,297.00,General Fund,"BCLP 2020 purchase skulls, mag",NATURE-WATCH
Community Resources,Other general supplies,01/11/2021,316.15,General Fund,BCLP 2020 purchase skulls for,NATURE-WATCH
Community Resources,Other general supplies,01/11/2021,199.90,General Fund,BCLP 2020 purchase Headlamps f,AMAZON.COM
Community Resources,Other general supplies,01/11/2021,212.98,General Fund,BCLP 2020 purchase 2 event bev,AMAZON.COM
Community Resources,Other general supplies,01/11/2021,223.55,General Fund,BCLP 2020 purchase Trail educa,STICKERGIANTCOM INC
Community Resources,Other general supplies,01/11/2021,23.98,General Fund,BCLP 2020 purchase Balloons to,MICHAELS #2104
Community Resources,Other general supplies,01/11/2021,379.54,General Fund,BCLP 2020 purchase Trail Educa,4IMPRINT
Community Resources,Other general supplies,01/11/2021,549.58,General Fund,BCLP 2020 purchase Storage Bin,AMAZON.COM
Community Resources,Other general supplies,01/11/2021,290.98,General Fund,BCLP 2020 purchase Telescope f,AMAZON.COM
Community Resources,Other general supplies,01/11/2021,280.35,General Fund,BCLP 2020 purchase Trail etiqu,FASTSIGNS
Community Resources,Other general supplies,01/11/2021,200.76,General Fund,BCLP 2020 purchase Storage bin,AMAZON.COM
Community Resources,Other general supplies,01/11/2021,16.50,General Fund,BCLP 2020 purchase Recognition,FASTSIGNS
Community Resources,Other general supplies,01/11/2021,169.73,General Fund,Toilet paper,WESTERN PAPER DISTRIBUTOR
Community Resources,Other general supplies,01/11/2021,1131.60,General Fund,Hand sanitizer,WESTERN PAPER DISTRIBUTOR
Community Resources,Other general supplies,01/11/2021,14.53,General Fund,Rust Remover for equipment,THE HOME DEPOT 1514
Community Resources,Other general supplies,01/11/2021,120.23,General Fund,Bathroom air freshener program,STATE CHEMIC STATE CHE
Community Resources,Other general supplies,01/11/2021,315.72,General Fund,purell,WESTERN PAPER DISTRIBUTOR
Community Resources,Other general supplies,01/11/2021,226.32,General Fund,purell,WESTERN PAPER DISTRIBUTOR
Community Resources,Other general supplies,01/11/2021,263.10,General Fund,purell,WESTERN PAPER DISTRIBUTOR
Community Resources,Other general supplies,01/11/2021,1532.13,General Fund,"soap, paper towels, wipes",WESTERN PAPER DISTRIBUTOR
Community Resources,Other general supplies,01/11/2021,157.86,General Fund,purell,WESTERN PAPER DISTRIBUTOR
Community Resources,Other general supplies,01/11/2021,469.61,Golf Course Enterprise Fund,OUTDOOR PORT A POTTY,ASAP SITE SERVICES
Community Resources,Other general supplies,01/11/2021,0.01,Golf Course Enterprise Fund,OUTDOOR PORT A POTTY,ASAP SITE SERVICES
Community Resources,Other general supplies,01/11/2021,390.00,General Fund,BCLP 2020 purchase- Replacemen,IN  AED AUTHORITY  (NARVA
Community Resources,Other general supplies,01/11/2021,42.99,General Fund,BCLP 2020 purchase- snake prot,AMAZON.COM
Community Resources,Other general supplies,01/11/2021,91.30,General Fund,BCLP 2020 purchase- wildlife r,ANIMAL CARE EQUIPMENT & S
Community Resources,Other general supplies,01/11/2021,195.98,General Fund,BCLP 2020 purchase- rescue tra,AMAZON.COM
Community Resources,Other general supplies,01/11/2021,449.99,General Fund,BCLP 2020 purchase- rescue tra,AMAZON.COM
Community Resources,Other general supplies,01/11/2021,159.90,General Fund,BCLP 2020 purchase- tactical f,AMAZON.COM
Community Resources,Other general supplies,01/11/2021,447.00,General Fund,BCLP 2020 purchase- binoculars,AMAZON.COM
Community Resources,Other general supplies,01/11/2021,188.39,General Fund,BCLP 2020 purchase- wildlife r,ANIMAL CARE EQUIPMENT & S
Community Resources,Other profess & tech services,01/11/2021,110.00,Golf Course Enterprise Fund,PEST CONTROL,TMX TERMINIX INTL
Community Resources,Other profess & tech services,01/11/2021,69.60,Golf Course Enterprise Fund,monthly pest control,TMX TERMINIX INTL
Community Resources,Other profess & tech services,01/11/2021,46.40,Golf Course Enterprise Fund,monthly pest control,TMX TERMINIX INTL
Community Resources,Other profess & tech services,01/11/2021,18.00,Golf Course Enterprise Fund,fees for gas cylinder storage,WEST METRO FIRE RESCU
Community Resources,Other profess & tech services,01/11/2021,12.00,Golf Course Enterprise Fund,fees for gas cylinder storage,WEST METRO FIRE RESCU
Community Resources,Other profess & tech services,01/11/2021,138.90,Open Space Fund,inv00029728 BCLP,CARDCONNECT
Community Resources,Other profess & tech services,01/11/2021,386.40,General Fund,inv00029728 Recreation,CARDCONNECT
Community Resources,Other profess & tech services,01/11/2021,23.60,General Fund,inv00029728 CR,CARDCONNECT
Community Resources,Other profess & tech services,01/11/2021,79.60,"Heritage, Culture & Arts Fund",inv00029728 HCA,CARDCONNECT
Community Resources,Other profess & tech services,01/11/2021,123.00,General Fund,CR and Courts Monthly Membersh,VOLGISTICS INC
Community Resources,Other profess & tech services,01/11/2021,117.00,Golf Course Enterprise Fund,November office cleanings,THE KEY PEOPLE COMPANY
Community Resources,Other profess & tech services,01/11/2021,78.00,Golf Course Enterprise Fund,November office cleanings,THE KEY PEOPLE COMPANY
Community Resources,Other profess & tech services,01/11/2021,434.80,Golf Course Enterprise Fund,inv00029728 Fox Hollow,CARDCONNECT
Community Resources,Other profess & tech services,01/11/2021,330.70,Golf Course Enterprise Fund,inv00029728 Homestead,CARDCONNECT
Community Resources,Other profess & tech services,01/11/2021,27.90,General Fund,inv00029728 WRC,CARDCONNECT
Community Resources,Other profess & tech services,01/11/2021,115.86,Open Space Fund,Shipping costs  - ship forestr,THE UPS STORE
Community Resources,Other profess & tech services,01/11/2021,345.75,General Fund,LesMills fees,LES MILLS US TRADING
Community Resources,Other profess & tech services,01/11/2021,245.65,General Fund,HLBP PEST CONTROL,ECOLAB PEST AS400
Community Resources,Other profess & tech services,01/11/2021,180.00,General Fund,2020 STARR BOILER INSPECTION,CO DEPT OF LABOR AND EMPLYMT
Community Resources,Other profess & tech services,01/11/2021,220.00,General Fund,GMRC BOILER INSPECTION,CO DEPT OF LABOR AND EMPLYMT
Community Resources,Other profess & tech services,01/11/2021,66.00,Open Space Fund,sharps container service,COLORADO MEDICAL WASTE
Community Resources,Other profess & tech services,01/11/2021,90.50,Open Space Fund,water for shop,WATER - COFFEE DELIVERY
Community Resources,Other profess & tech services,01/11/2021,14.99,"Heritage, Culture & Arts Fund",Creative Cloud Licensing CR/WA,ADOBE  ACROPRO SUBS
Community Resources,Other profess & tech services,01/11/2021,360.00,Open Space Fund,embroidery,US RECOGNITION
Community Resources,Other profess & tech services,01/11/2021,67.69,General Fund,Recycle,WASTE INDUSTRIES - NON-CO
Community Resources,Other profess & tech services,01/11/2021,500.00,General Fund,portolet(s),UNITED SITE SERVICES O
Community Resources,Other profess & tech services,01/11/2021,198.00,General Fund,portolet(s),UNITED SITE SERVICES O
Community Resources,Other profess & tech services,01/11/2021,427.00,"Heritage, Culture & Arts Fund",2020 Music Licensing,BROADCAST MUSIC INC
Community Resources,Other property services,01/11/2021,1040.00,General Fund,GENERATOR MAINTENANCE,"WAGNER EXCHANGE, LLC"
Community Resources,Other property services,01/11/2021,469.00,General Fund,PLAZA ELEVATOR REPAIR,BTS THYSSENKRUPP
Community Resources,Other property services,01/11/2021,135.00,General Fund,PD Academy - Sewer back up,SQ  REUNION SEWER & DRAIN
Community Resources,Other services,01/11/2021,24.00,General Fund,Dec. water service,IN  AQUA SERVE
Community Resources,Other small tools & equipment,01/11/2021,2505.30,General Fund,OHIO SHOP- rack system  for fi,WW GRAINGER
Community Resources,Other small tools & equipment,01/11/2021,73.11,Open Space Fund,Cell phone case -for Dzialo ne,AMAZON.COM
Community Resources,Other small tools & equipment,01/11/2021,0.99,Open Space Fund,Storage plan for Dzialo phone,APL APPLE ONLINE STORE
Community Resources,Other small tools & equipment,01/11/2021,-66.02,Open Space Fund,Refund for Cell phone case -fo,AMAZON.COM
Community Resources,Other small tools & equipment,01/11/2021,152.46,Open Space Fund,(4) Diameter tapes - Forestry,FORESTRY SUPPLIERS IN
Community Resources,Other small tools & equipment,01/11/2021,350.91,Open Space Fund,Supplies and materials South p,MURDOCH'S RANCH & HOME
Community Resources,Other small tools & equipment,01/11/2021,264.95,Open Space Fund,Fall arrest harness,POWER MANAGEMENT SYSTE
Community Resources,Other small tools & equipment,01/11/2021,209.74,Open Space Fund,Thermal gloves,ULINE   SHIP SUPPLIES
Community Resources,Other small tools & equipment,01/11/2021,161.95,General Fund,Mike Lowe - Ladder for truck,WW GRAINGER
Community Resources,Other small tools & equipment,01/11/2021,42.85,"Heritage, Culture & Arts Fund",Microphone Cleaner,FULL COMPASS SYSTEMS
Community Resources,Other small tools & equipment,01/11/2021,47.27,Open Space Fund,"Air cleaner, element for shop",BROADWAY TOTAL POWER
Community Resources,Other small tools & equipment,01/11/2021,2345.79,Open Space Fund,Replacement shop supplies - sh,MSC INDUSTRIAL SUPPLY
Community Resources,Other small tools & equipment,01/11/2021,83.88,Open Space Fund,Electrical fuses,MSC INDUSTRIAL SUPPLY
Community Resources,Other small tools & equipment,01/11/2021,86.11,Open Space Fund,Chain breaker- Forestry equipm,AMAZON.COM
Community Resources,Other small tools & equipment,01/11/2021,13.44,Open Space Fund,Forestry chain saw guide,AMAZON.COM
Community Resources,Other small tools & equipment,01/11/2021,96.29,Open Space Fund,Ratcheting crimper tool,AMAZON.COM
Community Resources,Other small tools & equipment,01/11/2021,38.45,Open Space Fund,"Wire cutter, electrical connec",AMAZON.COM
Community Resources,Other small tools & equipment,01/11/2021,85.30,Open Space Fund,electrical connectors,AMAZON.COM
Community Resources,Other small tools & equipment,01/11/2021,79.96,Open Space Fund,Replacement soap for shop area,AMAZON.COM
Community Resources,Other small tools & equipment,01/11/2021,687.18,Open Space Fund,Plumbing swivels for water tra,WW GRAINGER
Community Resources,Other small tools & equipment,01/11/2021,37.10,Open Space Fund,power cord/adapters to help wi,THE HOME DEPOT 1514
Community Resources,Other small tools & equipment,01/11/2021,5.15,Open Space Fund,Forestry chain saw guide,AMAZON.COM
Community Resources,Other small tools & equipment,01/11/2021,359.99,Open Space Fund,Code scanner - shop equipment,AMAZON.COM
Community Resources,Other small tools & equipment,01/11/2021,89.66,Open Space Fund,Rivet tool -,AMAZON.COM
Community Resources,Other small tools & equipment,01/11/2021,132.27,Open Space Fund,Hose for water and air hose ne,MSC INDUSTRIAL SUPPLY
Community Resources,Other small tools & equipment,01/11/2021,300.00,Open Space Fund,Deposit for rented trencher,THE HOME DEPOT 1514
Community Resources,Other small tools & equipment,01/11/2021,-25.15,Open Space Fund,Deposit returned for trencher,THE HOME DEPOT 1514
Community Resources,Other small tools & equipment,01/11/2021,65.85,Open Space Fund,Straps and tape measure,THE HOME DEPOT 1514
Community Resources,Other small tools & equipment,01/11/2021,97.97,General Fund,Chain for electric  chain saw,BOBCAT GOLDEN
Community Resources,Other small tools & equipment,01/11/2021,53.98,Open Space Fund,Leaf rakes,ACE HDWE OF JEWELL SQ
Community Resources,Other small tools & equipment,01/11/2021,37.50,Open Space Fund,Foam Insulation,THE HOME DEPOT 1514
Community Resources,Other small tools & equipment,01/11/2021,464.46,Open Space Fund,"Helmets, carabiners for forest",R&M SALES COMPANY INC
Community Resources,Other small tools & equipment,01/11/2021,389.56,Open Space Fund,Rope and supplies - Forestry,R&M SALES COMPANY INC
Community Resources,Other small tools & equipment,01/11/2021,16.98,Open Space Fund,Batteries - Forestry,THE HOME DEPOT 1514
Community Resources,Other small tools & equipment,01/11/2021,28.34,Open Space Fund,Fence repair materials adn sup,THE HOME DEPOT 1514
Community Resources,Photo supplies,01/11/2021,39.60,Golf Course Enterprise Fund,Crew photo for Christmas cards,WALGREENS #6621    Q03
Community Resources,Plumb. and elect. supplies,01/11/2021,613.54,General Fund,"URBAN PARKS- Stop and waste, p",PLUMBING AND HEATING SPEC
Community Resources,Plumb. and elect. supplies,01/11/2021,70.90,General Fund,URBAN PARKS- 1 1/2 ProPress Un,BAC APPLIANCE CENTER
Community Resources,Plumb. and elect. supplies,01/11/2021,33.17,General Fund,"BCLP- Flush valve seal kit, Fl",THE HOME DEPOT 1514
Community Resources,Plumb. and elect. supplies,01/11/2021,89.86,General Fund,Civic South-Mayors office remo,LOWES #01903
Community Resources,Plumb. and elect. supplies,01/11/2021,880.00,General Fund,Homestead golf -replace - repa,AEGIS LIFE AND FIRE SAFET
Community Resources,Plumb. and elect. supplies,01/11/2021,71.92,General Fund,City shop-tie downs for our ne,LOWES #01903
Community Resources,Plumb. and elect. supplies,01/11/2021,352.00,General Fund,Fox Hollow maintenance shop-An,AEGIS LIFE AND FIRE SAFET
Community Resources,Plumb. and elect. supplies,01/11/2021,1144.52,General Fund,"Civic center -parking garage,",AEGIS LIFE AND FIRE SAFET
Community Resources,Plumb. and elect. supplies,01/11/2021,352.00,General Fund,Fox Hollow pro shop- Annual FA,AEGIS LIFE AND FIRE SAFET
Community Resources,Postage & delivery,01/11/2021,56.46,Golf Course Enterprise Fund,RETURNED TAYLOR MADE DRIVERS,UPS 000000YR7488319
Community Resources,"Printing, copying & binding",01/11/2021,1000.00,"Heritage, Culture & Arts Fund",PO 10450 Invoice 5086 Communit,THIRST COLORADO
Community Resources,"Printing, copying & binding",01/11/2021,4535.00,General Fund,PO 10450 Invoice 5084 Communit,THIRST COLORADO
Community Resources,Recreational supplies,01/11/2021,68.32,General Fund,lemon dc,STAPLES
Community Resources,Recreational supplies,01/11/2021,117.96,General Fund,"mop bucket, board, hooks",THE HOME DEPOT 1514
Community Resources,Recreational supplies,01/11/2021,1412.37,General Fund,"soap, paper towels, wipes",WESTERN PAPER DISTRIBUTOR
Community Resources,Recreational supplies,01/11/2021,-77.86,General Fund,transaction with tax void,TARGET        00027177
Community Resources,Recreational supplies,01/11/2021,72.00,General Fund,towels,TARGET        00027177
Community Resources,Recreational supplies,01/11/2021,77.86,General Fund,transaction with tax to be voi,TARGET        00027177
Community Resources,Recreational supplies,01/11/2021,7.48,General Fund,vinyl gloves,STAPLES
Community Resources,Recreational supplies,01/11/2021,32.20,General Fund,nitrile gloves,STAPLES
Community Resources,Recreational supplies,01/11/2021,217.90,General Fund,"batteries, lemon dc, knives",STAPLES
Community Resources,Recreational supplies,01/11/2021,952.39,General Fund,paper towels & tp,WESTERN PAPER DISTRIBUTOR
Community Resources,Recreational supplies,01/11/2021,172.20,General Fund,"napkins, gloves, batteries",STAPLES
Community Resources,Recreational supplies,01/11/2021,163.92,General Fund,"trigger sprays, outdoor covers",AMAZON.COM
Community Resources,Recreational supplies,01/11/2021,430.00,General Fund,equipment repair,PUSH PEDAL PULL
Community Resources,Recreational supplies,01/11/2021,6.60,General Fund,wall calendar,STAPLES
Community Resources,Recreational supplies,01/11/2021,3.29,General Fund,econo pump,STAPLES
Community Resources,Recreational supplies,01/11/2021,6.09,General Fund,dispensing pump,STAPLES
Community Resources,Recreational supplies,01/11/2021,178.26,General Fund,"knives, lemon dc, liners",STAPLES
Community Resources,Recreational supplies,01/11/2021,52.00,"Heritage, Culture & Arts Fund",Table cloths for youth and mes,AMAZON.COM
Community Resources,Recreational supplies,01/11/2021,8.99,"Heritage, Culture & Arts Fund",plastic magnifying glasses for,AMAZON.COM
Community Resources,Recreational supplies,01/11/2021,69.00,"Heritage, Culture & Arts Fund",camera stabilizer for virtual,AMAZON.COM
Community Resources,Recreational supplies,01/11/2021,-69.00,"Heritage, Culture & Arts Fund",Not able to pick up package. R,AMAZON.COM
Community Resources,Recreational supplies,01/11/2021,69.00,"Heritage, Culture & Arts Fund",reorder of camera stabilizer f,AMAZON.COM
Community Resources,Recreational supplies,01/11/2021,177.00,General Fund,Guard supplies for Katherine a,LIFEGUARD STORE - ONLINE
Community Resources,Recreational supplies,01/11/2021,28.00,General Fund,Supplies to fix Carmody ramp,ACE HDWE OF JEWELL SQ
Community Resources,Recreational supplies,01/11/2021,671.92,General Fund,Portable A-frame signs,AMAZON.COM
Community Resources,Recreational supplies,01/11/2021,975.79,General Fund,Hand sanitizer and Hand soap,WESTERN PAPER DISTRIBUTOR
Community Resources,Recreational supplies,01/11/2021,50.00,"Heritage, Culture & Arts Fund",Disputed Charge: Credit Card C,RMC OX-YOKE LLC
Community Resources,Recreational supplies,01/11/2021,54.49,"Heritage, Culture & Arts Fund",Disputed Charge: Credit Card C,KNIGHTS KNIVES
Community Resources,Recreational supplies,01/11/2021,77.64,"Heritage, Culture & Arts Fund",Disputed Charge: Credit Card C,BLADE HQ
Community Resources,Recreational supplies,01/11/2021,137.99,"Heritage, Culture & Arts Fund",Disputed Charge: Credit Card C,MIDWEST GUN WORKS INC
Community Resources,Recreational supplies,01/11/2021,133.98,"Heritage, Culture & Arts Fund",Disputed Charge: Credit Card C,CNDNOUTDOOREQUIPCO
Community Resources,Recreational supplies,01/11/2021,37.91,"Heritage, Culture & Arts Fund",Disputed Charge: Credit Card C,OLD SOUTH FIREARMS LLC
Community Resources,Recreational supplies,01/11/2021,140.00,General Fund,BCLP storage containers,HAULAWAY STORAGE CONTAINE
Community Resources,Recreational supplies,01/11/2021,3.49,General Fund,Clorox wipes,TARGET        00027177
Community Resources,Recreational supplies,01/11/2021,80.82,General Fund,Employee recognition supplies,TARGET        00027177
Community Resources,Recreational supplies,01/11/2021,1282.04,General Fund,Morse Park pool lift upgrade-r,POOLWEBAQUATICTECH
Community Resources,Recreational supplies,01/11/2021,90.00,General Fund,Morse Park pool 2020 hazmat pe,WEST METRO FIRE RESCU
Community Resources,Recreational supplies,01/11/2021,90.00,General Fund,Whitlock pool 2020 hazmat perm,WEST METRO FIRE RESCU
Community Resources,Recreational supplies,01/11/2021,90.00,General Fund,Carmody pool 2020 hazmat permi,WEST METRO FIRE RESCU
Community Resources,Recreational supplies,01/11/2021,90.00,General Fund,Link pool 2020 hazmat permit f,WEST METRO FIRE RESCU
Community Resources,Recreational supplies,01/11/2021,29.28,"Heritage, Culture & Arts Fund","Pottery misc supplies - tape,",AMAZON.COM
Community Resources,Recreational supplies,01/11/2021,73.46,"Heritage, Culture & Arts Fund",Paper towels for pottery studi,AMAZON.COM
Community Resources,Recreational supplies,01/11/2021,33.00,General Fund,Current CHSA Gymnastics Rule B,NATIONAL FEDERATION OF ST
Community Resources,Recreational supplies,01/11/2021,-18.55,General Fund,Refund for tax  charged on cli,CAMP SAVER
Community Resources,Recreational supplies,01/11/2021,19.99,General Fund,Lightning to USB cord for gymn,TARGET        00027177
Community Resources,Recreational supplies,01/11/2021,41.82,General Fund,Trash Service,WASTE MGMT WM EZPAY
Community Resources,Recreational supplies,01/11/2021,690.00,General Fund,Staff Supplies,IN  SUNNY COMMUNICATIONS
Community Resources,Recreational supplies,01/11/2021,114.00,General Fund,Staff Certification,AMERICAN RED CROSS/WOR
Community Resources,Recreational supplies,01/11/2021,600.16,General Fund,SAS Program umbrellas movie li,MOTION PICTURE LICENSI
Community Resources,Recreational supplies,01/11/2021,140.00,General Fund,BCLP storage containers,HAULAWAY STORAGE CONTAINE
Community Resources,Recreational supplies,01/11/2021,58.78,General Fund,Group ex class supplies,TARGET        00027177
Community Resources,Recreational supplies,01/11/2021,624.45,General Fund,Additional digital pace clock,SP   SWIMNERD
Community Resources,Rent - land & buildings,01/11/2021,397.00,General Fund,Car No 25,GSA-FINANCE DIVISON
Community Resources,Rental of equipment & vehicles,01/11/2021,3989.26,Golf Course Enterprise Fund,GOLF CART RENTAL,COLORADO GOLF AND TURF IN
Community Resources,Rental of equipment & vehicles,01/11/2021,1450.64,Golf Course Enterprise Fund,GOLF CART RENTAL,COLORADO GOLF AND TURF IN
Community Resources,Repair & maintenance supplies,01/11/2021,208.13,Open Space Fund,Graffiti remover for the Parks,ZEP SALES AND SERVICE
Community Resources,Repair & maintenance supplies,01/11/2021,69.00,Golf Course Enterprise Fund,OUTDOOR HEATER GLASS,AZ PATIO HEATERS LLC
Community Resources,Repair & maintenance supplies,01/11/2021,43.75,Golf Course Enterprise Fund,ADDITIONAL GATE SIGNS,FASTSIGNS
Community Resources,Repair & maintenance supplies,01/11/2021,37.10,Golf Course Enterprise Fund,GATE CLOSING SIGNS,FASTSIGNS
Community Resources,Repair & maintenance supplies,01/11/2021,69.00,Golf Course Enterprise Fund,OUTDOOR HEATER GLASS,AZ PATIO HEATERS LLC
Community Resources,Repair & maintenance supplies,01/11/2021,298.00,General Fund,power washers,THE HOME DEPOT 1514
Community Resources,Repair & maintenance supplies,01/11/2021,9.98,Open Space Fund,RV anti-freeze-Lakewood Park b,GREEN MOUNTAIN ACE HDW
Community Resources,Repair & maintenance supplies,01/11/2021,9.99,Open Space Fund,Phone charger,OFFICE DEPOT #1080
Community Resources,Repair & maintenance supplies,01/11/2021,47.98,Open Space Fund,Floormats and snowbrush for tr,OREILLY AUTO  00027128
Community Resources,Repair & maintenance supplies,01/11/2021,72.91,Open Space Fund,"Toolbox, screwdrivers and duct",THE HOME DEPOT 1514
Community Resources,Repair & maintenance supplies,01/11/2021,28.34,Open Space Fund,"Truck bed anchors, bungee cord",THE HOME DEPOT 1514
Community Resources,Repair & maintenance supplies,01/11/2021,1320.00,Open Space Fund,Ecotraction Pro for the Parks,WW GRAINGER
Community Resources,Repair & maintenance supplies,01/11/2021,35.95,Open Space Fund,Door keys for trucks 3024 and,GREEN MOUNTAIN ACE HDW
Community Resources,Repair & maintenance supplies,01/11/2021,145.77,Golf Course Enterprise Fund,pest control supplies,GEMPLER'S
Community Resources,Repair & maintenance supplies,01/11/2021,97.18,Golf Course Enterprise Fund,pest control supplies,GEMPLER'S
Community Resources,Repair & maintenance supplies,01/11/2021,82.80,Open Space Fund,Paint for the north crew.,SHERWIN WILLIAMS 701642
Community Resources,Repair & maintenance supplies,01/11/2021,183.90,Grants Fund (Oper & Capital),Dryer repair at Lasley,"BEST SERVICE COMPANY,"
Community Resources,Repair & maintenance supplies,01/11/2021,106.45,Open Space Fund,Carriage and Hex bolts for Bel,THE HOME DEPOT 1514
Community Resources,Repair & maintenance supplies,01/11/2021,117.81,Open Space Fund,2-12 ton commercial  bottle ja,THE HOME DEPOT 1514
Community Resources,Repair & maintenance supplies,01/11/2021,91.96,Open Space Fund,2-12 ton commercial bottle jac,THE HOME DEPOT 1514
Community Resources,Repair & maintenance supplies,01/11/2021,37.90,Open Space Fund,Paint for Meadowlark Park name,THE HOME DEPOT 1514
Community Resources,Repair & maintenance supplies,01/11/2021,37.89,Open Space Fund,Metal cutting grinder wheels f,THE HOME DEPOT 1514
Community Resources,Repair & maintenance supplies,01/11/2021,73.96,Open Space Fund,Duct tape for truck 356.  Sawh,LOWES #01903
Community Resources,Repair & maintenance supplies,01/11/2021,14.98,Golf Course Enterprise Fund,silicone for bench repair,GREEN MOUNTAIN ACE HDW
Community Resources,Repair & maintenance supplies,01/11/2021,9.99,Golf Course Enterprise Fund,silicone for bench repair,GREEN MOUNTAIN ACE HDW
Community Resources,Repair & maintenance supplies,01/11/2021,413.10,Open Space Fund,Ballfield fence shade tarp-Add,SULLIVAN GLOBAL
Community Resources,Repair & maintenance supplies,01/11/2021,19.99,Open Space Fund,Concrete paint for Addenbrooke,GREEN MOUNTAIN ACE HDW
Community Resources,Repair & maintenance supplies,01/11/2021,474.00,Open Space Fund,Light pole base covers-Link Re,LIGHTMART.COM
Community Resources,Repair & maintenance supplies,01/11/2021,17.23,Golf Course Enterprise Fund,knife and screws for repairs,LOWES #01903
Community Resources,Repair & maintenance supplies,01/11/2021,11.50,Golf Course Enterprise Fund,knife and screws for repairs,LOWES #01903
Community Resources,Repair & maintenance supplies,01/11/2021,21.54,Golf Course Enterprise Fund,furnace filters for office,LOWES #01903
Community Resources,Repair & maintenance supplies,01/11/2021,14.36,Golf Course Enterprise Fund,furnace filters for office,LOWES #01903
Community Resources,Repair & maintenance supplies,01/11/2021,40.40,Golf Course Enterprise Fund,wood putty for homestead const,LOWES #01903
Community Resources,Repair & maintenance supplies,01/11/2021,39.07,Golf Course Enterprise Fund,"repair supplies, paint, caster",LOWES #01903
Community Resources,Repair & maintenance supplies,01/11/2021,26.05,Golf Course Enterprise Fund,"repair supplies, paint, caster",LOWES #01903
Community Resources,Repair & maintenance supplies,01/11/2021,164.40,Golf Course Enterprise Fund,shelving repair for shop,WESTERN STORAGE AND HANDL
Community Resources,Repair & maintenance supplies,01/11/2021,109.60,Golf Course Enterprise Fund,shelving repair for shop,WESTERN STORAGE AND HANDL
Community Resources,Repair & maintenance supplies,01/11/2021,185.92,Golf Course Enterprise Fund,shingles for homestead water c,LOWES #01903
Community Resources,Repair & maintenance supplies,01/11/2021,34.34,Golf Course Enterprise Fund,paint for water cooler stands,DIAMOND VOGEL PAINT CENT
Community Resources,Repair & maintenance supplies,01/11/2021,32.40,Golf Course Enterprise Fund,ice melt,CPS DISTRIBUTORS #18
Community Resources,Repair & maintenance supplies,01/11/2021,21.60,Golf Course Enterprise Fund,ice melt,CPS DISTRIBUTORS #18
Community Resources,Repair & maintenance supplies,01/11/2021,149.99,Open Space Fund,Tarp to cover Ice-slicer,MURDOCH'S RANCH & HOME
Community Resources,Repair & maintenance supplies,01/11/2021,22.57,Open Space Fund,Concrete anchors for trash can,THE HOME DEPOT 1514
Community Resources,Repair & maintenance supplies,01/11/2021,201.01,Open Space Fund,Restock of misc.Ross shop supp,THE HOME DEPOT 1514
Community Resources,Repairs & maint - bldgs,01/11/2021,-944.64,Open Space Fund,PO 10424 Credit Memo 822010931,TANDUS  FLOORING
Community Resources,Repairs & maint - bldgs,01/11/2021,119.00,Grants Fund (Oper & Capital),Pest Control at Patt Complex,CRITTER CONTROL MARIETTA
Community Resources,Repairs & maint - bldgs,01/11/2021,352.06,Grants Fund (Oper & Capital),Printer services at 11th Ave f,PA PAYMENT SERVICES
Community Resources,Repairs & maint - bldgs,01/11/2021,65.41,General Fund,Recycle,WASTE INDUSTRIES - NON-CO
Community Resources,Repairs & maint-motor vehicles,01/11/2021,152.29,Golf Course Enterprise Fund,"acetylene gas, oxygen, and 5 y",ROCKY MOUNTAIN AIR SOLUTI
Community Resources,Repairs & maint-motor vehicles,01/11/2021,5.94,Golf Course Enterprise Fund,bolts for fox hollow mowers,GREEN MOUNTAIN ACE HDW
Community Resources,Repairs & maint-motor vehicles,01/11/2021,20.37,Golf Course Enterprise Fund,oil seals,WHISLER BEARING CO
Community Resources,Repairs & maint-motor vehicles,01/11/2021,13.58,Golf Course Enterprise Fund,oil seals,WHISLER BEARING CO
Community Resources,Repairs & maint-motor vehicles,01/11/2021,24.64,Golf Course Enterprise Fund,decals for toro equipment,LL JOHNSON DISTRIBUTING CO
Community Resources,Repairs & maint-motor vehicles,01/11/2021,16.44,Golf Course Enterprise Fund,decals for toro equipment,LL JOHNSON DISTRIBUTING CO
Community Resources,Repairs & maint-motor vehicles,01/11/2021,14.78,Golf Course Enterprise Fund,cart parts for stock,GTI GOLF CARS
Community Resources,Repairs & maint-motor vehicles,01/11/2021,9.86,Golf Course Enterprise Fund,cart parts for stock,GTI GOLF CARS
Community Resources,Repairs & maint-motor vehicles,01/11/2021,45.07,Golf Course Enterprise Fund,shop tools and supplies.  Tax,LOWES #01903
Community Resources,Repairs & maint-motor vehicles,01/11/2021,30.06,Golf Course Enterprise Fund,shop tools and supplies.  Tax,LOWES #01903
Community Resources,Repairs & maint-motor vehicles,01/11/2021,228.43,Golf Course Enterprise Fund,"acetylene gas, oxygen, and 5 y",ROCKY MOUNTAIN AIR SOLUTI
Community Resources,Repairs & maint-motor vehicles,01/11/2021,27.16,Golf Course Enterprise Fund,fox hollow mule repair parts,HDD SUN ENTERPRISES IN
Community Resources,Repairs & maint-motor vehicles,01/11/2021,391.84,Golf Course Enterprise Fund,seat motor for fox hollow roug,LL JOHNSON DISTRIBUTING CO
Community Resources,Repairs & maint-motor vehicles,01/11/2021,152.62,Golf Course Enterprise Fund,homestead cart repair parts,COLORADO GOLF AND TURF IN
Community Resources,Repairs & maint-motor vehicles,01/11/2021,19.51,Golf Course Enterprise Fund,fox hollow mule repair parts,HDD SUN ENTERPRISES IN
Community Resources,Repairs & maint-motor vehicles,01/11/2021,83.97,Golf Course Enterprise Fund,seal and bearing stock,WHISLER BEARING CO
Community Resources,Repairs & maint-motor vehicles,01/11/2021,55.99,Golf Course Enterprise Fund,seal and bearing stock,WHISLER BEARING CO
Community Resources,Repairs & maint-motor vehicles,01/11/2021,136.82,Golf Course Enterprise Fund,3% fee charged for credit card,VITAL PARTS
Community Resources,Repairs & maint-motor vehicles,01/11/2021,91.22,Golf Course Enterprise Fund,3% fee charged for credit card,VITAL PARTS
Community Resources,Repairs & maint-motor vehicles,01/11/2021,460.89,Golf Course Enterprise Fund,fox hollow lastec mower parts,COLORADO GOLF AND TURF IN
Community Resources,Repairs & maint-motor vehicles,01/11/2021,73.48,Golf Course Enterprise Fund,hydraulic filters,OREILLY AUTO  00027128
Community Resources,Repairs & maint-motor vehicles,01/11/2021,49.00,Golf Course Enterprise Fund,hydraulic filters,OREILLY AUTO  00027128
Community Resources,Repairs & maint-motor vehicles,01/11/2021,143.58,Golf Course Enterprise Fund,penetrating oil.  tax was char,"MOMAR, INC"
Community Resources,Repairs & maint-motor vehicles,01/11/2021,95.73,Golf Course Enterprise Fund,penetrating oil.  tax was char,"MOMAR, INC"
Community Resources,Repairs & maint-motor vehicles,01/11/2021,49.23,Golf Course Enterprise Fund,plate scrapers for snow blower,GSH SALES LLC
Community Resources,Repairs & maint-motor vehicles,01/11/2021,32.82,Golf Course Enterprise Fund,plate scrapers for snow blower,GSH SALES LLC
Community Resources,Repairs & maint-motor vehicles,01/11/2021,31.70,Golf Course Enterprise Fund,v-belts for shop,OREILLY AUTO  00027128
Community Resources,Repairs & maint-motor vehicles,01/11/2021,21.14,Golf Course Enterprise Fund,v-belts for shop,OREILLY AUTO  00027128
Community Resources,Repairs & maint-motor vehicles,01/11/2021,229.60,Golf Course Enterprise Fund,tractor seat and cushion,POTESTIO BROTHERS EQUIPME
Community Resources,Repairs & maint-motor vehicles,01/11/2021,153.07,Golf Course Enterprise Fund,tractor seat and cushion,POTESTIO BROTHERS EQUIPME
Community Resources,Repairs & maint-motor vehicles,01/11/2021,2692.35,Golf Course Enterprise Fund,replacement turf mower reels,RR PRODUCTS INC
Community Resources,Repairs & maint-motor vehicles,01/11/2021,1794.90,Golf Course Enterprise Fund,replacement turf mower reels,RR PRODUCTS INC
Community Resources,Repairs & maint-motor vehicles,01/11/2021,75.84,Golf Course Enterprise Fund,shop fastener supplies,HI-STRENGTH BOLT CO
Community Resources,Repairs & maint-motor vehicles,01/11/2021,50.56,Golf Course Enterprise Fund,shop fastener supplies,HI-STRENGTH BOLT CO
Community Resources,Sanitation,01/11/2021,8.26,General Fund,12266 W WISCONSIN DR,GREEN MOUNTAIN WATER
Community Resources,Sanitation,01/11/2021,313.88,General Fund,13198 W GREEN MOUNTAIN DR,GREEN MOUNTAIN WATER
Community Resources,Sanitation,01/11/2021,8.26,General Fund,12268 W WISCONSIN DR,GREEN MOUNTAIN WATER
Community Resources,Sanitation,01/11/2021,70.21,Open Space Fund,12100 W ALAMEDA PKWY,GREEN MOUNTAIN WATER
Community Resources,Sanitation,01/11/2021,401.92,Golf Course Enterprise Fund,compost removal,WASTE INDUSTRIES - NON-CO
Community Resources,Sanitation,01/11/2021,8.26,Open Space Fund,600 S KIPLING ST,GREEN MOUNTAIN WATER
Community Resources,Sanitation,01/11/2021,8.26,Open Space Fund,10600 W VIRGINIA AVE,GREEN MOUNTAIN WATER
Community Resources,Sanitation,01/11/2021,8.26,General Fund,12258 W WISCONSIN DR,GREEN MOUNTAIN WATER
Community Resources,Sanitation,01/11/2021,602.86,Golf Course Enterprise Fund,compost removal,WASTE INDUSTRIES - NON-CO
Community Resources,Sanitation,01/11/2021,972.13,Open Space Fund,Recycle,WASTE INDUSTRIES - NON-CO
Community Resources,Sanitation,01/11/2021,83.39,Golf Course Enterprise Fund,Recycle,WASTE INDUSTRIES - NON-CO
Community Resources,Sanitation,01/11/2021,171.50,Golf Course Enterprise Fund,Recycle,WASTE INDUSTRIES - NON-CO
Community Resources,Sanitation,01/11/2021,49.90,Golf Course Enterprise Fund,Recycle,WASTE INDUSTRIES - NON-CO
Community Resources,Sanitation,01/11/2021,1226.00,Open Space Fund,portolet(s),UNITED SITE SERVICES O
Community Resources,Sanitation,01/11/2021,6870.00,Open Space Fund,portolet(s),UNITED SITE SERVICES O
Community Resources,Sanitation,01/11/2021,42.66,"Heritage, Culture & Arts Fund",Trash Service,WASTE MGMT WM EZPAY
Community Resources,Sanitation,01/11/2021,1247.52,General Fund,Trash Service,WASTE MGMT WM EZPAY
Community Resources,Sanitation,01/11/2021,120.42,Golf Course Enterprise Fund,Trash Service,WASTE MGMT WM EZPAY
Community Resources,Sanitation,01/11/2021,140.49,Golf Course Enterprise Fund,Trash Service,WASTE MGMT WM EZPAY
Community Resources,Sanitation,01/11/2021,105.85,Golf Course Enterprise Fund,Trash Service,WASTE MGMT WM EZPAY
Community Resources,Sanitation,01/11/2021,2116.81,Open Space Fund,Trash Service,WASTE MGMT WM EZPAY
Community Resources,Sanitation,01/11/2021,2729.78,General Fund,Trash Service,WASTE MGMT WM EZPAY
Community Resources,Telecommunications,01/11/2021,27.28,"Heritage, Culture & Arts Fund",Cell Phone Case,AMAZON.COM
Community Resources,Telecommunications,01/11/2021,-19.95,"Heritage, Culture & Arts Fund",Cell Phone Case Return,AMAZON.COM
Community Resources,Telecommunications,01/11/2021,0.99,Golf Course Enterprise Fund,"Telecommunications, I-phone st",APL APPLE ONLINE STORE
Community Resources,Telecommunications,01/11/2021,0.99,Golf Course Enterprise Fund,"Telecommunications, I-phone st",APL APPLE ONLINE STORE
Community Resources,Telecommunications,01/11/2021,251.52,General Fund,City Cell Phones,ATT BILL PAYMENT
Community Resources,Telecommunications,01/11/2021,448.02,Open Space Fund,City Cell Phones,ATT BILL PAYMENT
Community Resources,Telecommunications,01/11/2021,203.19,Open Space Fund,City Cell Phones,ATT BILL PAYMENT
Community Resources,Telecommunications,01/11/2021,55.02,General Fund,City Cell Phones,ATT BILL PAYMENT
Community Resources,Telecommunications,01/11/2021,98.25,General Fund,City Cell Phones,ATT BILL PAYMENT
Community Resources,Telecommunications,01/11/2021,344.71,General Fund,City Cell Phones,ATT BILL PAYMENT
Community Resources,Telecommunications,01/11/2021,646.92,General Fund,City Cell Phones,ATT BILL PAYMENT
Community Resources,Telecommunications,01/11/2021,586.56,Grants Fund (Oper & Capital),City Cell Phones,ATT BILL PAYMENT
Community Resources,Telecommunications,01/11/2021,110.04,Grants Fund (Oper & Capital),City Cell Phones,ATT BILL PAYMENT
Community Resources,Telecommunications,01/11/2021,8.01,General Fund,City Pagers,AMERICAN MESSAGING
Community Resources,Telecommunications,01/11/2021,128.40,"Heritage, Culture & Arts Fund",Comcast Services,COMCAST DENVER CS 1X
Community Resources,Telecommunications,01/11/2021,254.25,General Fund,Comcast Services,COMCAST DENVER CS 1X
Community Resources,Telecommunications,01/11/2021,323.20,General Fund,Comcast Services,COMCAST DENVER CS 1X
Community Resources,Telecommunications,01/11/2021,84.90,General Fund,Comcast Services,COMCAST DENVER CS 1X
Community Resources,Telecommunications,01/11/2021,88.40,General Fund,Comcast Services,COMCAST DENVER CS 1X
Community Resources,Telecommunications,01/11/2021,7.99,General Fund,Comcast Services,COMCAST DENVER CS 1X
Community Resources,Telecommunications,01/11/2021,297.40,General Fund,Comcast Services,COMCAST DENVER CS 1X
Community Resources,Telecommunications,01/11/2021,240.24,Open Space Fund,PD Aircards,VERIZON WIRELESS
Community Resources,Telecommunications,01/11/2021,84.90,General Fund,Comcast Services,COMCAST DENVER CS 1X
Community Resources,Telecommunications,01/11/2021,670.00,Golf Course Enterprise Fund,Comcast Services,COMCAST DENVER CS 1X
Community Resources,Telecommunications,01/11/2021,539.35,Golf Course Enterprise Fund,Comcast Services,COMCAST DENVER CS 1X
Community Resources,Telecommunications,01/11/2021,169.80,General Fund,Comcast Services,COMCAST DENVER CS 1X
Community Resources,Telecommunications,01/11/2021,12.02,Golf Course Enterprise Fund,City Cell Phones,ATT BILL PAYMENT
Community Resources,Telecommunications,01/11/2021,2131.15,General Fund,City Cell Phones,ATT BILL PAYMENT
Community Resources,Telecommunications,01/11/2021,64.02,General Fund,City Cell Phones,ATT BILL PAYMENT
Community Resources,Telecommunications,01/11/2021,110.04,General Fund,City Cell Phones,ATT BILL PAYMENT
Community Resources,Telecommunications,01/11/2021,81.28,General Fund,City Cell Phones,ATT BILL PAYMENT
Community Resources,Telecommunications,01/11/2021,55.02,General Fund,City Cell Phones,ATT BILL PAYMENT
Community Resources,Telecommunications,01/11/2021,110.04,Golf Course Enterprise Fund,City Cell Phones,ATT BILL PAYMENT
Community Resources,Telecommunications,01/11/2021,12.02,Golf Course Enterprise Fund,City Cell Phones,ATT BILL PAYMENT
Community Resources,Telecommunications,01/11/2021,110.04,Golf Course Enterprise Fund,City Cell Phones,ATT BILL PAYMENT
Community Resources,Telecommunications,01/11/2021,81.28,Open Space Fund,City Cell Phones,ATT BILL PAYMENT
Community Resources,Telecommunications,01/11/2021,12.02,General Fund,City Cell Phones,ATT BILL PAYMENT
Community Resources,Telecommunications,01/11/2021,55.02,General Fund,City Cell Phones,ATT BILL PAYMENT
Community Resources,Telecommunications,01/11/2021,55.02,General Fund,City Cell Phones,ATT BILL PAYMENT
Community Resources,Telecommunications,01/11/2021,55.02,General Fund,City Cell Phones,ATT BILL PAYMENT
Community Resources,Telecommunications,01/11/2021,107.54,General Fund,City Cell Phones,ATT BILL PAYMENT
Community Resources,Telecommunications,01/11/2021,55.02,General Fund,City Cell Phones,ATT BILL PAYMENT
Community Resources,Telecommunications,01/11/2021,26.26,General Fund,City Cell Phones,ATT BILL PAYMENT
Community Resources,Telecommunications,01/11/2021,150.48,General Fund,City Cell Phones,ATT BILL PAYMENT
Community Resources,Telecommunications,01/11/2021,118.60,General Fund,City Cell Phones,ATT BILL PAYMENT
Community Resources,Telecommunications,01/11/2021,382.35,General Fund,City Cell Phones,ATT BILL PAYMENT
Community Resources,Telecommunications,01/11/2021,98.25,"Heritage, Culture & Arts Fund",City Cell Phones,ATT BILL PAYMENT
Community Resources,Telecommunications,01/11/2021,110.04,"Heritage, Culture & Arts Fund",City Cell Phones,ATT BILL PAYMENT
Community Resources,Telecommunications,01/11/2021,275.10,"Heritage, Culture & Arts Fund",City Cell Phones,ATT BILL PAYMENT
Community Resources,Telecommunications,01/11/2021,55.02,"Heritage, Culture & Arts Fund",City Cell Phones,ATT BILL PAYMENT
Community Resources,Telecommunications,01/11/2021,55.02,"Heritage, Culture & Arts Fund",City Cell Phones,ATT BILL PAYMENT
Community Resources,Telecommunications,01/11/2021,55.02,"Heritage, Culture & Arts Fund",City Cell Phones,ATT BILL PAYMENT
Community Resources,Telecommunications,01/11/2021,1039.51,General Fund,City Cell Phones,ATT BILL PAYMENT
Community Resources,Telecommunications,01/11/2021,369.92,Open Space Fund,City Cell Phones,ATT BILL PAYMENT
Community Resources,Telecommunications,01/11/2021,0.99,General Fund,Phone Storage,APL APPLE ONLINE STORE
Community Resources,Training,01/11/2021,170.00,General Fund,SS Certifications,TVY SILVERSNEAKERS
Community Resources,Training,01/11/2021,75.00,Open Space Fund,Rocky Mtn Turf-grass Virtual/W,"ROCKY MOUNTAIN REAGENTS,"
Community Resources,Training,01/11/2021,265.00,Grants Fund (Oper & Capital),Curriculum renewal,PARENTSASTEACHERS
Community Resources,Training,01/11/2021,400.00,Open Space Fund,Recertification class for back,IAPMO
Community Resources,Training,01/11/2021,75.00,Open Space Fund,RMRTA virtual conference and w,"ROCKY MOUNTAIN REAGENTS,"
Community Resources,Training,01/11/2021,75.00,Open Space Fund,Rocky Mountain Regional Turf g,"ROCKY MOUNTAIN REAGENTS,"
Community Resources,Training,01/11/2021,205.00,Open Space Fund,Training/test for earning CEU',PESTEDCOMLL
Community Resources,Training,01/11/2021,175.00,Open Space Fund,RMRTA virtual conference and w,"ROCKY MOUNTAIN REAGENTS,"
Community Resources,Training,01/11/2021,51.89,Grants Fund (Oper & Capital),staff training supplies,AMAZON.COM
Community Resources,Training,01/11/2021,70.00,"Heritage, Culture & Arts Fund",Professional Development: Emer,LABX - EXTREME EVEN...
Community Resources,Training,01/11/2021,54.67,Open Space Fund,Pesticide applicator workshop,EB ONLINE LIVE COLORA
Community Resources,Training,01/11/2021,395.00,Grants Fund (Oper & Capital),Training Class for Education C,INSTRUCTIONAL COACHING GR
Community Resources,Training,01/11/2021,200.00,Open Space Fund,Pesticide webinar for employee,SQ  MOUNTAIN WEST PESTICI
Community Resources,Training,01/11/2021,187.00,Open Space Fund,Training adn dues - ISA for Ru,ISA
Community Resources,Training,01/11/2021,395.00,Grants Fund (Oper & Capital),Professional Development Train,INSTRUCTIONAL COACHING GR
Community Resources,Training,01/11/2021,53.13,Open Space Fund,2 Ice rescue training booklets,DIVE RESCUE INTERNATIONAL
Community Resources,Travel - auto expense,01/11/2021,21.28,General Fund,mileage reimburse 12/8-12/28,"FEDAK, NESTOR L"
Community Resources,Travel - auto expense,01/11/2021,33.35,Golf Course Enterprise Fund,2020 Mileage Reimbursement,"THOMAS, KELLY E"
Community Resources,Travel - auto expense,01/11/2021,25.88,Golf Course Enterprise Fund,2020 Mileage Reimbursement,"THOMAS, KELLY E"
Community Resources,Vehicle/Equipment Chargebacks,01/11/2021,318.49,Open Space Fund,Plow remote - unit # 3002,MASTERCRAFT TRUCK EQUI
Community Resources,Vehicle/Equipment Chargebacks,01/11/2021,185.87,Open Space Fund,"Oil, Air and hydraulic filter",WWW.ADVANCEAUTOPARTS
Community Resources,Vehicle/Equipment Chargebacks,01/11/2021,21.67,Open Space Fund,Radiator cap - Unit #610,WAGNER EQUIP CO PARTS
Community Resources,Vehicle/Equipment Chargebacks,01/11/2021,1218.00,Open Space Fund,Hose for versa vac Toro Unit,LL JOHNSON DISTRIBUTING CO
Community Resources,Vehicle/Equipment Chargebacks,01/11/2021,97.03,Open Space Fund,Solenoid for unit #385 plow,MASTERCRAFT TRUCK EQUI
Community Resources,Vehicle/Equipment Chargebacks,01/11/2021,227.15,Open Space Fund,"Oil, fluid and supplies",WWW.ADVANCEAUTOPARTS
Community Resources,Vehicle/Equipment Chargebacks,01/11/2021,88.91,Open Space Fund,Cover for plow - Unit #3909,MASTERCRAFT TRUCK EQUI
Community Resources,Vehicle/Equipment Chargebacks,01/11/2021,85.43,Open Space Fund,"Fuel line, o-rings BCLP Kubota",UNIVERSAL TRACTOR CO
Community Resources,Vehicle/Equipment Chargebacks,01/11/2021,45.61,Open Space Fund,Oil and fuel filter - BCLP Kub,UNIVERSAL TRACTOR CO
Community Resources,Vehicle/Equipment Chargebacks,01/11/2021,63.35,Open Space Fund,Replacement plow cap unit #302,AMAZON.COM
Community Resources,Water,01/11/2021,15.85,General Fund,12266 W WISCONSIN DR,GREEN MOUNTAIN WATER
Community Resources,Water,01/11/2021,21.62,General Fund,12258 W WISCONSIN DR,GREEN MOUNTAIN WATER
Community Resources,Water,01/11/2021,63.40,Open Space Fund,400 UNION BLVD,GREEN MOUNTAIN WATER
Community Resources,Water,01/11/2021,63.40,Open Space Fund,202 UNION BLVD,GREEN MOUNTAIN WATER
Community Resources,Water,01/11/2021,63.40,Open Space Fund,500 WRIGHT ST,GREEN MOUNTAIN WATER
Community Resources,Water,01/11/2021,243.25,Open Space Fund,190 WARD CT,GREEN MOUNTAIN WATER
Community Resources,Water,01/11/2021,15.85,Open Space Fund,13158 W UTAH AVE,GREEN MOUNTAIN WATER
Community Resources,Water,01/11/2021,15.85,Open Space Fund,12312 W 4TH AVE,GREEN MOUNTAIN WATER
Community Resources,Water,01/11/2021,15.85,Open Space Fund,197 S UNION BLVD,GREEN MOUNTAIN WATER
Community Resources,Water,01/11/2021,15.85,Open Space Fund,14050 W YALE PL,GREEN MOUNTAIN WATER
Community Resources,Water,01/11/2021,15.85,General Fund,12268 W WISCONSIN DR,GREEN MOUNTAIN WATER
Community Resources,Water,01/11/2021,756.53,Open Space Fund,2501 S GLADIOLA WAY,GREEN MOUNTAIN WATER
Community Resources,Water,01/11/2021,31.70,Open Space Fund,1950 S BEAR CREEK BLVD,GREEN MOUNTAIN WATER
Community Resources,Water,01/11/2021,31.70,Open Space Fund,2300 S BEAR CREEK BLVD,GREEN MOUNTAIN WATER
Community Resources,Water,01/11/2021,31.70,Open Space Fund,14353 W YALE PL,GREEN MOUNTAIN WATER
Community Resources,Water,01/11/2021,15.85,Open Space Fund,10090 W ALAMEDA AVE,GREEN MOUNTAIN WATER
Community Resources,Water,01/11/2021,15.85,Open Space Fund,1468 S WRIGHT ST,GREEN MOUNTAIN WATER
Community Resources,Water,01/11/2021,15.85,Open Space Fund,1374 S YANK ST,GREEN MOUNTAIN WATER
Community Resources,Water,01/11/2021,15.85,Open Space Fund,12686 W HAWAII AVE,GREEN MOUNTAIN WATER
Community Resources,Water,01/11/2021,15.85,Open Space Fund,13628 W UTAH AVE,GREEN MOUNTAIN WATER
Community Resources,Water,01/11/2021,15.85,Open Space Fund,13687 W UTAH AVE,GREEN MOUNTAIN WATER
Community Resources,Water,01/11/2021,129.79,Open Space Fund,12100 W ALAMEDA PKWY,GREEN MOUNTAIN WATER
Community Resources,Water,01/11/2021,126.80,Open Space Fund,10600 W VIRGINIA AVE,GREEN MOUNTAIN WATER
Community Resources,Water,01/11/2021,63.40,Open Space Fund,12412 W NEVADA DR,GREEN MOUNTAIN WATER
Community Resources,Water,01/11/2021,640.33,Open Space Fund,1682 S BEECH ST,GREEN MOUNTAIN WATER
Community Resources,Water,01/11/2021,579.16,General Fund,13198 W GREEN MOUNTAIN DR,GREEN MOUNTAIN WATER
Community Resources,Water,01/11/2021,1372.98,Open Space Fund,150 S KIPLING ST,GREEN MOUNTAIN WATER
Community Resources,Water,01/11/2021,220.17,Open Space Fund,500 ZANG ST,GREEN MOUNTAIN WATER
Community Resources,Water,01/11/2021,214.40,Open Space Fund,702 S KIPLING ST,GREEN MOUNTAIN WATER
Community Resources,Water,01/11/2021,214.40,Open Space Fund,704 S KIPLING ST,GREEN MOUNTAIN WATER
Community Resources,Water,01/11/2021,126.80,Open Space Fund,544 S SIMMS ST,GREEN MOUNTAIN WATER
Community Resources,Water,01/11/2021,1188.68,Open Space Fund,9815 W CEDAR AVE,GREEN MOUNTAIN WATER
Community Resources,Water,01/11/2021,126.80,Open Space Fund,764 S HOYT ST,GREEN MOUNTAIN WATER
Community Resources,Water,01/11/2021,63.40,Open Space Fund,10600 W KENTUCKY DR,GREEN MOUNTAIN WATER
Community Resources,Water,01/11/2021,311.48,Open Space Fund,12201 W GREEN MOUNTAIN DR,GREEN MOUNTAIN WATER
Community Resources,Water,01/11/2021,99.66,Open Space Fund,13200 W JEWELL AVE,GREEN MOUNTAIN WATER
Community Resources,Water,01/11/2021,15.85,General Fund,12276 W WISCONSIN DR,GREEN MOUNTAIN WATER
Community Resources,Water,01/11/2021,133.69,Open Space Fund,600 S KIPLING ST,GREEN MOUNTAIN WATER
Community Resources,Water,01/11/2021,600.00,Open Space Fund,Public drinking water,A1 DISCOUNT WATER
Finance,Books & Publications,01/11/2021,63.71,General Fund,Single Audit - Uniform Guidanc,COLUMBIA BOOKS. INC.
Finance,Books & Publications,01/11/2021,372.60,General Fund,PPC Payroll Tax Deskbook,TCD TTA-RESEARCH &CPE
Finance,Books & Publications,01/11/2021,31.18,General Fund,City Annual  subscription,CR  CONSUMER REPORTS
Finance,Cleaning & janitorial services,01/11/2021,600.00,Grants Fund (Oper & Capital),COVID - Line #113 - PW 2nd flo,CRIME SCENE CLEANERS
Finance,Cleaning & janitorial services,01/11/2021,1050.00,Grants Fund (Oper & Capital),COVID-19 LINE #113,CRIME SCENE CLEANERS
Finance,Cleaning & janitorial services,01/11/2021,625.09,Grants Fund (Oper & Capital),COVID-19 LINE #113,PALACE CONSTRUCTION CO
Finance,Cleaning supplies,01/11/2021,6.98,Grants Fund (Oper & Capital),Covid -19  Anti bacterial  wip,TARGET        00022251
Finance,Cleaning supplies,01/11/2021,7970.50,Grants Fund (Oper & Capital),"COVID, Line #113 - 5 -55 gall",WW GRAINGER
Finance,Cleaning supplies,01/11/2021,5127.35,Grants Fund (Oper & Capital),COVID - Line #113 - 5 Electros,WW GRAINGER
Finance,Cleaning supplies,01/11/2021,478.25,Grants Fund (Oper & Capital),COVID Signage #108,FASTSIGNS
Finance,Cleaning supplies,01/11/2021,2114.37,Grants Fund (Oper & Capital),COVID-19 Project #108,AMAZON.COM
Finance,Cleaning supplies,01/11/2021,212.73,Grants Fund (Oper & Capital),COVID-19 Project #108,AMAZON.COM
Finance,Cleaning supplies,01/11/2021,670.37,Grants Fund (Oper & Capital),COVID-19 Project #108,AMAZON.COM
Finance,Cleaning supplies,01/11/2021,18.43,Grants Fund (Oper & Capital),COVID-19 Project #108,AMAZON.COM
Finance,Computer equipment-non cap,01/11/2021,216.93,Grants Fund (Oper & Capital),DAT Cof Room,CDW GOVERNMENT
Finance,Computer equipment-non cap,01/11/2021,337.60,Grants Fund (Oper & Capital),COVID Civic center-Electrical,INTER-MOUNTAIN DISTR
Finance,Computer equipment-non cap,01/11/2021,124.56,Grants Fund (Oper & Capital),COVID Civic center-Electrical,LOWES #01903
Finance,Computer hardware,01/11/2021,5239.95,Grants Fund (Oper & Capital),PO 10674 Inv 75405-75442 LCC S,FORD AUDIO VIDEO - DEN
Finance,Computer software & supplies,01/11/2021,795.52,Grants Fund (Oper & Capital),PO 10685 Inv 1100796089 Okta L,IDU INSIGHT PUBLIC SEC
Finance,Computer software & supplies,01/11/2021,6350.81,Grants Fund (Oper & Capital),PO 10685 Inv 1100796089 Okta L,IDU INSIGHT PUBLIC SEC
Finance,Computer software & supplies,01/11/2021,11266.34,Grants Fund (Oper & Capital),PO 10681 Ord 327227756 Xmedius,IDU INSIGHT PUBLIC SEC
Finance,Computer software & supplies,01/11/2021,99.00,Grants Fund (Oper & Capital),1099-G Software,YEARLI.COM
Finance,Computer software & supplies,01/11/2021,113637.21,Grants Fund (Oper & Capital),"Invoice 1100793408, PO 10691,",IDU INSIGHT PUBLIC SEC
Finance,Construction Costs-Other Impro,01/11/2021,273.50,Grants Fund (Oper & Capital),Cares Act Project Line 11- Per,PYE BARKER - DENVER
Finance,Construction Costs-Other Impro,01/11/2021,963.57,Grants Fund (Oper & Capital),Cares Act Project Line 11- Per,WASTE MGMT WM EZPAY
Finance,Construction Costs-Other Impro,01/11/2021,240.00,Grants Fund (Oper & Capital),Cares Act Project Line 11- Per,AEGIS LIFE AND FIRE SAFET
Finance,Consulting,01/11/2021,30000.00,Grants Fund (Oper & Capital),PO 10535 Inv 1105932 Planning,GARTNERLSC37
Finance,Contractor services,01/11/2021,490.00,Grants Fund (Oper & Capital),Inv 92390 ID Printer Service,ID EDGE INC
Finance,Contractor services,01/11/2021,39.50,Grants Fund (Oper & Capital),COVID 19 Project: CBI Civilian,CO DORA LICENSING
Finance,Data processing,01/11/2021,150.00,General Fund,Collections Software,REI LNRISK DATA EOM
Finance,Office furn & equip-non cap,01/11/2021,1924.32,Grants Fund (Oper & Capital),COVID Line 115- Patterson HEPA,CHARLES D JONES/DENVER
Finance,Office furn & equip-non cap,01/11/2021,585.00,Grants Fund (Oper & Capital),"Covid 19 , Line #23 - sneeze g",PROGRESSIVE PLASTICS
Finance,Office furn & equip-non cap,01/11/2021,1838.25,Grants Fund (Oper & Capital),"COVID- LINE 126,127,128,, Doub",BAC APPLIANCE CENTER
Finance,Office furn & equip-non cap,01/11/2021,1744.00,Grants Fund (Oper & Capital),"COVID- LINE 126, Filters for w",BAC APPLIANCE CENTER
Finance,Office supplies,01/11/2021,108.50,General Fund,FIN Coffee Svc Sept 2020- inv#,ROCKY MOUNTAIN BOTTLED WA
Finance,Office supplies,01/11/2021,149.85,Grants Fund (Oper & Capital),MASKS,STAPLES
Finance,Office supplies,01/11/2021,41.50,General Fund,Ord 112-8796173-7567468 Printa,AMAZON.COM
Finance,Office supplies,01/11/2021,26.90,General Fund,Ord 112-7060555-9052254 Qty-2,AMAZON.COM
Finance,Office supplies,01/11/2021,9.98,General Fund,Ord 7320282014 Desk Calendars,STAPLES
Finance,Office supplies,01/11/2021,22.09,General Fund,Ord 7320202890 Wall Calendars,STAPLES
Finance,Office supplies,01/11/2021,13.30,General Fund,Ord 7320202890 Steno Pads,STAPLES
Finance,Office supplies,01/11/2021,94.41,General Fund,Ord 112-8729535-9791464 Mag Fi,AMAZON.COM
Finance,Office supplies,01/11/2021,50.00,General Fund,Inv 1606841174618 MAPO Agency,COLORADOMAPO.NET
Finance,Office supplies,01/11/2021,6.98,Grants Fund (Oper & Capital),Covid-19 Clorox Wipes,KING SOOPERS #0050
Finance,Office supplies,01/11/2021,6.98,Grants Fund (Oper & Capital),Covid-19 Clorox Wipes,KING SOOPERS #0050
Finance,Office supplies,01/11/2021,59.44,Grants Fund (Oper & Capital),MASKS,STAPLES
Finance,Office supplies,01/11/2021,4.99,General Fund,Farewell card for Purchasing M,FS  SOFTWARECASA
Finance,Office supplies,01/11/2021,5.99,Grants Fund (Oper & Capital),COVID 19:  #14: Gallon Bottle,AMAZON.COM
Finance,Office supplies,01/11/2021,1212.88,General Fund,W-2 Laser sheets/envelopes,SAFEGUARD BUSINESS SYSTEMS INC
Finance,Office supplies,01/11/2021,30.73,Grants Fund (Oper & Capital),COVID-19 Protective equipment,ETSY.COM
Finance,Office supplies,01/11/2021,93.00,General Fund,"Inv 99-83489D Chairs Arms, Del",CONTRACT FURNISHINGS
Finance,Office supplies,01/11/2021,-93.00,General Fund,Credit for Inv 99-83499D Chair,CONTRACT FURNISHINGS
Finance,Office supplies,01/11/2021,93.00,General Fund,Re-charge for Inv 99-83489D Ch,CONTRACT FURNISHINGS
Finance,Other general supplies,01/11/2021,68.92,Grants Fund (Oper & Capital),COVID-19 Project #23 Seat band,PAYPAL  PREMIERTABL
Finance,Other general supplies,01/11/2021,950.45,Grants Fund (Oper & Capital),COVID-19 Project#23 Seat bands,PAYPAL  PREMIERTABL
Finance,Other general supplies,01/11/2021,1608.50,Grants Fund (Oper & Capital),Covid-19 Protective coveralls,WW GRAINGER
Finance,Other general supplies,01/11/2021,2639.12,Grants Fund (Oper & Capital),Covid-19 Nitrile gloves purcha,COSTCO WHSE #650
Finance,Other profess & tech services,01/11/2021,25000.00,Grants Fund (Oper & Capital),Inv#2486 CARES Act - PD Wellne,J. BROWER PSYCHOLOGICA
Finance,Other profess & tech services,01/11/2021,50000.00,Grants Fund (Oper & Capital),Inv#2529 CARES Act - PD Wellne,J. BROWER PSYCHOLOGICA
Finance,Other profess & tech services,01/11/2021,60.80,Grants Fund (Oper & Capital),COVID-19 / 2020-2  (on-line cl,LOGMEIN GOTOMEETING
Finance,Other profess & tech services,01/11/2021,1348.35,Grants Fund (Oper & Capital),COVID-19 Zoom Enterprise Accou,ZOOM.US
Finance,Other property services,01/11/2021,145.00,Grants Fund (Oper & Capital),Covid-19 biohazard clean up fo,CRIME SCENE CLEANERS
Finance,Other property services,01/11/2021,190.00,Grants Fund (Oper & Capital),Covid-19 biohazard clean up fo,CRIME SCENE CLEANERS
Finance,Other small tools & equipment,01/11/2021,12.99,Grants Fund (Oper & Capital),COVID-19 Masks,AMAZON.COM
Finance,Other small tools & equipment,01/11/2021,-19.67,Grants Fund (Oper & Capital),COVID19 - Acrylic sign credite,DISPLAYS2GO
Finance,Other small tools & equipment,01/11/2021,553.00,Grants Fund (Oper & Capital),"COVID-19, 147-Change in operat",WAL-MART
Finance,Other small tools & equipment,01/11/2021,195.84,Grants Fund (Oper & Capital),"COVID, Line #113 - Hand pump t",WW GRAINGER
Finance,Other small tools & equipment,01/11/2021,790.00,Grants Fund (Oper & Capital),"COVID, Line #113 - Metal to bu",ALCAM METAL DISTRIBUTORS
Finance,Postage & delivery,01/11/2021,56.44,General Fund,2020 Daily Mail-December,ROCKY MOUNTAIN MAIL SERVICES LLC
Finance,Preventative programs,01/11/2021,999.99,Grants Fund (Oper & Capital),COVID - N95's,AMAZON.COM
Finance,Preventative programs,01/11/2021,75.88,Grants Fund (Oper & Capital),COVID - Gloves - 9676614317,WW GRAINGER
Finance,Preventative programs,01/11/2021,53.99,Grants Fund (Oper & Capital),COVID- Health App,HEALTHCHECK BY STRATUM
Finance,Preventative programs,01/11/2021,2425.00,Grants Fund (Oper & Capital),Covid-19 Humanscale Home Ergon,HUMANSCALE
Finance,"Printing, copying & binding",01/11/2021,2687.89,General Fund,PO 10334 Inv 22218770 City Wid,CAN CANONFINANCIAL CFS
Finance,Repairs & maint-plant/system,01/11/2021,1524.60,Grants Fund (Oper & Capital),31 COVID-19 PROJECT # 140,KEYPER SYSTEMS
Finance,Telecommunications,01/11/2021,55.02,General Fund,City Cell Phones,ATT BILL PAYMENT
Finance,Telecommunications,01/11/2021,55.02,General Fund,City Cell Phones,ATT BILL PAYMENT
Finance,Telecommunications,01/11/2021,226.76,General Fund,City Cell Phones,ATT BILL PAYMENT
Finance,Telecommunications,01/11/2021,83.50,General Fund,City Cell Phones,ATT BILL PAYMENT
Finance,Telecommunications,01/11/2021,15.80,Grants Fund (Oper & Capital),COVID 19-SWAT-ZOOM CONFERENCE,ZOOM.US
Human Resources,Dues and memberships,01/11/2021,219.00,General Fund,SHRM Annual Membership - 2021,SOCIETY FOR HUMAN RESOURC
Human Resources,Dues and memberships,01/11/2021,219.00,General Fund,SHRM Membership Renewal,SOCIETY FOR HUMAN RESOURC
Human Resources,Meal expense,01/11/2021,117.00,General Fund,Coffee Supplies,ROCKY MOUNTAIN BOTTLED WA
Human Resources,Office supplies,01/11/2021,129.30,General Fund,Office Supplies,AMAZON.COM
Human Resources,Office supplies,01/11/2021,26.49,General Fund,Office Supplies,AMAZON.COM
Human Resources,Office supplies,01/11/2021,30.00,General Fund,Office Supplies,AMAZON.COM
Human Resources,Office supplies,01/11/2021,58.50,General Fund,Office Supplies,AMAZON.COM
Human Resources,Office supplies,01/11/2021,5.95,General Fund,Office Supplies,KING SOOPERS #0127
Human Resources,Other profess & tech services,01/11/2021,214.10,General Fund,Backgrounds,CHOICE SCREENING
Human Resources,Other profess & tech services,01/11/2021,7499.00,General Fund,PO 10669 Inv D35ACE36-0002 Com,COMPENSATION TOOL
Human Resources,Promotional expense,01/11/2021,50.00,General Fund,Sympathy plant for Dixie Mille,STEMS FLOWER SHOP
Human Resources,Promotional expense,01/11/2021,51.66,General Fund,Last Day Gift Basket for Jenni,TARGET        00027177
Human Resources,Promotional expense,01/11/2021,50.00,General Fund,Employee Appreciation gifts,VILLAGE ROASTER CC
Human Resources,Promotional expense,01/11/2021,200.00,General Fund,Employee Appreciation Gifts,KING SOOPERS #0127
Human Resources,Telecommunications,01/11/2021,98.25,General Fund,City Cell Phones,ATT BILL PAYMENT
Human Resources,Training,01/11/2021,85.00,General Fund,Leadership Training - Jenna Wh,WWW.SIMONSINEK.COM
Human Resources,Training,01/11/2021,85.00,General Fund,Leadership Training - Erin Gal,WWW.SIMONSINEK.COM
Human Resources,Training,01/11/2021,100.00,General Fund,SHRM Re-Certification,SHRM CERTIFICATION
Human Resources,Training,01/11/2021,80.00,General Fund,IPMA Membership Dues,IPMA-HR COLORADO
Information Technology,Computer equipment-non cap,01/11/2021,486.72,General Fund,2020-057 Power Strips,AMAZON.COM
Information Technology,Computer equipment-non cap,01/11/2021,21.99,General Fund,2020-057 SD accessories,AMAZON.COM
Information Technology,Computer equipment-non cap,01/11/2021,39.90,General Fund,2020-057 Label maker supply in,AMAZON.COM
Information Technology,Computer equipment-non cap,01/11/2021,208.95,Equipment Replacement Fund,2020-073 Mitel Phone,AMAZON.COM
Information Technology,Computer software & supplies,01/11/2021,60.51,General Fund,2020-058  lkwco.dev Domain Reg,DNH GODADDY.COM
Information Technology,Computer software & supplies,01/11/2021,319.98,General Fund,2020-102 UCC SSL,DNH GODADDY.COM
Information Technology,Computer software & supplies,01/11/2021,3.98,General Fund,2020-162 Google API,THERMOPYLAE SCIENCES CORP
Information Technology,Computer software & supplies,01/11/2021,99.00,General Fund,2020-053 Web Form Tools,SMK WUFOO.COM CHARGE
Information Technology,Computer software & supplies,01/11/2021,1617.00,General Fund,PO 10699 Inv 20-1817 Dataworks,IN  DATAWORKS PLUS LLC
Information Technology,Computer software & supplies,01/11/2021,706.68,General Fund,PO 10708 Inv 1100796086 Azure,IDU INSIGHT PUBLIC SEC
Information Technology,Computer software & supplies,01/11/2021,14.99,General Fund,2020-062 Creative Cloud Licens,ADOBE  ACROPRO SUBS
Information Technology,Computer software & supplies,01/11/2021,5200.00,General Fund,PO10586 Acadis Readiness Suite,ISA
Information Technology,Office supplies,01/11/2021,99.95,General Fund,2020-055 Employee Appreciation,STEMS FLOWER SHOP
Information Technology,Office supplies,01/11/2021,84.85,General Fund,2020-055 Employee Appreciation,TLF LONGMONT FLORIST INC
Information Technology,Other profess & tech services,01/11/2021,15.47,General Fund,2020-009 Kallcents,KALLCENTS
Information Technology,Other profess & tech services,01/11/2021,62400.00,General Fund,2021-006 PO 10720 Inv 1108595,GARTNERLSC37
Information Technology,Radio & commun equip-non cap,01/11/2021,7.86,General Fund,FedEx - R.Bergren/DVD Comm,FEDEX OFFICE  00004200
Information Technology,Repairs & maint - equipment,01/11/2021,8.49,General Fund,2020-56 Office Supplies,OFFICE DEPOT #1080
Information Technology,Repairs & maint - equipment,01/11/2021,40.54,General Fund,2020-56 Office Supplies,THE HOME DEPOT 1514
Information Technology,Repairs & maint - equipment,01/11/2021,-309.30,General Fund,Credit for 2020-56 Lapel Micro,"IN  PVP COMMUNICATIONS, I"
Information Technology,Repairs & maint - equipment,01/11/2021,9.99,General Fund,2021-056 Inv.1 USB-C to USB-A,BEST BUY MHT  00002105
Information Technology,Telecommunications,01/11/2021,226.95,General Fund,2020-014 GUS Globalstar Commun,GUS GLOBALSTAR USA
Information Technology,Telecommunications,01/11/2021,626.99,General Fund,2020-016 SIU Phones,VERIZON WIRELESS
Information Technology,Telecommunications,01/11/2021,2978.47,General Fund,2020-011 City Cell Phones,ATT BILL PAYMENT
Information Technology,Telecommunications,01/11/2021,226.95,General Fund,2020-014 GUS Globalstar Commun,GUS GLOBALSTAR USA
Information Technology,Telecommunications,01/11/2021,30.07,General Fund,2020-061 City Pagers,AMERICAN MESSAGING
Information Technology,Telecommunications,01/11/2021,226.53,General Fund,2020-013 Comcast Services,COMCAST DENVER CS 1X
Information Technology,Telecommunications,01/11/2021,12400.61,General Fund,2020-016 PD Aircards,VERIZON WIRELESS
Information Technology,Telecommunications,01/11/2021,16337.82,General Fund,2020-011 PD Cell Phones,ATT BILL PAYMENT
Mayor and City Council,Dues and memberships,01/11/2021,12519.44,General Fund,Metro Mayors Caucus,CIVIC RESULTS
Mayor and City Council,Other profess & tech services,01/11/2021,380.00,General Fund,TV CMO,AMAZON.COM
Mayor and City Council,Other profess & tech services,01/11/2021,29.99,General Fund,TV Bracket CMO,AMAZON.COM
Mayor and City Council,Telecommunications,01/11/2021,432.30,General Fund,City Cell Phones,ATT BILL PAYMENT
Municipal Court,Books & Publications,01/11/2021,239.84,General Fund,October Monthly Web,THOMSON WEST TCD
Municipal Court,Books & Publications,01/11/2021,239.84,General Fund,November Monthly Web,THOMSON WEST TCD
Municipal Court,Clothing & Uniforms,01/11/2021,247.27,General Fund,new hire uniforms JR,ADAMSON POLICE PRODUCTS
Municipal Court,Contractor services,01/11/2021,50.75,General Fund,Oral Swabs,STERLING HEALTHCARE OPCO
Municipal Court,Contractor services,01/11/2021,40.00,General Fund,Juvenile Reduced UA fees,SPANISH CLINIC (MORR
Municipal Court,Contractor services,01/11/2021,70.00,General Fund,Juvenile Reduced UA fees,WIZ-QUIZ LAKEWOOD
Municipal Court,Dues and memberships,01/11/2021,10.00,General Fund,CR and Courts Monthly Membersh,VOLGISTICS INC
Municipal Court,Other profess & tech services,01/11/2021,50.00,Grants Fund (Oper & Capital),MOST Grant,NATIONAL INSTITUTE FOR CHANGE PC
Municipal Court,Other profess & tech services,01/11/2021,1191.00,Grants Fund (Oper & Capital),MOST Grant,CREATIVE TREATMENT OPTIONS INC
Municipal Court,Other profess & tech services,01/11/2021,200.00,Grants Fund (Oper & Capital),MOST Grant,NATIONAL INSTITUTE FOR CHANGE PC
Municipal Court,Other profess & tech services,01/11/2021,250.00,Grants Fund (Oper & Capital),Most Grant,SQ  RISING FROM THE ASHES
Municipal Court,Other profess & tech services,01/11/2021,150.00,Grants Fund (Oper & Capital),Most Grant,RECOVERY HEALTHCARE CORP.
Municipal Court,Other profess & tech services,01/11/2021,45.00,Grants Fund (Oper & Capital),Most Grant,PRECISE MONITORING LLC
Municipal Court,Telecommunications,01/11/2021,43.23,General Fund,City Cell Phones,ATT BILL PAYMENT
Municipal Court,Telecommunications,01/11/2021,98.25,General Fund,City Cell Phones,ATT BILL PAYMENT
Municipal Court,Telecommunications,01/11/2021,83.01,General Fund,City Cell Phones,ATT BILL PAYMENT
Municipal Court,Telecommunications,01/11/2021,110.04,General Fund,City Cell Phones,ATT BILL PAYMENT
Planning,Board and commissions,01/11/2021,95.00,General Fund,Planning Publication Subscript,AMERICAN PLANNING ASSOC
Planning,Computer software & supplies,01/11/2021,69.98,General Fund,Creative Cloud Licensing PL,ADOBE  ACROPRO SUBS
Planning,Computer software & supplies,01/11/2021,174.95,General Fund,Creative Cloud Licensing PL/LO,ADOBE  ACROPRO SUBS
Planning,Computer software & supplies,01/11/2021,174.95,General Fund,Creative Cloud Licensing PL/SU,ADOBE  ACROPRO SUBS
Planning,Computer software & supplies,01/11/2021,1199.00,General Fund,Quo-116216 -X9N5Q6 Bluebeam Su,APPLIED SOFTWARE
Planning,Computer software & supplies,01/11/2021,24.85,Grants Fund (Oper & Capital),domain name for JeffCo Housing,WIX.COM JEFFCOHOUSINGEXCH
Planning,Office supplies,01/11/2021,35.98,Grants Fund (Oper & Capital),Annual planner and file folder,OFFICEMAX/OFFICEDEPOT6685
Planning,Office supplies,01/11/2021,37.93,General Fund,"2020 - Planning, Dec  - coffee",ROCKY MOUNTAIN BOTTLED WA
Planning,Office supplies,01/11/2021,10.61,General Fund,General Office Supplies - Cale,STAPLES
Planning,Office supplies,01/11/2021,22.95,General Fund,2020 Planner - Christy,AMAZON.COM
Planning,Office supplies,01/11/2021,15.05,General Fund,Office Supplies,AMAZON.COM
Planning,Office supplies,01/11/2021,15.05,General Fund,Office Supplies,AMAZON.COM
Planning,Office supplies,01/11/2021,5.99,General Fund,Office Supplies,STAPLES
Planning,Office supplies,01/11/2021,6.00,General Fund,Office Supplies,STAPLES
Planning,Office supplies,01/11/2021,33.51,General Fund,Office Supplies,AMAZON.COM
Planning,Office supplies,01/11/2021,33.52,General Fund,Office Supplies,AMAZON.COM
Planning,Office supplies,01/11/2021,45.47,General Fund,Office Supplies,STAPLES
Planning,Office supplies,01/11/2021,45.48,General Fund,Office Supplies,STAPLES
Planning,Office supplies,01/11/2021,2.09,General Fund,Office Supplies,STAPLES
Planning,Office supplies,01/11/2021,2.09,General Fund,Office Supplies,STAPLES
Planning,Other general supplies,01/11/2021,33.95,General Fund,2020 Sustainability Award Cert,AMAZON.COM
Planning,Other general supplies,01/11/2021,67.90,General Fund,2020 Sustainability Award Cert,AMAZON.COM
Planning,Other general supplies,01/11/2021,32.00,General Fund,2020 Rocky Mountain Bottled Wa,ROCKY MOUNTAIN BOTTLED WA
Planning,Other general supplies,01/11/2021,4680.35,General Fund,Inv 477169 Inv 477169 Composta,IN  BIOBAG USA
Planning,Other profess & tech services,01/11/2021,55.02,General Fund,City Cell Phones,ATT BILL PAYMENT
Planning,Other profess & tech services,01/11/2021,1299.58,General Fund,Compost,WASTE INDUSTRIES - NON-CO
Planning,Other profess & tech services,01/11/2021,1440.00,Grants Fund (Oper & Capital),COVID CDBG 0060 G Smith,CO WEEKLY LLC
Planning,Telecommunications,01/11/2021,43.23,Grants Fund (Oper & Capital),City Cell Phones,ATT BILL PAYMENT
Planning,Telecommunications,01/11/2021,84.51,General Fund,City Cell Phones,ATT BILL PAYMENT
Planning,Training,01/11/2021,115.00,General Fund,2020 Conference Registration -,EVENT  SAVING PLACES 2
Planning,Training,01/11/2021,115.00,General Fund,2020 Conference Registration -,EVENT  SAVING PLACES 2
Police,Books & Publications,01/11/2021,6230.00,General Fund,Inv 201125-SF-09526 Colorado P,BLUE 360 MEDIA
Police,Books & Publications,01/11/2021,70.75,General Fund,2020-2021 Colorado Peace Offic,BLUE 360 MEDIA
Police,Books & Publications,01/11/2021,9.99,General Fund,PATROL-DRONE-TRAINING MATERIAL,AMAZON.COM
Police,Chem. & lab. supplies,01/11/2021,82.92,General Fund,3 Faraday Bags for Investigati,DFE LLC
Police,Chem. & lab. supplies,01/11/2021,88.68,General Fund,Portable Batteries for investi,AMAZON.COM
Police,Chem. & lab. supplies,01/11/2021,15.29,General Fund,1 Faraday bag for investigatio,AMAZON.COM
Police,Chem. & lab. supplies,01/11/2021,472.80,General Fund,Gloves,TRITECH FORENSICS
Police,Chem. & lab. supplies,01/11/2021,-2.74,General Fund,Refund for tax,L A POLICE GEAR INC
Police,Chem. & lab. supplies,01/11/2021,50.94,General Fund,Post-Mortem bag,L A POLICE GEAR INC
Police,Chem. & lab. supplies,01/11/2021,24.99,General Fund,Tripod case FARO,AMAZON.COM
Police,Cleaning & janitorial services,01/11/2021,2390.40,General Fund,PO 10220 Inv 1120 November Uni,CONTINENTAL CLEANE
Police,Clothing & Uniforms,01/11/2021,255.00,General Fund,Embroidery,US RECOGNITION
Police,Clothing & Uniforms,01/11/2021,55.96,General Fund,Technician Uniforms,LANDS END BUS OUTFITTERS
Police,Clothing & Uniforms,01/11/2021,565.55,General Fund,Technician Uniforms,LANDS END BUS OUTFITTERS
Police,Clothing & Uniforms,01/11/2021,800.00,General Fund,2020-2 - LPD (C Vaske) - vest,RYDERS PUBLIC SAFE
Police,Clothing & Uniforms,01/11/2021,800.00,General Fund,2020-2 - LPD (J Eissler) - ves,RYDERS PUBLIC SAFE
Police,Clothing & Uniforms,01/11/2021,800.00,General Fund,2020-2 - LPD (M Crouse) - vest,RYDERS PUBLIC SAFE
Police,Clothing & Uniforms,01/11/2021,800.00,General Fund,2020-2 - LPD (L Branch) - vest,RYDERS PUBLIC SAFE
Police,Clothing & Uniforms,01/11/2021,800.00,General Fund,2020-2 - LPD (C Booker) - vest,RYDERS PUBLIC SAFE
Police,Clothing & Uniforms,01/11/2021,99.95,General Fund,2020-2 - LPD (L Burdick),RYDERS PUBLIC SAFE
Police,Clothing & Uniforms,01/11/2021,53.10,General Fund,uniform name plates,CALEA INC.
Police,Clothing & Uniforms,01/11/2021,109.95,General Fund,police uniforms,RYDERS PUBLIC SAFE
Police,Clothing & Uniforms,01/11/2021,114.95,General Fund,police uniforms,RYDERS PUBLIC SAFE
Police,Clothing & Uniforms,01/11/2021,134.95,General Fund,police uniforms,RYDERS PUBLIC SAFE
Police,Clothing & Uniforms,01/11/2021,800.00,General Fund,police uniforms,RYDERS PUBLIC SAFE
Police,Clothing & Uniforms,01/11/2021,208.88,General Fund,uniform repair,SQ  A+ CLOTHING ALTERATIO
Police,Clothing & Uniforms,01/11/2021,121.20,General Fund,boot repair,GOVERNORS PLAZA SHOES
Police,Clothing & Uniforms,01/11/2021,31.00,General Fund,uniform name plates,CALEA INC.
Police,Clothing & Uniforms,01/11/2021,150.00,General Fund,police uniforms,ADAMSON POLICE PRODUCTS
Police,Clothing & Uniforms,01/11/2021,7.00,General Fund,police uniforms,RYDERS PUBLIC SAFE
Police,Clothing & Uniforms,01/11/2021,91.95,General Fund,police uniforms,RYDERS PUBLIC SAFE
Police,Clothing & Uniforms,01/11/2021,209.92,General Fund,#6192/6253 Replacement shirts,US RECOGNITION
Police,Clothing & Uniforms,01/11/2021,47.95,General Fund,#5828 Replacement pants (1),RYDERS PUBLIC SAFE
Police,Clothing & Uniforms,01/11/2021,95.90,General Fund,#6020 Replacement pants (2),RYDERS PUBLIC SAFE
Police,Clothing & Uniforms,01/11/2021,800.00,General Fund,"#6192 Replacement vest, expire",RYDERS PUBLIC SAFE
Police,Clothing & Uniforms,01/11/2021,131.75,General Fund,Ruybal Badge,ENTENMANN-ROVIN COMPANY
Police,Clothing & Uniforms,01/11/2021,242.00,General Fund,Sgt badges,ENTENMANN-ROVIN COMPANY
Police,Clothing & Uniforms,01/11/2021,38.95,General Fund,Stone Equipment,RYDERS PUBLIC SAFE
Police,Community Action Team,01/11/2021,4.99,General Fund,HM - Arlo Monthly Fee,ARLO TECHNOLOGIES INC
Police,Computer software & supplies,01/11/2021,450.00,Grants Fund (Oper & Capital),Civicore Subscription,CIVICORE
Police,Computer software & supplies,01/11/2021,450.00,Grants Fund (Oper & Capital),Civicore Subscription,CIVICORE
Police,Computer software & supplies,01/11/2021,79.00,General Fund,Monthly Software  Subscription,VOLGISTICS INC
Police,Computer software & supplies,01/11/2021,198.00,General Fund,Taser Dataport Download USB Ca,AXON    TASER
Police,Computer software & supplies,01/11/2021,14932.37,General Fund,PO 10682 Inv 1100790410 RMSC A,IDU INSIGHT PUBLIC SEC
Police,Computer software & supplies,01/11/2021,16648.39,General Fund,PO 10717 Inv 1100797464 Azure,IDU INSIGHT PUBLIC SEC
Police,Computer software & supplies,01/11/2021,400.68,General Fund,PD Aircards,VERIZON WIRELESS
Police,Dues and memberships,01/11/2021,240.00,General Fund,Annual Membership Dues for Chi,IACP
Police,Dues and memberships,01/11/2021,45.00,General Fund,State Membership MD,CACEO            00 OF 00
Police,Dues and memberships,01/11/2021,45.00,General Fund,State Membership JH,CACEO            00 OF 00
Police,Dues and memberships,01/11/2021,45.00,General Fund,State Membership JB,CACEO            00 OF 00
Police,Dues and memberships,01/11/2021,45.00,General Fund,State Membership CB,CACEO            00 OF 00
Police,Dues and memberships,01/11/2021,45.00,General Fund,State Membership GS,CACEO            00 OF 00
Police,Dues and memberships,01/11/2021,75.00,General Fund,National Membership GS,AMERICAN ASSOC OF00 OF 00
Police,Dues and memberships,01/11/2021,45.00,General Fund,Membership dues to the Colorad,COLORADO EMERGENCY MANAG
Police,Dues and memberships,01/11/2021,10.00,General Fund,Sgt Lopez Notary Remewal,SOS REGISTRATION FEE
Police,Dues and memberships,01/11/2021,190.00,General Fund,McNitt Member Renewal,IACP
Police,Dues and memberships,01/11/2021,190.00,General Fund,annual membership,IACP
Police,Dues and memberships,01/11/2021,190.00,General Fund,Greenwell member renewal,IACP
Police,Dues and memberships,01/11/2021,495.00,General Fund,SWAT-RMHN ANNUAL DUES-RECEIPT#,ROCKY MOUNTAIN HOSTAGE
Police,Dues and memberships,01/11/2021,460.00,General Fund,IAATI Member renewal - 9,INTER ASSOC AT INV
Police,Dues and memberships,01/11/2021,200.00,General Fund,Renewal membership CFAWA/CAACO,COLORADOFED
Police,Dues and memberships,01/11/2021,190.00,General Fund,2021 Membership Dues for J. Pi,IACP
Police,Dues and memberships,01/11/2021,30.00,General Fund,Membership dues/ Parker,PAYPAL  RMDIAI
Police,Dues and memberships,01/11/2021,30.00,General Fund,Membership dues/ Shimamoto,PAYPAL  RMDIAI
Police,Dues and memberships,01/11/2021,30.00,General Fund,Membership dues/ Laabs,PAYPAL  RMDIAI
Police,Dues and memberships,01/11/2021,30.00,General Fund,Membership dues/ Weadock,PAYPAL  RMDIAI
Police,Dues and memberships,01/11/2021,30.00,General Fund,Membership dues/ Olander,PAYPAL  RMDIAI
Police,Dues and memberships,01/11/2021,80.00,General Fund,Membership dues/ Laabs,KEYCODE MEDIA INC
Police,Dues and memberships,01/11/2021,400.00,General Fund,"Membership dues/ Parker, Fink,",KEYCODE MEDIA INC
Police,Insurance premiums,01/11/2021,24.90,General Fund,Notary Stamp (K Turnbull),AMER ASSOC NOTARIES
Police,Insurance premiums,01/11/2021,24.90,General Fund,Notary Stamp (E Ebeling),AMER ASSOC NOTARIES
Police,Insurance premiums,01/11/2021,24.90,General Fund,Notary Stamp (R Lopez),AMER ASSOC NOTARIES
Police,Meal expense,01/11/2021,112.46,General Fund,Fatal TA,BLACKJACK PIZZA
Police,Meal expense,01/11/2021,108.58,General Fund,Fatal TA,CHICK-FIL-A #02952
Police,Meal expense,01/11/2021,3.98,General Fund,Fatal TA,KING SOOPERS #0127
Police,Meal expense,01/11/2021,39.00,General Fund,annual employee recognition lu,BLACKJACK PIZZA
Police,Meal expense,01/11/2021,43.87,General Fund,Team holiday,KING SOOPERS #0127
Police,Med. & phar. supplies,01/11/2021,21.80,General Fund,Needles for wildlife euthanasi,MED VET INTERNATIONAL
Police,Med. & phar. supplies,01/11/2021,31.80,General Fund,Needles for wildlife euthanasi,MED VET INTERNATIONAL
Police,Misc expenses,01/11/2021,113.00,General Fund,haz mat disposal of chemicals,SQ  ROONEY ROAD RECYCLING
Police,Office furn & equip-non cap,01/11/2021,49.00,General Fund,Inv 5011422973 PD Kiosk Toshib,PA PAYMENT SERVICES
Police,Office furn & equip-non cap,01/11/2021,49.00,General Fund,Inv 5011777508 PD Kiosk Toshib,PA PAYMENT SERVICES
Police,Office furn & equip-non cap,01/11/2021,49.00,General Fund,Inv 5012170788 PD Kiosk Toshib,PA PAYMENT SERVICES
Police,Office furn & equip-non cap,01/11/2021,49.00,General Fund,Inv 5012553497 PD Kiosk Toshib,PA PAYMENT SERVICES
Police,Office furn & equip-non cap,01/11/2021,49.00,General Fund,Inv 5012480864 PD Kiosk Toshib,PA PAYMENT SERVICES
Police,Office supplies,01/11/2021,24.50,General Fund,Inv 2006670 Nameplate and Hold,PEPPERDINES MARKING
Police,Office supplies,01/11/2021,71.71,General Fund,Inv 2006548 4-Nameplates and 2,PEPPERDINES MARKING
Police,Office supplies,01/11/2021,-22.82,General Fund,Refund calendars,STAPLES
Police,Office supplies,01/11/2021,44.89,General Fund,"Sharpie markers, folders",AMAZON.COM
Police,Office supplies,01/11/2021,31.50,General Fund,Stamp,AMAZON.COM
Police,Office supplies,01/11/2021,45.55,General Fund,"Calendars, Dayplanner",STAPLES
Police,Office supplies,01/11/2021,21.36,General Fund,Disputed Transactions,HARRIS TEETER #92
Police,Office supplies,01/11/2021,31.23,General Fund,Disputed Transactions,FOOD LION #0203
Police,Office supplies,01/11/2021,19.98,General Fund,RESTOCK OFFICE SUPPLIES,AMAZON.COM
Police,Office supplies,01/11/2021,34.58,General Fund,Planner,AMAZON.COM
Police,Office supplies,01/11/2021,98.69,General Fund,Office Supplies,AMAZON.COM
Police,Office supplies,01/11/2021,303.50,General Fund,Office Supplies,STAPLES
Police,Office supplies,01/11/2021,22.69,General Fund,Calendar,STAPLES
Police,Office supplies,01/11/2021,16.61,General Fund,Card Error,SMOKER FRIENDLY #163
Police,Office supplies,01/11/2021,159.99,General Fund,Toner for ARGUS Printer,TONERGREENDOTCOM
Police,Office supplies,01/11/2021,159.05,General Fund,Office Supplies,AMAZON.COM
Police,Office supplies,01/11/2021,33.24,General Fund,Office Supplies,AMAZON.COM
Police,Office supplies,01/11/2021,86.65,General Fund,CRA - Thin Blue Line Flag,AMAZON.COM
Police,Office supplies,01/11/2021,24.78,General Fund,office supplies,OFFICE DEPOT #1080
Police,Office supplies,01/11/2021,33.53,General Fund,office supplies,OFFICEMAX/OFFICEDEPT#6874
Police,Office supplies,01/11/2021,3.99,General Fund,office supplies,OFFICE DEPOT #1080
Police,Office supplies,01/11/2021,17.32,General Fund,office supplies,OFFICE DEPOT #1080
Police,Office supplies,01/11/2021,149.57,General Fund,office supplies,OFFICE DEPOT #1080
Police,Office supplies,01/11/2021,113.94,General Fund,2020-2 CRA graduation certific,OFFICE DEPOT #1080
Police,Office supplies,01/11/2021,196.21,General Fund,#13: Clasp envelopes; packagin,OFFICE DEPOT #1080
Police,Office supplies,01/11/2021,50.30,General Fund,Office Supplies for Support Se,STAPLES
Police,Office supplies,01/11/2021,14.82,General Fund,Office Supplies for the Emerge,STAPLES
Police,Office supplies,01/11/2021,9.48,General Fund,Office Supplies for Support Se,STAPLES
Police,Office supplies,01/11/2021,16.99,General Fund,#13a:  Erasable Wall Calendar,OFFICE DEPOT #1080
Police,Office supplies,01/11/2021,18.51,General Fund,Packing tape,AMAZON.COM
Police,Office supplies,01/11/2021,4.95,General Fund,Office hooks,AMAZON.COM
Police,Other general supplies,01/11/2021,2273.10,General Fund,Awards and Medals for the Poli,ENTENMANN-ROVIN COMPANY
Police,Other general supplies,01/11/2021,253.16,General Fund,Bottled Water,ROCKY MOUNTAIN BOTTLED WA
Police,Other general supplies,01/11/2021,87.03,General Fund,arrestee property bags,ASSOCIATED BAG COMPANY
Police,Other general supplies,01/11/2021,26.00,Grants Fund (Oper & Capital),Homeless Navigator - Birth cer,VCN NEW MEXICO VITALS
Police,Other general supplies,01/11/2021,908.14,General Fund,Box Lunch Meals for employees,JASONS DELI #602
Police,Other general supplies,01/11/2021,241.98,General Fund,Annual James Davies Memorial W,VELDKAMPS FLOWERS & GIFTS
Police,Other general supplies,01/11/2021,337.00,General Fund,Hall of Fame plaques for prese,US RECOGNITION
Police,Other general supplies,01/11/2021,70.00,General Fund,Engraved metal plates updating,US RECOGNITION
Police,Other general supplies,01/11/2021,150.00,General Fund,Professional photographs for H,JANSSEN PHOTOGRAPHY
Police,Other profess & tech services,01/11/2021,1389.42,General Fund,INV 4911834,LANGUAGE LINE
Police,Other profess & tech services,01/11/2021,241.25,General Fund,INV 4911834,LANGUAGE LINE
Police,Other profess & tech services,01/11/2021,305.10,General Fund,43541-202011-1,TLO TRANSUNION
Police,Other profess & tech services,01/11/2021,289.00,General Fund,43541-202011-1,TLO TRANSUNION
Police,Other profess & tech services,01/11/2021,6.00,General Fund,43541-202011-1,TLO TRANSUNION
Police,Other profess & tech services,01/11/2021,50.00,General Fund,INV1493944-20201130,REI LEXISNEXIS EPIC
Police,Other profess & tech services,01/11/2021,1160.24,General Fund,INV,LANGUAGE LINE
Police,Other profess & tech services,01/11/2021,1160.24,General Fund,INV,LANGUAGE LINE
Police,Other profess & tech services,01/11/2021,920.00,General Fund,PO #10381 counseling,NICOLETTI - FLATER ASS
Police,Other profess & tech services,01/11/2021,980.00,General Fund,PO #10553 / 2020-2 CRA - Regio,J. BROWER PSYCHOLOGICA
Police,Other profess & tech services,01/11/2021,73.82,General Fund,CRA  - pest control,WWP SPRAGUE PEST SOLUTION
Police,Other property services,01/11/2021,160.00,General Fund,sub-station cleaning,SQ  CARNATION BLDG SVCS
Police,Other services,01/11/2021,120.00,General Fund,Business Membership Renewal.,WWW COSTCO COM
Police,Other small tools & equipment,01/11/2021,64.80,General Fund,SWAT-GAS MASK EXTENDERS-INVOIC,TACTICAL NIGHT VISION CO
Police,Other small tools & equipment,01/11/2021,104.78,General Fund,2020-2 CRA - scenario based ta,ACTION TARGETS
Police,Other small tools & equipment,01/11/2021,88.00,General Fund,SWAT-SERIVCE PLAQUE-INVOICE# 1,US RECOGNITION
Police,Other small tools & equipment,01/11/2021,186.00,General Fund,SWAT-AVON MICROPHONE ASSEMBLY-,"GLC GALLS, LLC"
Police,Other small tools & equipment,01/11/2021,74.07,General Fund,PATROL-SET-PELICAN CASE-ORDER#,EX  5669800 PELICAN
Police,Other small tools & equipment,01/11/2021,71.74,General Fund,Covid-19 Sign stands for  Ange,AMAZON.COM
Police,Other small tools & equipment,01/11/2021,32.45,General Fund,Spare laptop  charger for remo,AMAZON.COM
Police,Other small tools & equipment,01/11/2021,51.14,General Fund,Headphone for conference room,ENCORE DATA PRODUCTS INC
Police,Other small tools & equipment,01/11/2021,235.62,General Fund,#347 Replacement microchip sca,DATAMARS
Police,Other small tools & equipment,01/11/2021,139.90,General Fund,Replacement pepper ball C02 ta,RYDERS PUBLIC SAFE
Police,Other small tools & equipment,01/11/2021,524.70,General Fund,2020-2 - LPD Recruits - (ASPs),RYDERS PUBLIC SAFE
Police,Other small tools & equipment,01/11/2021,527.68,General Fund,PO #10635 / 2020-2 - CRA - tas,AXON    TASER
Police,Other small tools & equipment,01/11/2021,50.51,General Fund,Disputed Transaction.,HAWTHORNES HARRISBURG
Police,Other small tools & equipment,01/11/2021,30.70,General Fund,Disputed Transaction.,HAWTHORNES HARRISBURG
Police,Other small tools & equipment,01/11/2021,40.32,General Fund,Disputed Transaction.,HAWTHORNES HARRISBURG
Police,Other small tools & equipment,01/11/2021,45.57,General Fund,Disputed Transaction.,HAWTHORNES HARRISBURG
Police,Other small tools & equipment,01/11/2021,550.20,General Fund,Evidence Bags,KATZKE PAPER CO
Police,Other small tools & equipment,01/11/2021,180.75,General Fund,XL Trash Bags,MOUNTAIN STATES PLASTI
Police,Other small tools & equipment,01/11/2021,80.46,General Fund,White Ammo Boxes,SAMUELS PRODUCTS INC
Police,Other small tools & equipment,01/11/2021,319.80,General Fund,Nitrile Gloves,DASH MEDICAL GLOVES
Police,Other small tools & equipment,01/11/2021,29.52,General Fund,Bolts,AMAZON.COM
Police,Other small tools & equipment,01/11/2021,69.49,General Fund,Folding Chairs,AMAZON.COM
Police,Other small tools & equipment,01/11/2021,168.00,General Fund,Kraft paper roll,ULINE   SHIP SUPPLIES
Police,Other small tools & equipment,01/11/2021,59.00,General Fund,Trash Service,WASTE MGMT WM EZPAY
Police,Other small tools & equipment,01/11/2021,7819.00,Grants Fund (Oper & Capital),Inv 6013023 MPH BEE III Radar,MPH INDUSTRIES INC
Police,Other small tools & equipment,01/11/2021,63.94,General Fund,first aid supplies for patrol,WW GRAINGER
Police,Other small tools & equipment,01/11/2021,454.02,General Fund,flares for patrol cars,WW GRAINGER
Police,Other small tools & equipment,01/11/2021,40.01,General Fund,Hotel/Motel -Mobile Cameras Ve,VERIZON WIRELESS
Police,Photo supplies,01/11/2021,151.96,General Fund,Blu-ray discs for discovery,"B&H PHOTO, 800-606-6969"
Police,Postage & delivery,01/11/2021,43.70,General Fund,SWAT-SHIPPING FOR NAVAL SURFAC,FEDEX OFFICE  00004200
Police,Postage & delivery,01/11/2021,4.80,General Fund,FedEx - D. Fink - OpenText,FEDEX OFFICE  00004200
Police,Postage & delivery,01/11/2021,468.07,General Fund,Fedex - V.Parker FARO-Scanner,FEDEX OFFICE  00004200
Police,"Printing, copying & binding",01/11/2021,47.71,General Fund,Inv 5009983809 PD Records Tosh,PA PAYMENT SERVICES
Police,"Printing, copying & binding",01/11/2021,67.61,General Fund,Inv 5009983807 PD Recorda Tosh,PA PAYMENT SERVICES
Police,"Printing, copying & binding",01/11/2021,148.65,General Fund,Inv 5009587424 Toshiba Supplem,PA PAYMENT SERVICES
Police,"Printing, copying & binding",01/11/2021,74.79,General Fund,PO 10334 Inv 22218770 PD Mills,CAN CANONFINANCIAL CFS
Police,"Printing, copying & binding",01/11/2021,1145.61,General Fund,PO 10435 Inv 22218770 PD Recor,CAN CANONFINANCIAL CFS
Police,"Printing, copying & binding",01/11/2021,70.75,General Fund,Colorado Peace Officers Hanboo,BLUE 360 MEDIA
Police,Promotional expense,01/11/2021,68.00,General Fund,Service Award for G. Bergen.,US RECOGNITION
Police,Promotional expense,01/11/2021,76.00,General Fund,Badge Plaque for S. Juleff.,US RECOGNITION
Police,Promotional expense,01/11/2021,484.50,General Fund,Retirement Shadow Box for J. M,GRIZZLY CREEK CUSTOM FRAM
Police,Promotional expense,01/11/2021,938.65,General Fund,Formal Awards/Commendation Pre,JOSTENS INC.
Police,Repair & maintenance supplies,01/11/2021,125.98,General Fund,K9 food,PETCO 488     63504880
Police,Repair & maintenance supplies,01/11/2021,599.88,General Fund,Adobe license renewal,ADOBE  ACROPRO SUBS
Police,Repair & maintenance supplies,01/11/2021,32.00,General Fund,Water contact (October invoice,ROCKY MOUNTAIN BOTTLED WA
Police,Repair & maintenance supplies,01/11/2021,32.00,General Fund,Water contract (November invoi,ROCKY MOUNTAIN BOTTLED WA
Police,Towing,01/11/2021,440.00,General Fund,2020 TOWING & STORAGE,ACE TOWING ENTERPRISES
Police,Training,01/11/2021,172.49,Grants Fund (Oper & Capital),POST - FTO class - GMTR,KING SOOPERS #0127
Police,Training,01/11/2021,193.98,Grants Fund (Oper & Capital),POST - FTO class - GMTR,KING SOOPERS #0127
Police,Training,01/11/2021,-194.95,Grants Fund (Oper & Capital),POST - FTO class - GMTR - Cred,KING SOOPERS #0127
Police,Training,01/11/2021,149.00,General Fund,Anderson Training,JOHN E REID & ASSOC INC
Police,Training,01/11/2021,295.00,General Fund,FIRST LINE SUPERVISION FUNDAME,DOLAN CONSULTING GROUP
Police,Travel - auto expense,01/11/2021,24.05,General Fund,tolls,E 470 EXPRESS TOLLS
Police,Travel - auto expense,01/11/2021,8.60,General Fund,tolls,E 470 EXPRESS TOLLS
Police,Travel - auto expense,01/11/2021,56.00,General Fund,DIA Parking,DEN PUBLIC PARKING
Police,Travel - other,01/11/2021,66.53,General Fund,Rental Car in Tx,EXPEDIA 72016432456942
Police,Travel - other,01/11/2021,216.20,General Fund,Feik Flight,UNITED      0167592682725
Police,Travel - other,01/11/2021,216.20,General Fund,Holloway flight,UNITED      0167592682725
Police,Travel - other,01/11/2021,75.97,General Fund,Feik Hotel Room,PRICELN THE WORTHINGTO
Police,Travel - other,01/11/2021,75.97,General Fund,Hollow Hotel Room,PRICELN THE WORTHINGTO
Police,Travel - other,01/11/2021,28.30,General Fund,PATROL-SET-EXPRESS TOLL-ACCT#,E 470 EXPRESS TOLLS
Police,Vehicle/Equipment Chargebacks,01/11/2021,30.96,General Fund,police car washes,BEARS CAR WASH
Police,Vehicle/Equipment Chargebacks,01/11/2021,145.00,General Fund,antenna cables,MPH INDUSTRIES INC
Public Works,Bldg Construction Costs,01/11/2021,3000.00,Capital Improvement Fund,Invoice number 562625 Geotechn,CTL THOMPSON
Public Works,Building material supplies,01/11/2021,595.98,General Fund,Ticket number 10171 12.04 tons,COLORADO ASPHALT SERVI
Public Works,Building material supplies,01/11/2021,706.86,General Fund,Ticket number 10171 12.04 ton,COLORADO ASPHALT SERVI
Public Works,Building material supplies,01/11/2021,85.53,Stormwater Enterprise Fund,invoice number 5675526-1 inner,WPY GENERAL AIR SERVICE
Public Works,Building material supplies,01/11/2021,2784.00,Stormwater Enterprise Fund,"Order number PA017419 12x20, 1",FERGUSON ENT #1116
Public Works,Building material supplies,01/11/2021,2942.00,Stormwater Enterprise Fund,Order Number PA017422 15x20 St,FERGUSON ENT #1116
Public Works,Building material supplies,01/11/2021,147.16,General Fund,Invoice number 24325 20CAL 40,HYDRA FLEX
Public Works,Building material supplies,01/11/2021,47.84,Stormwater Enterprise Fund,Transaction Number 10550897,LOWES #01903
Public Works,Building material supplies,01/11/2021,16.00,Capital Improvement Fund,"Markings, Propane refill for i",ARAPAHOE RENTAL
Public Works,Cleaning supplies,01/11/2021,24.88,General Fund,A8 Cleaning supplies,ALSCO INC.
Public Works,Cleaning supplies,01/11/2021,9.75,General Fund,E43 Shop supplies,ALSCO INC.
Public Works,Cleaning supplies,01/11/2021,434.43,General Fund,C25 Cleaning supplies,ALSCO INC.
Public Works,Cleaning supplies,01/11/2021,24.88,General Fund,E49 Cleaning supplies,ALSCO INC.
Public Works,Cleaning supplies,01/11/2021,1359.80,General Fund,E40 Cleaning supplies,KAYLINE COMPANY
Public Works,Cleaning supplies,01/11/2021,979.74,General Fund,C20 Shop supplies,KAYLINE COMPANY
Public Works,Clothing & Uniforms,01/11/2021,181.75,General Fund,C24 PPE,EYELATION
Public Works,Clothing & Uniforms,01/11/2021,128.29,General Fund,Transaction Number 201649 New,INTERMOUNTAIN SAFETY SHOE
Public Works,Clothing & Uniforms,01/11/2021,61.45,General Fund,Transaction Number 004878 New,INTERMOUNTAIN SAFETY SHOE
Public Works,Clothing & Uniforms,01/11/2021,277.05,Sewer Enterprise Fund,Transaction number 201814 New,INTERMOUNTAIN SAFETY SHOE
Public Works,Clothing & Uniforms,01/11/2021,187.67,General Fund,10 Uniform services,CINTAS CORP # 060A
Public Works,Clothing & Uniforms,01/11/2021,187.67,General Fund,11 Uniform services,CINTAS CORP # 060A
Public Works,Clothing & Uniforms,01/11/2021,187.67,General Fund,12 Uniform services,CINTAS CORP # 060A
Public Works,Clothing & Uniforms,01/11/2021,187.67,General Fund,13 Uniform services,CINTAS CORP # 060A
Public Works,Clothing & Uniforms,01/11/2021,201.15,General Fund,14 Uniform services,CINTAS CORP # 060A
Public Works,Clothing & Uniforms,01/11/2021,215.91,General Fund,15 Uniform services,CINTAS CORP # 060A
Public Works,Clothing & Uniforms,01/11/2021,220.45,General Fund,16 Uniform services,CINTAS CORP # 060A
Public Works,Clothing & Uniforms,01/11/2021,273.27,General Fund,17 Uniform services,CINTAS CORP # 060A
Public Works,Clothing & Uniforms,01/11/2021,274.80,General Fund,18 Uniform services,CINTAS CORP # 060A
Public Works,Clothing & Uniforms,01/11/2021,451.43,General Fund,19 Uniform services,CINTAS CORP # 060A
Public Works,Clothing & Uniforms,01/11/2021,56.92,General Fund,21 Uniform services,CINTAS CORP # 060A
Public Works,Clothing & Uniforms,01/11/2021,207.65,General Fund,22 Uniform services,CINTAS CORP # 060A
Public Works,Clothing & Uniforms,01/11/2021,207.65,General Fund,23 Uniform services,CINTAS CORP # 060A
Public Works,Clothing & Uniforms,01/11/2021,210.92,General Fund,24  Uniform services,CINTAS CORP # 060A
Public Works,Clothing & Uniforms,01/11/2021,212.42,General Fund,25 Uniform services,CINTAS CORP # 060A
Public Works,Clothing & Uniforms,01/11/2021,232.97,General Fund,26 Uniform services,CINTAS CORP # 060A
Public Works,Clothing & Uniforms,01/11/2021,235.66,General Fund,27 Uniform services,CINTAS CORP # 060A
Public Works,Clothing & Uniforms,01/11/2021,180.71,General Fund,38 PPE,INTERMOUNTAIN SAFETY SHOE
Public Works,Clothing & Uniforms,01/11/2021,207.65,General Fund,39 Uniform services,CINTAS CORP # 060A
Public Works,Clothing & Uniforms,01/11/2021,207.65,General Fund,30 Uniform services,CINTAS CORP # 060A
Public Works,Clothing & Uniforms,01/11/2021,40.47,General Fund,4.  Uniform services,CINTAS CORP # 060A
Public Works,Clothing & Uniforms,01/11/2021,63.58,General Fund,5 Uniform services,CINTAS CORP # 060A
Public Works,Clothing & Uniforms,01/11/2021,64.73,General Fund,6. Uniform services,CINTAS CORP # 060A
Public Works,Clothing & Uniforms,01/11/2021,166.59,General Fund,7. Uniform services,CINTAS CORP # 060A
Public Works,Clothing & Uniforms,01/11/2021,186.80,General Fund,8 Uniform services,CINTAS CORP # 060A
Public Works,Clothing & Uniforms,01/11/2021,186.80,General Fund,9 Uniform services,CINTAS CORP # 060A
Public Works,Clothing & Uniforms,01/11/2021,207.65,General Fund,40 Uniform services,CINTAS CORP # 060A
Public Works,Computer equipment-non cap,01/11/2021,299.00,General Fund,Replacement iPad,APL APPLE ONLINE STORE
Public Works,Computer software & supplies,01/11/2021,1725.00,General Fund,Quo-116216 -X9N5Q6 Bluebeam Su,APPLIED SOFTWARE
Public Works,Computer software & supplies,01/11/2021,922.00,General Fund,Quo-116216 -X9N5Q6 Bluebeam Su,APPLIED SOFTWARE
Public Works,Computer software & supplies,01/11/2021,545.00,General Fund,Quo-116216 -X9N5Q6 Bluebeam Su,APPLIED SOFTWARE
Public Works,Computer software & supplies,01/11/2021,654.00,General Fund,Quo-116216 -X9N5Q6 Bluebeam Su,APPLIED SOFTWARE
Public Works,Computer software & supplies,01/11/2021,144.93,General Fund,iPhone and iPad protective gla,BEST BUY MHT  00002105
Public Works,Construc Costs-Traffic Signals,01/11/2021,1231.00,Grants Fund (Oper & Capital),Signal Equipment,AM SIGNAL INC
Public Works,Construc Costs-Traffic Signals,01/11/2021,5211.00,Grants Fund (Oper & Capital),PO 10591 Inv M24945 Traffic Si,AM SIGNAL INC
Public Works,Contractor services,01/11/2021,2898.94,General Fund,PO 10522 Inv 0047194125 Quail,WASTE INDUSTRIES - NON-CO
Public Works,Contractor services,01/11/2021,375.00,Stormwater Enterprise Fund,p.o. 10384 Invoice number 1513,KEESEN LANDSCAPE MGMT INC
Public Works,Contractor services,01/11/2021,387.50,Stormwater Enterprise Fund,p.o. 10384 Invoice number 1513,KEESEN LANDSCAPE MGMT INC
Public Works,Contractor services,01/11/2021,475.00,Stormwater Enterprise Fund,P.O. 10384 Invoice number 1513,KEESEN LANDSCAPE MGMT INC
Public Works,Contractor services,01/11/2021,40.00,General Fund,Order 12120a Recycle Refrigera,RED ROCK RECYCLING
Public Works,Dues and memberships,01/11/2021,500.00,General Fund,Invoice number 1554 Membership,WPY CAPA THE COLORADO ASP
Public Works,Dues and memberships,01/11/2021,310.00,General Fund,Professional Membership,INST OF TRANSP ENG
Public Works,Dues and memberships,01/11/2021,499.00,General Fund,13 membership renewal,NAFA FLEET MGMT ASSOC
Public Works,Dues and memberships,01/11/2021,280.00,General Fund,MEMBERSHIP DUES,ASCE PURCHASING
Public Works,"Fuel, oil, lubricants",01/11/2021,1137.85,General Fund,41 OILS,COLORADO PETROLEUM PRODUC
Public Works,"Fuel, oil, lubricants",01/11/2021,471.90,General Fund,32 OILS,COLORADO PETROLEUM PRODUC
Public Works,"Fuel, oil, lubricants",01/11/2021,320.10,General Fund,A7 Oils,KENZ & LESLIE DISTRIBU
Public Works,"Fuel, oil, lubricants",01/11/2021,19.20,General Fund,B19 Propane,ARAPAHOE RENTAL
Public Works,"Fuel, oil, lubricants",01/11/2021,259.60,General Fund,D38 Oils,KENZ & LESLIE DISTRIBU
Public Works,Gasoline,01/11/2021,890.51,General Fund,2020 Wex Fuel Purchases,FLEET SERVICES
Public Works,Gasoline,01/11/2021,3773.89,General Fund,15 Unleaded Fuel,WEST METRO FIRE RESCU
Public Works,Med. & phar. supplies,01/11/2021,105.68,General Fund,19 First aid,CINTAS CORP # 060A
Public Works,Misc expenses,01/11/2021,250.00,General Fund,Jay CDL Test,JEFFCO TRAINING DEPARTMENT
Public Works,Misc expenses,01/11/2021,536.40,General Fund,D39 Welding supplies,ROCKY MOUNTAIN AIR SOLUTI
Public Works,Misc expenses,01/11/2021,38.00,General Fund,COFFEE MACHINE RENTAL,ROCKY MOUNTAIN BOTTLED WA
Public Works,Office supplies,01/11/2021,42.99,General Fund,OFFICE SUPPLIES,STAPLES
Public Works,Office supplies,01/11/2021,31.67,General Fund,Order Number 111-3628103-74642,AMAZON.COM
Public Works,Office supplies,01/11/2021,100.50,General Fund,"Invoice Numbers, 393745, 39353",ROCKY MOUNTAIN BOTTLED WA
Public Works,Office supplies,01/11/2021,68.07,General Fund,Invoice number 5043488996 firs,CINTAS CORP # 060A
Public Works,Office supplies,01/11/2021,29.84,Sewer Enterprise Fund,Order Number 114-6913800-86234,AMAZON.COM
Public Works,Office supplies,01/11/2021,12.00,General Fund,B10 Coffee,ROCKY MOUNTAIN BOTTLED WA
Public Works,Office supplies,01/11/2021,80.38,General Fund,Office Supplies,OFFICE DEPOT #1080
Public Works,Office supplies,01/11/2021,44.00,General Fund,Office Supplies,ROCKY MOUNTAIN BOTTLED WA
Public Works,Office supplies,01/11/2021,37.91,General Fund,"2020 - Permits, Dec - coffee s",ROCKY MOUNTAIN BOTTLED WA
Public Works,Office supplies,01/11/2021,37.91,General Fund,"2020 - Bldg, Dec - coffee supp",ROCKY MOUNTAIN BOTTLED WA
Public Works,Other Charges-Sidewalks,01/11/2021,7.12,Capital Improvement Fund,FedEx - S.Curtis /Fidelity Ins,FEDEX OFFICE  00004200
Public Works,Other general supplies,01/11/2021,205.00,General Fund,ICE MELT FOR RECYCLE CENTER,CPS DISTRIBUTORS #18
Public Works,Other profess & tech services,01/11/2021,438.00,General Fund,inv00029728 Public Works,CARDCONNECT
Public Works,Other profess & tech services,01/11/2021,6700.00,General Fund,inv00031001 Public Works,CARDCONNECT
Public Works,Other profess & tech services,01/11/2021,85.31,Water Enterprise Fund,12/20 WSS CC Fees,Invoice Cloud EFT
Public Works,Other profess & tech services,01/11/2021,696.68,Sewer Enterprise Fund,12/20 WSS CC Fees,Invoice Cloud EFT
Public Works,Other profess & tech services,01/11/2021,639.81,Stormwater Enterprise Fund,12/20 WSS CC Fees,Invoice Cloud EFT
Public Works,Other profess & tech services,01/11/2021,90.20,General Fund,Permits - Credit Card,CYBERSOURCE
Public Works,Other services,01/11/2021,314.40,Stormwater Enterprise Fund,City Cell Phones,ATT BILL PAYMENT
Public Works,Other small tools & equipment,01/11/2021,94.88,General Fund,"Signs, 4X6X16 posts for S. Tel",LOWES #01903
Public Works,Other small tools & equipment,01/11/2021,43.94,Stormwater Enterprise Fund,Transaction Number 10550897,LOWES #01903
Public Works,Other small tools & equipment,01/11/2021,369.00,Stormwater Enterprise Fund,Order Number 111-7970581-95506,AMAZON.COM
Public Works,Other small tools & equipment,01/11/2021,24.98,Water Enterprise Fund,Transaction Number 2961425 Imp,LOWES #01903
Public Works,Other small tools & equipment,01/11/2021,409.10,Water Enterprise Fund,Transaction number 78519 Flexv,THE HOME DEPOT 1514
Public Works,Other small tools & equipment,01/11/2021,557.10,General Fund,Transaction number 8138178 DW,LOWES #01903
Public Works,Other small tools & equipment,01/11/2021,29.95,General Fund,Order Number 545471-0001 Broom,CONTRACTORS SUPPLY INC
Public Works,Other small tools & equipment,01/11/2021,2200.00,General Fund,"Cares Act, Order Number s16026",HUGHES SUPPLY
Public Works,Other small tools & equipment,01/11/2021,3110.00,General Fund,"CARES, Ref Number 035720422743",ISA
Public Works,Other small tools & equipment,01/11/2021,29.99,Water Enterprise Fund,Order Number 114-4024130-78930,AMAZON.COM
Public Works,Other small tools & equipment,01/11/2021,108.38,Stormwater Enterprise Fund,Transaction number 7586030 Blu,LOWES #01903
Public Works,Other small tools & equipment,01/11/2021,108.49,Water Enterprise Fund,Ticket number N515797 Descaler,CORE & MAIN LP - CO054
Public Works,Other small tools & equipment,01/11/2021,56.00,Stormwater Enterprise Fund,Transaction number 46035754947,"DOUBLE A SECURITY, INC."
Public Works,Other small tools & equipment,01/11/2021,224.85,General Fund,Order number 114-0332908-41090,AMAZON.COM
Public Works,Other small tools & equipment,01/11/2021,96.88,Stormwater Enterprise Fund,Transaction Number 10236820 Cr,LOWES #01903
Public Works,Other small tools & equipment,01/11/2021,319.98,General Fund,Transaction number 445451 Tarp,HARBOR FREIGHT TOOLS 230
Public Works,Other small tools & equipment,01/11/2021,4790.47,General Fund,invoice number 5672360-1 Range,WPY GENERAL AIR SERVICE
Public Works,Other small tools & equipment,01/11/2021,39.80,Water Enterprise Fund,Order number 113-4049649-98522,AMAZON.COM
Public Works,Other small tools & equipment,01/11/2021,189.97,Stormwater Enterprise Fund,Transaction number 62762 Pipe,THE HOME DEPOT 1514
Public Works,Other small tools & equipment,01/11/2021,420.33,General Fund,Purchase number P18178 SO 108-,FARIS MACHINERY COMPAN
Public Works,Other small tools & equipment,01/11/2021,205.88,General Fund,Transaction number 10352524 St,LOWES #01903
Public Works,Other small tools & equipment,01/11/2021,2300.66,General Fund,"CARES, Transaction number 0052",INTERMOUNTAIN SAFETY SHOE
Public Works,Other small tools & equipment,01/11/2021,90.93,General Fund,Invoice number 13172968 Shovel,BOBCAT GOLDEN
Public Works,Other small tools & equipment,01/11/2021,403.99,General Fund,Invoice Number 13172981 Diamon,BOBCAT GOLDEN
Public Works,Other small tools & equipment,01/11/2021,377.85,Stormwater Enterprise Fund,Transaction Number 58236 DW 20,THE HOME DEPOT 1514
Public Works,Other small tools & equipment,01/11/2021,448.38,Stormwater Enterprise Fund,Transaction Number 94228 3000,THE HOME DEPOT 1514
Public Works,Other small tools & equipment,01/11/2021,387.95,General Fund,"Invoice Number 1 36"" Lute, Tac",VANCE BROTHERS DENVER
Public Works,Other small tools & equipment,01/11/2021,1816.00,General Fund,"CARES, Invoice 6822, PM234361L",PF COMAC
Public Works,Other small tools & equipment,01/11/2021,28.98,General Fund,Equipment,LOWES #01903
Public Works,Plumb. and elect. supplies,01/11/2021,18.98,General Fund,48 pack of AA Batteries,AMAZON.COM
Public Works,Plumb. and elect. supplies,01/11/2021,255.98,General Fund,Cabinet mounting brackets,TRAFFIC AND ZAP SUPPLY
Public Works,Plumb. and elect. supplies,01/11/2021,1571.60,General Fund,40 pcs Red LED 15yr,TRAFFIC SIGNAL CONTROLS
Public Works,Plumb. and elect. supplies,01/11/2021,4274.00,General Fund,"40 pcs each  R,Y,G LED 15yr",TRAFFIC SIGNAL CONTROLS
Public Works,Plumb. and elect. supplies,01/11/2021,2781.78,General Fund,Meter Cabinet Replacement 20th,GEXPRO 7325
Public Works,Postage & delivery,01/11/2021,12.32,General Fund,FedEx - M. Sawyer/Fleet,FEDEX OFFICE  00004200
Public Works,Repair & maintenance supplies,01/11/2021,560.00,General Fund,Axis Camera Repair,"AXIS COMMUNICATIONS, INC."
Public Works,Repair & maintenance supplies,01/11/2021,1607.40,Water Enterprise Fund,Ticket Number N464138 B24258N,CORE & MAIN LP - CO054
Public Works,Repair & maintenance supplies,01/11/2021,1709.87,Water Enterprise Fund,Pick Ticket N464130 6x15x3/4cc,CORE & MAIN LP - CO054
Public Works,Repair & maintenance supplies,01/11/2021,197.70,Water Enterprise Fund,Ticket Number N498667 (Tax cha,CORE & MAIN LP - CO054
Public Works,Repair & maintenance supplies,01/11/2021,1046.32,Water Enterprise Fund,invoice number N452803 XR501-7,CORE & MAIN LP - CO054
Public Works,Repairs & maint-motor vehicles,01/11/2021,380.00,General Fund,B11 Decom,IN  RECREATIONAL ELECTRIC
Public Works,Repairs & maint-motor vehicles,01/11/2021,9240.00,General Fund,B12 Upfit,IN  RECREATIONAL ELECTRIC
Public Works,Repairs & maint-motor vehicles,01/11/2021,79.00,General Fund,B13 Tires,COLORADOLAND TIRE AND SER
Public Works,Repairs & maint-motor vehicles,01/11/2021,2566.18,General Fund,B14 Tires,COLORADOLAND TIRE AND SER
Public Works,Repairs & maint-motor vehicles,01/11/2021,352.76,General Fund,B15 Tires,COLORADOLAND TIRE AND SER
Public Works,Repairs & maint-motor vehicles,01/11/2021,585.60,General Fund,A9 Tires,COLORADOLAND TIRE AND SER
Public Works,Repairs & maint-motor vehicles,01/11/2021,322.17,General Fund,A1 Alignment,MERRILL AUTOMOTIVE
Public Works,Repairs & maint-motor vehicles,01/11/2021,8860.75,General Fund,A2 Tires,A & E TIRE
Public Works,Repairs & maint-motor vehicles,01/11/2021,5146.79,General Fund,A3 Auto Parts,GENERAL PARTS-CARQUEST
Public Works,Repairs & maint-motor vehicles,01/11/2021,625.16,General Fund,A4 Tires,COLORADOLAND TIRE AND SER
Public Works,Repairs & maint-motor vehicles,01/11/2021,1280.26,General Fund,A5  Auto Parts,EMICH CHEVROLET
Public Works,Repairs & maint-motor vehicles,01/11/2021,61.23,General Fund,A6 Parts,BOBCAT GOLDEN
Public Works,Repairs & maint-motor vehicles,01/11/2021,679.92,General Fund,E41 Parts,BOBCAT GOLDEN
Public Works,Repairs & maint-motor vehicles,01/11/2021,488.53,General Fund,D36 Auto parts,OMEARA FORD
Public Works,Repairs & maint-motor vehicles,01/11/2021,2748.54,General Fund,D37 Auto parts,OMEARA FORD
Public Works,Repairs & maint-motor vehicles,01/11/2021,470.16,General Fund,E44 Sweeper parts,EQMNT CO OF THE ROCKIES
Public Works,Repairs & maint-motor vehicles,01/11/2021,900.00,General Fund,E45 Body shop,WORLD COMPASS COLLISIO
Public Works,Repairs & maint-motor vehicles,01/11/2021,900.00,General Fund,E46 Body shop,WORLD COMPASS COLLISIO
Public Works,Repairs & maint-motor vehicles,01/11/2021,900.00,General Fund,E47 Body shop,WORLD COMPASS COLLISIO
Public Works,Repairs & maint-motor vehicles,01/11/2021,219.00,General Fund,E48 Glass repair,SQ  BEVERLY HILLS GLASS R
Public Works,Repairs & maint-motor vehicles,01/11/2021,247.66,General Fund,C21 Parts,ALL TRUCK AND TRAILER
Public Works,Repairs & maint-motor vehicles,01/11/2021,3644.13,General Fund,C22 Body shop,WORLD COMPASS COLLISIO
Public Works,Repairs & maint-motor vehicles,01/11/2021,2991.25,General Fund,C23 Body shop,ADVANCED TRANSMISSION
Public Works,Repairs & maint-motor vehicles,01/11/2021,1155.68,General Fund,B16 Tires,COLORADOLAND TIRE AND SER
Public Works,Repairs & maint-motor vehicles,01/11/2021,1250.32,General Fund,B17 Tires,COLORADOLAND TIRE AND SER
Public Works,Repairs & maint-motor vehicles,01/11/2021,400.00,General Fund,B18 Upfititng,AV TECH ELECTRONICS IN
Public Works,Repairs & maint-motor vehicles,01/11/2021,1627.61,General Fund,C26 Bus parts,DAVEY COACH SALES
Public Works,Repairs & maint-motor vehicles,01/11/2021,18074.09,General Fund,C27 Truck parts,MCCANDLESS TRUCK CENTER
Public Works,Repairs & maint-motor vehicles,01/11/2021,2930.66,General Fund,C28 Body shop,WORLD COMPASS COLLISIO
Public Works,Repairs & maint-motor vehicles,01/11/2021,325.09,General Fund,C29 Parts,AUTOMOTIVE EVOLUTION
Public Works,Repairs & maint-motor vehicles,01/11/2021,115.02,General Fund,D30 Sweeper parts,EQMNT CO OF THE ROCKIES
Public Works,Repairs & maint-motor vehicles,01/11/2021,311.34,General Fund,D31 Sweeper parts,EQMNT CO OF THE ROCKIES
Public Works,Repairs & maint-motor vehicles,01/11/2021,1432.97,General Fund,D32 Sweeper parts,EQMNT CO OF THE ROCKIES
Public Works,Repairs & maint-motor vehicles,01/11/2021,482.25,General Fund,D33 Parts,BOBCAT GOLDEN
Public Works,Repairs & maint-motor vehicles,01/11/2021,612.50,General Fund,D34 Body shop,WORLD COMPASS COLLISIO
Public Works,Repairs & maint-motor vehicles,01/11/2021,450.00,General Fund,D35 Parts,BOBCAT GOLDEN
Public Works,Repairs & maint-motor vehicles,01/11/2021,41.75,General Fund,FLEET TRANSACTION,CO DORA LICENSING
Public Works,Repairs & maint-motor vehicles,01/11/2021,210.08,General Fund,1 HD Parts,AMAZON.COM
Public Works,Repairs & maint-motor vehicles,01/11/2021,2710.93,General Fund,2 HD Parts,BOBCAT OF ROCKIES OAKLAN
Public Works,Repairs & maint-motor vehicles,01/11/2021,943.00,General Fund,7 HD Parts,H2O POWER EQUIPMENT IN
Public Works,Repairs & maint-motor vehicles,01/11/2021,595.00,General Fund,33 HD PARTS,NATIONAL FLUID POWER
Public Works,Repairs & maint-motor vehicles,01/11/2021,770.00,General Fund,35 HD PARTS,CUMMINS INC - 40
Public Works,Repairs & maint-motor vehicles,01/11/2021,770.00,General Fund,36 HD PARTS,CUMMINS INC - 40
Public Works,Repairs & maint-motor vehicles,01/11/2021,7542.78,General Fund,37 SHOP SUPPLIES,LAWSON PRODUCTS
Public Works,Repairs & maint-motor vehicles,01/11/2021,243.00,General Fund,20 tire recycling service,AMERICAN TIRE EXCHANGE
Public Works,Repairs & maint-motor vehicles,01/11/2021,4015.00,General Fund,20 Wireless,SPRINT  WIRELESS
Public Works,Repairs & maint-motor vehicles,01/11/2021,28095.48,General Fund,17 Upfitting,AV TECH ELECTRONICS IN
Public Works,Repairs & maint-motor vehicles,01/11/2021,527.68,General Fund,6 Parts,PRECISE MRM LLC
Public Works,Repairs & maint-motor vehicles,01/11/2021,258.97,General Fund,9 HD Parts,BULLHIDE 4X4
Public Works,Repairs & maint-motor vehicles,01/11/2021,582.40,General Fund,10 HD Parts,WEAR PARTS AND EQUIPMENT
Public Works,Repairs & maint-motor vehicles,01/11/2021,1380.84,General Fund,11 HD Parts,WEAR PARTS AND EQUIPMENT
Public Works,Repairs & maint-motor vehicles,01/11/2021,3918.00,General Fund,12 Wireless,SPRINT  WIRELESS
Public Works,Repairs & maint-motor vehicles,01/11/2021,3770.80,General Fund,1. HD truck repair,DETROIT TRANSMISSION
Public Works,Repairs & maint-motor vehicles,01/11/2021,460.48,General Fund,3. HD parts,BOBCAT GOLDEN
Public Works,Repairs & maint-motor vehicles,01/11/2021,42.00,General Fund,28 HD PARTS,IN  OWENS EQUIPMENT LLC
Public Works,Repairs & maint-motor vehicles,01/11/2021,332.19,General Fund,29 HD LIGHTING,AMAZON.COM
Public Works,Repairs & maint-plant/system,01/11/2021,370.00,General Fund,16 Nov and Dec inspection,SQ  TASMAN GEOSCIENCES
Public Works,Repairs & maint-plant/system,01/11/2021,52.50,General Fund,14 Fuel site monitoring,GILBARCO VEEDER ROOT
Public Works,Repairs & maint-plant/system,01/11/2021,232.00,General Fund,18 Drums,SAFETYKLEENSYSTEMSBRANCH
Public Works,Repairs & maint-plant/system,01/11/2021,854.41,General Fund,34 WASH BAY PARTS & SERVICE,RED ARROW MANUFACTURING
Public Works,Repairs & maint-plant/system,01/11/2021,591.11,General Fund,8 Waste disposal,AIRVAC SERVICES INC
Public Works,Repairs & maint-plant/system,01/11/2021,431.00,General Fund,3 Fuel site parts & services,KUBAT EQUIPMENT AND SE
Public Works,Repairs & maint-plant/system,01/11/2021,52.50,General Fund,4 Fuel site monitoring,GILBARCO VEEDER ROOT
Public Works,Repairs & maint-plant/system,01/11/2021,315.00,General Fund,5 Fuel site monitoring,GILBARCO VEEDER ROOT
Public Works,Sanitation,01/11/2021,80.00,Sewer Enterprise Fund,portolet(s),UNITED SITE SERVICES O
Public Works,Sanitation,01/11/2021,90.00,General Fund,portolet(s),UNITED SITE SERVICES O
Public Works,Shop equipment-non cap,01/11/2021,9782.00,General Fund,E42 Tools,KENNETH RONER SNAP ON
Public Works,Telecommunications,01/11/2021,318.33,General Fund,City Cell Phones,ATT BILL PAYMENT
Public Works,Telecommunications,01/11/2021,172.92,General Fund,City Cell Phones,ATT BILL PAYMENT
Public Works,Telecommunications,01/11/2021,39.99,Water Enterprise Fund,City Cell Phones,ATT BILL PAYMENT
Public Works,Telecommunications,01/11/2021,86.46,Capital Improvement Fund,City Cell Phones,ATT BILL PAYMENT
Public Works,Telecommunications,01/11/2021,81.28,General Fund,City Cell Phones,ATT BILL PAYMENT
Public Works,Telecommunications,01/11/2021,535.62,General Fund,City Cell Phones,ATT BILL PAYMENT
Public Works,Telecommunications,01/11/2021,1267.04,General Fund,City Cell Phones,ATT BILL PAYMENT
Public Works,Telecommunications,01/11/2021,55.02,Stormwater Enterprise Fund,City Cell Phones,ATT BILL PAYMENT
Public Works,Telecommunications,01/11/2021,26.26,General Fund,City Cell Phones,ATT BILL PAYMENT
Public Works,Telecommunications,01/11/2021,1289.35,General Fund,City Cell Phones,ATT BILL PAYMENT
Public Works,Telecommunications,01/11/2021,280.09,General Fund,PD Aircards,VERIZON WIRELESS
Public Works,Telecommunications,01/11/2021,120.03,General Fund,PD Aircards,VERIZON WIRELESS
Public Works,Telecommunications,01/11/2021,14.56,General Fund,City Pagers,AMERICAN MESSAGING
Public Works,Telecommunications,01/11/2021,13.97,General Fund,City Pagers,AMERICAN MESSAGING
Public Works,Towing,01/11/2021,735.00,General Fund,2.  Towing services,ACE TOWING
Public Works,Training,01/11/2021,50.00,General Fund,Professional Meeting,EVENT  NCUTCD ANNUAL M
Community Resources,Water,01/12/2021,66.59,Open Space Fund,1001 SIMMS MCDONNELL PK,HIGH VIEW WATER DISTRICT
Community Resources,Water,01/12/2021,23.37,Open Space Fund,1235 SIMMS ST,HIGH VIEW WATER DISTRICT
Community Resources,Water,01/12/2021,23.37,Open Space Fund,1185 SIMMS ST,HIGH VIEW WATER DISTRICT
Community Resources,Water,01/12/2021,23.37,Open Space Fund,1175 SIMMS ST,HIGH VIEW WATER DISTRICT
Community Resources,Water,01/12/2021,24.66,Open Space Fund,1001 KIPLING ST,HIGH VIEW WATER DISTRICT
Community Resources,Water,01/12/2021,34.94,General Fund,ACROSSFROM 11308 COLLINS AVE,HIGH VIEW WATER DISTRICT
Police,Contractor services,01/12/2021,234457.00,General Fund,2021 ASSESSMENT,FOOTHILLS ANIMAL SHELTER
Police,Other profess & tech services,01/12/2021,77475.08,General Fund,IGA 2021 Contribution,JEFFERSON COUNTY JUVENILE ASSESSMENT CTR
Public Works,Electricity,01/12/2021,145438.11,General Fund,electricity,XCEL ENERGY
Public Works,Repairs & maint-plant/system,01/12/2021,16233.16,General Fund,electricity,XCEL ENERGY
Public Works,Travel - auto expense,01/12/2021,464.03,General Fund,Mileage Reimbursement,"MONTOYA, RAMON V"
City Attorney,Dues and memberships,01/13/2021,675.00,General Fund,2021 CDAC Membership,COLORADO DISTRICT ATTORNEYS COUNCIL
City Attorney,Legal - outside,01/13/2021,1074.70,General Fund,2020 LW Citizens V. COL,HALL & EVANS LLC
City Attorney,Legal - outside,01/13/2021,957.00,General Fund,2020 Irizarry V. Yehia,HALL & EVANS LLC
City Attorney,Legal - outside,01/13/2021,5795.00,General Fund,2020 St. George v. COL,HALL & EVANS LLC
City Attorney,Legal - outside,01/13/2021,133.00,General Fund,2020 Johnson v. COL,HALL & EVANS LLC
City Attorney,Legal - outside,01/13/2021,73.50,General Fund,2020 Brandt v. Yehia,HALL & EVANS LLC
City Attorney,Legal - outside,01/13/2021,627.00,General Fund,2020 COL v. Holowecki,HALL & EVANS LLC
City Attorney,Legal - outside,01/13/2021,1574.70,General Fund,2020Green v. Lee,HALL & EVANS LLC
City Attorney,Legal - outside,01/13/2021,4669.62,General Fund,2020 SOL v. COL,HALL & EVANS LLC
City Attorney,Legal - outside,01/13/2021,1094.00,General Fund,2020 Lgl Srvcs 11-2020 / 12-20,KISSINGER & FELLMAN PC
City Attorney,Legal - outside,01/13/2021,586.00,General Fund,2020 Unified/WIld Flower,HOFFMANN PARKER WILSON & CARBERRY PC
City Attorney,Legal - outside,01/13/2021,1129.50,General Fund,2020 Galbreath,HOFFMANN PARKER WILSON & CARBERRY PC
City Attorney,Legal - outside,01/13/2021,3995.00,General Fund,2020 Saunders,HOFFMANN PARKER WILSON & CARBERRY PC
City Attorney,Legal - outside,01/13/2021,43.50,General Fund,2020 Burns & Wilson,HOFFMANN PARKER WILSON & CARBERRY PC
Community Resources,Chem. & lab. supplies,01/13/2021,424.65,General Fund,Pool Treatment Chemicals,THE AQUEOUS SOLUTION INC.
Community Resources,Cleaning & janitorial services,01/13/2021,861.50,Golf Course Enterprise Fund,Custodial Services -FH,OPENWORKS
Community Resources,Cleaning & janitorial services,01/13/2021,861.50,Golf Course Enterprise Fund,Custodial Services -HMSTD,OPENWORKS
Community Resources,Cleaning & janitorial services,01/13/2021,14807.32,General Fund,Custodial Services,CARNATION BUILDING SERVICE INC
Community Resources,Cleaning & janitorial services,01/13/2021,5950.99,General Fund,Custodial Services per RFP,CARNATION BUILDING SERVICE INC
Community Resources,Computer software & supplies,01/13/2021,2878.74,General Fund,Subscription,DIGIQUATICS
Community Resources,Consulting Costs-Site Improve,01/13/2021,29751.25,Open Space Fund,Irrigation Design Consultant -,IRRIGATION TECHNOLOGIES
Community Resources,Consulting Costs-Site Improve,01/13/2021,193.75,Open Space Fund,CO 1 Add'l SOW & extend to,MULLER ENGINEERING CO INC
Community Resources,Contractor services,01/13/2021,1365.00,General Fund,Snow & Ice Removal Civic Ctr &,JPL CARES
Community Resources,Contractor services,01/13/2021,1192.50,General Fund,Snow & Ice Removal Civic Ctr &,JPL CARES
Community Resources,Contractor services,01/13/2021,455.00,General Fund,Snow & Ice Removal Civic Ctr &,JPL CARES
Community Resources,Contractor services,01/13/2021,200.00,General Fund,Snow & Ice Removal Civic Ctr &,JPL CARES
Community Resources,Contractor services,01/13/2021,312.50,General Fund,Snow & Ice Removal Civic Ctr &,JPL CARES
Community Resources,Contractor services,01/13/2021,307.50,General Fund,Snow & Ice Removal Civic Ctr &,JPL CARES
Community Resources,Contractor services,01/13/2021,430.00,General Fund,Power Sweeping Garage & Drive,CAM SERVICES
Community Resources,Other utility services,01/13/2021,12.23,General Fund,9401 MORRISON RD,XCEL ENERGY
Community Resources,Other utility services,01/13/2021,11.85,General Fund,1930 S BEAR CREEK BLVD,XCEL ENERGY
Community Resources,Other utility services,01/13/2021,11.76,General Fund,1206 WADSWORTH BLVD,XCEL ENERGY
Community Resources,Other utility services,01/13/2021,23.37,General Fund,1301 CARR ST,XCEL ENERGY
Community Resources,Other utility services,01/13/2021,93.22,General Fund,5601 W 13TH AVE-MOUNTAIR LIGHT,XCEL ENERGY
Community Resources,Other utility services,01/13/2021,36.43,General Fund,1295 S REED ST-LINK SIGN,XCEL ENERGY
Community Resources,Other utility services,01/13/2021,3017.54,General Fund,PARFET MONTHLY BILL,XCEL ENERGY
Community Resources,Rent - land & buildings,01/13/2021,942.00,General Fund,SAS Bldg use for Nov 2020,JEFFERSON COUNTY SCHOOL DISTRICT R-1
Community Resources,Repairs & maint - bldgs,01/13/2021,11337.50,Golf Course Enterprise Fund,FH Clubhouse Kitchen  Exhaust,SUPERIOR HOOD & SAFETY LLC
Finance,Cleaning & janitorial services,01/13/2021,6889.14,Grants Fund (Oper & Capital),COVID-19 Day Porter Custodial,CARNATION BUILDING SERVICE INC
Finance,Contractor services,01/13/2021,12550.98,Grants Fund (Oper & Capital),Hirsch Security System Upgrade,BEACON COMMUNICATIONS
Finance,Contractor services,01/13/2021,642.34,Grants Fund (Oper & Capital),Add'l Items,BEACON COMMUNICATIONS
Finance,Contractor services,01/13/2021,7851.40,Grants Fund (Oper & Capital),Add'l Items,BEACON COMMUNICATIONS
Police,Cleaning & janitorial services,01/13/2021,500.00,General Fund,cleaning services,RAINBOW MAINTENANCE SERVICES
Police,Computer software & supplies,01/13/2021,12408.00,General Fund,RGNL DATA WAREHOUSE/MBRSHP FEE,COLORADO INFORMATION SHARING CONSORTIUM
Public Works,Building material supplies,01/13/2021,3755.30,General Fund,8744 MAPO Salt,CENTRAL SALT LLC
Public Works,Clothing & Uniforms,01/13/2021,75.00,General Fund,2020 SAFETY BOOT REIMURSEMENT,"LANGLAIS, BRIAN J"
Public Works,Construc Costs-Streets/Roadway,01/13/2021,6560.00,Capital Improvement Fund,Concrete Rpr & Asphalt Overlay,WESTEST LLC
Public Works,Construc Costs-Streets/Roadway,01/13/2021,345.00,Capital Improvement Fund,Concrete Rpr & Asphalt Overlay,WESTEST LLC
Public Works,Construc Costs-Streets/Roadway,01/13/2021,103707.76,Capital Improvement Fund,Schedule B per Bid 4725 Ext 2,MARTIN MARIETTA MATERIALS
Public Works,Contractor services,01/13/2021,11605.00,General Fund,Annual Snowplow Services,SCHULTZ INDUSTRIES INC
Public Works,Contractor services,01/13/2021,58730.00,General Fund,Annual Snowplow Services,SCHULTZ INDUSTRIES INC
Public Works,Dues and memberships,01/13/2021,50.00,General Fund,2021 permit tech member dues,COLORADO ASSOC OF PERMIT TECHNICIANS
Public Works,Other profess & tech services,01/13/2021,1200.00,General Fund,Software Maintenance Renewal,TRANSCORE ITS LLC
Community Resources,Alarm systems,01/14/2021,12500.00,Capital Improvement Fund,"Civic South, Fire Alarm System",JDE FIRE AND SECURITY LLC
Community Resources,Construction Costs-Other Impro,01/14/2021,300.00,Golf Course Enterprise Fund,Fox Hollow Sewer Line Study,"THE RMH GROUP, INC."
Community Resources,Contractor services,01/14/2021,11648.00,Open Space Fund,Electronic Waste & Recycling,BIG BELLY SOLAR INC
Community Resources,Misc expenses,01/14/2021,1549.00,General Fund,Precor UBK 835 - Split Account,"PUSH PEDAL PULL, INC."
Community Resources,Misc expenses,01/14/2021,5636.00,General Fund,Precor RBK 835,"PUSH PEDAL PULL, INC."
Community Resources,Misc expenses,01/14/2021,495.00,General Fund,Freight,"PUSH PEDAL PULL, INC."
Community Resources,Misc expenses,01/14/2021,320.00,General Fund,Delivery/Install,"PUSH PEDAL PULL, INC."
Community Resources,Other general supplies,01/14/2021,5999.00,General Fund,Patriot Portable Lift,MARINA POOL AND SPA CO LLC
Community Resources,Other general supplies,01/14/2021,298.00,General Fund,Rechargeable Battery,MARINA POOL AND SPA CO LLC
Community Resources,Other general supplies,01/14/2021,350.00,General Fund,Freight,MARINA POOL AND SPA CO LLC
Community Resources,Other property services,01/14/2021,800.00,Golf Course Enterprise Fund,Tracing Conduit at Fox Hollow,ADVANCED FIBER RESPONSE INC
Community Resources,"Printing, copying & binding",01/14/2021,3028.86,Open Space Fund,Daily park passes,GRAPHIC CONCEPTS INC
Community Resources,Recreational supplies,01/14/2021,1067.00,General Fund,Precor UBK 835 -Split Account,"PUSH PEDAL PULL, INC."
Community Resources,Sanitation,01/14/2021,9.97,Open Space Fund,9351 W JEWELL AVE,BANCROFT CLOVER W & S DIST
Community Resources,Sanitation,01/14/2021,45.39,Open Space Fund,1955 S KIPLING ST,BANCROFT CLOVER W & S DIST
Community Resources,Sanitation,01/14/2021,286.89,Open Space Fund,1295 S REED ST CMPND,BANCROFT CLOVER W & S DIST
Community Resources,Sanitation,01/14/2021,19.63,General Fund,5370 W OHIO AVE,BANCROFT CLOVER W & S DIST
Community Resources,Sanitation,01/14/2021,9.97,General Fund,1393 S KENDALL CT,BANCROFT CLOVER W & S DIST
Community Resources,Sanitation,01/14/2021,16.41,General Fund,1392 S LAMAR ST,BANCROFT CLOVER W & S DIST
Community Resources,Sanitation,01/14/2021,9.97,General Fund,5675 W OHIO AVE,BANCROFT CLOVER W & S DIST
Community Resources,Sanitation,01/14/2021,409.25,General Fund,2200 S KIPLING ST,BANCROFT CLOVER W & S DIST
Community Resources,Sanitation,01/14/2021,9.97,General Fund,1470 S YARROW ST,BANCROFT CLOVER W & S DIST
Community Resources,Sanitation,01/14/2021,6.75,General Fund,2220 S KIPLING ST,BANCROFT CLOVER W & S DIST
Community Resources,Sanitation,01/14/2021,13.19,General Fund,801 S YARROW ST,BANCROFT CLOVER W & S DIST
Community Resources,Sanitation,01/14/2021,19.63,General Fund,1480 S YARROW ST,BANCROFT CLOVER W & S DIST
Community Resources,Sanitation,01/14/2021,16.41,General Fund,7735 W FLORIDA AVE,BANCROFT CLOVER W & S DIST
Community Resources,Sanitation,01/14/2021,6.75,General Fund,867 S YARROW IRR ST,BANCROFT CLOVER W & S DIST
Community Resources,Sanitation,01/14/2021,6.75,General Fund,797 S WADSWORTH BLVD,BANCROFT CLOVER W & S DIST
Community Resources,Sanitation,01/14/2021,203.17,General Fund,480 S ALLISON PKWY,BANCROFT CLOVER W & S DIST
Community Resources,Sanitation,01/14/2021,6.75,General Fund,797 S WADSWORTH BLVD,BANCROFT CLOVER W & S DIST
Community Resources,Sanitation,01/14/2021,6.75,General Fund,787 S WADSWORTH MTC BLDG,BANCROFT CLOVER W & S DIST
Community Resources,Sanitation,01/14/2021,6.75,General Fund,445 S ALLISON  PARKWAY,BANCROFT CLOVER W & S DIST
Community Resources,Sanitation,01/14/2021,6.75,General Fund,857 S YARROW ST,BANCROFT CLOVER W & S DIST
Community Resources,Sanitation,01/14/2021,19.63,General Fund,7840 W OHIO AVE,BANCROFT CLOVER W & S DIST
Community Resources,Sanitation,01/14/2021,6.75,General Fund,7850 W OHIO AVE,BANCROFT CLOVER W & S DIST
Community Resources,Sanitation,01/14/2021,9.97,General Fund,7830 W OHIO AVE IRR AVE,BANCROFT CLOVER W & S DIST
Community Resources,Sanitation,01/14/2021,9.97,Open Space Fund,680 S HARLAN ST,BANCROFT CLOVER W & S DIST
Community Resources,Water,01/14/2021,18.80,Open Space Fund,7351 W FLORIDA AVE IRR,BANCROFT CLOVER W & S DIST
Community Resources,Water,01/14/2021,24.65,Open Space Fund,10461 W EVANS AVE IRR,BANCROFT CLOVER W & S DIST
Community Resources,Water,01/14/2021,18.80,Open Space Fund,9351 W JEWELL AVE,BANCROFT CLOVER W & S DIST
Community Resources,Water,01/14/2021,14.31,Open Space Fund,1055 S WADSWORTH IRR,BANCROFT CLOVER W & S DIST
Community Resources,Water,01/14/2021,14.31,Open Space Fund,1197 S WADSWORTH IRR,BANCROFT CLOVER W & S DIST
Community Resources,Water,01/14/2021,24.65,Open Space Fund,5954 W ILLIFF DR IRR,BANCROFT CLOVER W & S DIST
Community Resources,Water,01/14/2021,15.90,Open Space Fund,1887 S PIERCE ST IRR,BANCROFT CLOVER W & S DIST
Community Resources,Water,01/14/2021,14.31,Open Space Fund,1640 S WADSWORTH BLVD,BANCROFT CLOVER W & S DIST
Community Resources,Water,01/14/2021,14.31,Open Space Fund,2113 S WADSWORTH IRR,BANCROFT CLOVER W & S DIST
Community Resources,Water,01/14/2021,18.80,Open Space Fund,1850 S GARRISON ST IRR,BANCROFT CLOVER W & S DIST
Community Resources,Water,01/14/2021,24.65,Open Space Fund,6480 W ARKANSAS AVE IRG,BANCROFT CLOVER W & S DIST
Community Resources,Water,01/14/2021,14.48,Open Space Fund,2250 S GARRISON IRG,BANCROFT CLOVER W & S DIST
Community Resources,Water,01/14/2021,24.65,Open Space Fund,10520 W FLORIDA AVE,BANCROFT CLOVER W & S DIST
Community Resources,Water,01/14/2021,15.90,Open Space Fund,6480 W ARKANSAS AVE,BANCROFT CLOVER W & S DIST
Community Resources,Water,01/14/2021,24.65,Open Space Fund,1450 S GARRISON ST-IRG,BANCROFT CLOVER W & S DIST
Community Resources,Water,01/14/2021,24.65,Open Space Fund,10500 W FLORIDA AV,BANCROFT CLOVER W & S DIST
Community Resources,Water,01/14/2021,24.65,Open Space Fund,7832 W OHIO AVE IRR,BANCROFT CLOVER W & S DIST
Community Resources,Water,01/14/2021,18.80,Open Space Fund,7000 W KENTUCKY IRR,BANCROFT CLOVER W & S DIST
Community Resources,Water,01/14/2021,33.98,Open Space Fund,7780 W OHIO AVE,BANCROFT CLOVER W & S DIST
Community Resources,Water,01/14/2021,14.31,General Fund,5370 W OHIO AVE,BANCROFT CLOVER W & S DIST
Community Resources,Water,01/14/2021,14.31,General Fund,867 S YARROW IRR ST,BANCROFT CLOVER W & S DIST
Community Resources,Water,01/14/2021,14.31,General Fund,7850 W OHIO AVE IRR AVE,BANCROFT CLOVER W & S DIST
Community Resources,Water,01/14/2021,14.31,General Fund,785O W OHIO AVE,BANCROFT CLOVER W & S DIST
Community Resources,Water,01/14/2021,14.31,General Fund,7840 W OHIO AVE,BANCROFT CLOVER W & S DIST
Community Resources,Water,01/14/2021,14.31,General Fund,857 S YARROW ST,BANCROFT CLOVER W & S DIST
Community Resources,Water,01/14/2021,30.00,General Fund,7735 W FLORIDA AVE,BANCROFT CLOVER W & S DIST
Community Resources,Water,01/14/2021,35.23,General Fund,1480 S YARROW ST,BANCROFT CLOVER W & S DIST
Community Resources,Water,01/14/2021,18.80,General Fund,801 S YARROW ST,BANCROFT CLOVER W & S DIST
Community Resources,Water,01/14/2021,24.65,General Fund,2220 S KIPLING ST,BANCROFT CLOVER W & S DIST
Community Resources,Water,01/14/2021,20.23,General Fund,1470 S YARROW ST,BANCROFT CLOVER W & S DIST
Community Resources,Water,01/14/2021,479.63,General Fund,2200 S KIPLING ST,BANCROFT CLOVER W & S DIST
Community Resources,Water,01/14/2021,19.54,General Fund,5675 W OHIO AVE,BANCROFT CLOVER W & S DIST
Community Resources,Water,01/14/2021,30.00,General Fund,1392 S LAMAR ST,BANCROFT CLOVER W & S DIST
Community Resources,Water,01/14/2021,14.31,General Fund,1393 S KENDALL CT,BANCROFT CLOVER W & S DIST
Community Resources,Water,01/14/2021,71.71,Open Space Fund,680 S HARLAN ST,BANCROFT CLOVER W & S DIST
Community Resources,Water,01/14/2021,338.29,Open Space Fund,1295 S REED ST CMPND,BANCROFT CLOVER W & S DIST
Community Resources,Water,01/14/2021,64.34,Open Space Fund,1955 S KIPLING ST,BANCROFT CLOVER W & S DIST
Community Resources,Water,01/14/2021,14.31,Open Space Fund,9351 W JEWELL AVE,BANCROFT CLOVER W & S DIST
Information Technology,Computer software & supplies,01/14/2021,23970.00,General Fund,2020-138 PD Software Maint,LEXISNEXIS RISK SOLUTIONS
Police,Consulting,01/14/2021,11395.00,General Fund,NICHEDATAQLTYSERV011921-021821,BLUE SKIES ASSOCIATES LIMITED
Public Works,Construc Costs-Traffic Signals,01/14/2021,260.00,Capital Improvement Fund,USE THIS ACCOUNT,LUMIN8 TRANSPORTATION TECHNOLOGIES LLC
Public Works,Construc Costs-Traffic Signals,01/14/2021,809.38,Capital Improvement Fund,USE THIS ACCOUNT,LUMIN8 TRANSPORTATION TECHNOLOGIES LLC
Public Works,Construc Costs-Traffic Signals,01/14/2021,2948.00,Capital Improvement Fund,USE THIS ACCOUNT,LUMIN8 TRANSPORTATION TECHNOLOGIES LLC
Public Works,Contractor services,01/14/2021,360.00,General Fund,2nd Place & Van Gordon,LUMIN8 TRANSPORTATION TECHNOLOGIES LLC
Public Works,Contractor services,01/14/2021,4633.07,General Fund,Colfax & Simms,LUMIN8 TRANSPORTATION TECHNOLOGIES LLC
Public Works,Contractor services,01/14/2021,1470.00,General Fund,26th Ave & Kipling Street,LUMIN8 TRANSPORTATION TECHNOLOGIES LLC
Public Works,Contractor services,01/14/2021,4045.50,General Fund,Replace damaged end anchorage,IDEAL FENCING CORP
Public Works,Contractor services,01/14/2021,1150.00,General Fund,traffic control,IDEAL FENCING CORP
Public Works,Dues and memberships,01/14/2021,28360.00,Stormwater Enterprise Fund,2021 BCWA COST SHARE,BEAR CREEK WATERSHED ASSOC
Public Works,Electricity,01/14/2021,2866.61,General Fund,2020 electricity,XCEL ENERGY
Public Works,Other Charges-Sidewalks,01/14/2021,36815.00,Grants Fund (Oper & Capital),Closing Cost @ 10350 W 13th Pl,First American Title Ins EFT
Public Works,Other profess & tech services,01/14/2021,137.47,Water Enterprise Fund,2020 December Services,"UMB BANK, N.A."
Public Works,Other profess & tech services,01/14/2021,1122.67,Sewer Enterprise Fund,2020 December Services,"UMB BANK, N.A."
Public Works,Other profess & tech services,01/14/2021,1031.02,Stormwater Enterprise Fund,2020 December Services,"UMB BANK, N.A."
Public Works,Other profess & tech services,01/14/2021,104.64,Water Enterprise Fund,2020 November Services,"UMB BANK, N.A."
Public Works,Other profess & tech services,01/14/2021,854.52,Sewer Enterprise Fund,2020 November Services,"UMB BANK, N.A."
Public Works,Other profess & tech services,01/14/2021,784.77,Stormwater Enterprise Fund,2020 November Services,"UMB BANK, N.A."
Public Works,"Printing, copying & binding",01/14/2021,120.75,Water Enterprise Fund,Monthly Billing/Printing,OUTPUT SERVICES INC
Public Works,"Printing, copying & binding",01/14/2021,986.13,Sewer Enterprise Fund,Monthly Billing/Printing,OUTPUT SERVICES INC
Public Works,"Printing, copying & binding",01/14/2021,905.62,Stormwater Enterprise Fund,Monthly Billing/Printing,OUTPUT SERVICES INC
Public Works,"Printing, copying & binding",01/14/2021,1430.00,Stormwater Enterprise Fund,Monthly Billing/Printing,OUTPUT SERVICES INC
Public Works,"Printing, copying & binding",01/14/2021,235.98,Water Enterprise Fund,Monthly Billing/Printing,OUTPUT SERVICES INC
Public Works,"Printing, copying & binding",01/14/2021,142.22,Water Enterprise Fund,Monthly Billing/Printing,OUTPUT SERVICES INC
Public Works,"Printing, copying & binding",01/14/2021,1066.72,Stormwater Enterprise Fund,Monthly Billing/Printing,OUTPUT SERVICES INC
Public Works,"Printing, copying & binding",01/14/2021,1161.54,Sewer Enterprise Fund,Monthly Billing/Printing,OUTPUT SERVICES INC
Public Works,"Printing, copying & binding",01/14/2021,558.00,Sewer Enterprise Fund,Monthly Billing/Printing,OUTPUT SERVICES INC
City Attorney,Employee Benefits,01/15/2021,10161.39,General Fund,General Fund,Employee Benefits
City Attorney,Salaries and Wages,01/15/2021,30626.76,General Fund,General Fund,Salaries and Wages
City Clerk,Employee Benefits,01/15/2021,7541.73,General Fund,General Fund,Employee Benefits
City Clerk,Salaries and Wages,01/15/2021,22584.68,General Fund,General Fund,Salaries and Wages
City Manager,Employee Benefits,01/15/2021,3868.53,Economic Development Fund,Economic Development Fund,Employee Benefits
City Manager,Employee Benefits,01/15/2021,16193.09,General Fund,General Fund,Employee Benefits
City Manager,Postage & delivery,01/15/2021,13682.87,General Fund,LAL Postage January 2021,US POSTMASTER
City Manager,Salaries and Wages,01/15/2021,13440.40,Economic Development Fund,Economic Development Fund,Salaries and Wages
City Manager,Salaries and Wages,01/15/2021,42292.60,General Fund,General Fund,Salaries and Wages
Community Resources,Employee Benefits,01/15/2021,16434.99,"Heritage, Culture & Arts Fund","Heritage, Culture & Arts Fund",Employee Benefits
Community Resources,Employee Benefits,01/15/2021,17032.42,Grants Fund (Oper & Capital),Grants Fund (Oper & Capital),Employee Benefits
Community Resources,Employee Benefits,01/15/2021,21927.65,Golf Course Enterprise Fund,Golf Course Enterprise Fund,Employee Benefits
Community Resources,Employee Benefits,01/15/2021,119579.37,General Fund,General Fund,Employee Benefits
Community Resources,Employee Benefits,01/15/2021,25751.26,Open Space Fund,Open Space Fund,Employee Benefits
Community Resources,Salaries and Wages,01/15/2021,67523.91,Golf Course Enterprise Fund,Golf Course Enterprise Fund,Salaries and Wages
Community Resources,Salaries and Wages,01/15/2021,62862.35,Open Space Fund,Open Space Fund,Salaries and Wages
Community Resources,Salaries and Wages,01/15/2021,42585.77,"Heritage, Culture & Arts Fund","Heritage, Culture & Arts Fund",Salaries and Wages
Community Resources,Salaries and Wages,01/15/2021,36531.30,Grants Fund (Oper & Capital),Grants Fund (Oper & Capital),Salaries and Wages
Community Resources,Salaries and Wages,01/15/2021,301717.60,General Fund,General Fund,Salaries and Wages
Finance,Employee Benefits,01/15/2021,26940.42,General Fund,General Fund,Employee Benefits
Finance,Employee Benefits,01/15/2021,89.68,Grants Fund (Oper & Capital),Grants Fund (Oper & Capital),Employee Benefits
Finance,Office supplies,01/15/2021,146.03,General Fund,MM Deposit Slip Chg,First Bank EFT - Dep Slip Chg
Finance,Salaries and Wages,01/15/2021,76206.85,General Fund,General Fund,Salaries and Wages
Finance,Salaries and Wages,01/15/2021,6184.88,Grants Fund (Oper & Capital),Grants Fund (Oper & Capital),Salaries and Wages
Human Resources,Employee Benefits,01/15/2021,10085.92,General Fund,General Fund,Employee Benefits
Human Resources,Salaries and Wages,01/15/2021,30594.17,General Fund,General Fund,Salaries and Wages
Information Technology,Employee Benefits,01/15/2021,41928.50,General Fund,General Fund,Employee Benefits
Information Technology,Salaries and Wages,01/15/2021,117230.32,General Fund,General Fund,Salaries and Wages
Lkwd Reinvestment Authority,Employee Benefits,01/15/2021,442.94,Lakewood Reinvestment Auth CIF,Lakewood Reinvestment Auth CIF,Employee Benefits
Lkwd Reinvestment Authority,Salaries and Wages,01/15/2021,1674.19,Lakewood Reinvestment Auth CIF,Lakewood Reinvestment Auth CIF,Salaries and Wages
Mayor and City Council,Employee Benefits,01/15/2021,6406.33,General Fund,General Fund,Employee Benefits
Mayor and City Council,Salaries and Wages,01/15/2021,7437.12,General Fund,General Fund,Salaries and Wages
Municipal Court,Employee Benefits,01/15/2021,38205.69,General Fund,General Fund,Employee Benefits
Municipal Court,Salaries and Wages,01/15/2021,103373.70,General Fund,General Fund,Salaries and Wages
Non-Departmental,Employee Benefits,01/15/2021,9610.00,General Fund,General Fund,Employee Benefits
Non-Departmental,Employee Benefits,01/15/2021,9207.45,General Fund,General Fund,Employee Benefits
Non-Departmental,Salaries and Wages,01/15/2021,85187.94,General Fund,General Fund,Salaries and Wages
Planning,Employee Benefits,01/15/2021,1713.97,Grants Fund (Oper & Capital),Grants Fund (Oper & Capital),Employee Benefits
Planning,Employee Benefits,01/15/2021,21874.84,General Fund,General Fund,Employee Benefits
Planning,Other profess & tech services,01/15/2021,24568.80,Grants Fund (Oper & Capital),Jefferson County,JEFFERSON COUNTY HOUSING AUTHORITY
Planning,Other profess & tech services,01/15/2021,12713.00,Grants Fund (Oper & Capital),CDBG - CV Emergency Grant,METRO WEST HOUSING SOLUTIONS
Planning,Other profess & tech services,01/15/2021,1450.00,Grants Fund (Oper & Capital),COVID CDBG 0061 M Lamoureaux,CO WEEKLY LLC
Planning,Other profess & tech services,01/15/2021,1450.00,Grants Fund (Oper & Capital),COVID CDBG 0062 B Gallegos,CO WEEKLY LLC
Planning,Other profess & tech services,01/15/2021,280.00,Grants Fund (Oper & Capital),COVID CDBG 0065 S Armijo,CO WEEKLY LLC
Planning,Salaries and Wages,01/15/2021,3584.80,Grants Fund (Oper & Capital),Grants Fund (Oper & Capital),Salaries and Wages
Planning,Salaries and Wages,01/15/2021,62002.12,General Fund,General Fund,Salaries and Wages
Police,Employee Benefits,01/15/2021,1500.20,Grants Fund (Oper & Capital),Grants Fund (Oper & Capital),Employee Benefits
Police,Employee Benefits,01/15/2021,462207.91,General Fund,General Fund,Employee Benefits
Police,Office supplies,01/15/2021,1020.92,Grants Fund (Oper & Capital),2020 HIDTA Reimb Supplies,JEFFERSON COUNTY SHERIFF'S DEPARTMENT
Police,Operating supplies,01/15/2021,4787.50,Grants Fund (Oper & Capital),2020 HIDTA Reimb -Contracts,JEFFERSON COUNTY SHERIFF'S DEPARTMENT
Police,Operating supplies,01/15/2021,753.48,Grants Fund (Oper & Capital),2020 HIDTA Reimb-Investigative,JEFFERSON COUNTY SHERIFF'S DEPARTMENT
Police,Operating supplies,01/15/2021,16968.00,Grants Fund (Oper & Capital),2020 HIDTA Reimb -PE/PT/PS,JEFFERSON COUNTY SHERIFF'S DEPARTMENT
Police,Other profess & tech services,01/15/2021,2535.60,Grants Fund (Oper & Capital),2020 HIDTA OT Reimb 4th Qtr,CITY OF GOLDEN
Police,Other profess & tech services,01/15/2021,2774.16,Grants Fund (Oper & Capital),2020 HIDTA OT Reimb 4th Qtr,CITY OF WHEAT RIDGE
Police,Other profess & tech services,01/15/2021,6456.75,Grants Fund (Oper & Capital),2020 HIDTA OT Reimb 4th Qtr,JEFFERSON COUNTY SHERIFF'S DEPARTMENT
Police,Salaries and Wages,01/15/2021,1294362.69,General Fund,General Fund,Salaries and Wages
Police,Salaries and Wages,01/15/2021,11409.81,Grants Fund (Oper & Capital),Grants Fund (Oper & Capital),Salaries and Wages
Public Works,Consulting Costs-Sidewalks,01/15/2021,157.98,Grants Fund (Oper & Capital),1st Ave. Sidewalk,PINYON ENVIRONMENTAL
Public Works,Consulting Costs-Streets/Roadw,01/15/2021,179.12,Grants Fund (Oper & Capital),Kipling/US 285 Hampden Median,PINYON ENVIRONMENTAL
Public Works,Employee Benefits,01/15/2021,7093.43,Sewer Enterprise Fund,Sewer Enterprise Fund,Employee Benefits
Public Works,Employee Benefits,01/15/2021,14198.41,Stormwater Enterprise Fund,Stormwater Enterprise Fund,Employee Benefits
Public Works,Employee Benefits,01/15/2021,1525.95,Water Enterprise Fund,Water Enterprise Fund,Employee Benefits
Public Works,Employee Benefits,01/15/2021,1448.83,Grants Fund (Oper & Capital),Grants Fund (Oper & Capital),Employee Benefits
Public Works,Employee Benefits,01/15/2021,15119.43,Capital Improvement Fund,Capital Improvement Fund,Employee Benefits
Public Works,Employee Benefits,01/15/2021,84771.26,General Fund,General Fund,Employee Benefits
Public Works,Salaries and Wages,01/15/2021,15618.29,Sewer Enterprise Fund,Sewer Enterprise Fund,Salaries and Wages
Public Works,Salaries and Wages,01/15/2021,41523.17,Stormwater Enterprise Fund,Stormwater Enterprise Fund,Salaries and Wages
Public Works,Salaries and Wages,01/15/2021,3973.64,Water Enterprise Fund,Water Enterprise Fund,Salaries and Wages
Public Works,Salaries and Wages,01/15/2021,4384.36,Grants Fund (Oper & Capital),Grants Fund (Oper & Capital),Salaries and Wages
Public Works,Salaries and Wages,01/15/2021,40135.26,Capital Improvement Fund,Capital Improvement Fund,Salaries and Wages
Public Works,Salaries and Wages,01/15/2021,228136.19,General Fund,General Fund,Salaries and Wages
Police,Travel - other,01/18/2021,206.85,General Fund,2020-Dallas Travel,"FEIK, BRYAN D"
Police,Travel - other,01/18/2021,120.00,General Fund,2020-Dallas Travel,"HOLLOWAY, JONATHAN C"
City Attorney,Legal - outside,01/19/2021,4025.82,General Fund,Mediation 20CV20355,JOSEPH P MCMAHON JR LLC
City Attorney,Legal - outside,01/19/2021,450.00,General Fund,Mediation 20CV20355,JOSEPH P MCMAHON JR LLC
Community Resources,Rental of equipment & vehicles,01/19/2021,9180.15,Golf Course Enterprise Fund,1/15-2/14 Golf Cart Lease,PNC Equip Finance EFT
Community Resources,Rental of equipment & vehicles,01/19/2021,5899.67,Golf Course Enterprise Fund,1/15-2/14 Golf Cart Lease,PNC Equip Finance EFT
Community Resources,Rental of equipment & vehicles,01/19/2021,1302.94,Golf Course Enterprise Fund,1/15-2/14 Golf Haulers Lease,PNC Equip Finance EFT
Community Resources,Rental of equipment & vehicles,01/19/2021,868.63,Golf Course Enterprise Fund,1/15-2/14 Golf Haulers Lease,PNC Equip Finance EFT
Mayor and City Council,Other profess & tech services,01/19/2021,18837.50,General Fund,2020 Professional Services,IDLEWILD LEGAL SOLUTIONS LLC
Planning,Other profess & tech services,01/19/2021,390.00,Grants Fund (Oper & Capital),CDBG 0067 W Lee (Non-COVID),MESA MOTOR INN
Planning,Other profess & tech services,01/19/2021,1000.00,Grants Fund (Oper & Capital),COVID CDBG 0066 B Whichard,DENVER WEST INN
Public Works,Misc expenses,01/19/2021,250.00,General Fund,Owan CDL Test,JEFFCO TRAINING DEPARTMENT
City Manager,Other profess & tech services,01/20/2021,4400.00,General Fund,2021 CCUA Membership Dues,COLO. COMMUNICATIONS & UTILITY ALLIANCE
Community Resources,Rent - land & buildings,01/20/2021,600.00,Grants Fund (Oper & Capital),UCC January 2021 Rent,LAKEWOOD UNITED CHURCH OF CHRIST
Community Resources,Sanitation,01/20/2021,100.00,General Fund,2345 ROUTT ST,NORTHWEST LAKEWOOD SANITATION DISTRICT
Community Resources,Water,01/20/2021,131.90,Open Space Fund,14800 W ALAMEDA PKWY,CONSOLIDATED MUTUAL WATER
Community Resources,Water,01/20/2021,29.30,Open Space Fund,1701 GLEN BAR DR,CONSOLIDATED MUTUAL WATER
Community Resources,Water,01/20/2021,17.90,Open Space Fund,1835 GLEN AYR DR,CONSOLIDATED MUTUAL WATER
Community Resources,Water,01/20/2021,29.30,Open Space Fund,8611 W COLFAX AVE,CONSOLIDATED MUTUAL WATER
Community Resources,Water,01/20/2021,71.10,Open Space Fund,1555 DOVER ST,CONSOLIDATED MUTUAL WATER
Community Resources,Water,01/20/2021,21.70,Open Space Fund,8815 W COLFAX AVE,CONSOLIDATED MUTUAL WATER
Community Resources,Water,01/20/2021,48.30,Open Space Fund,9766 W 22ND PL,CONSOLIDATED MUTUAL WATER
Community Resources,Water,01/20/2021,21.70,Open Space Fund,9801 W COLFAX AVE,CONSOLIDATED MUTUAL WATER
Community Resources,Water,01/20/2021,71.10,Open Space Fund,8715 W 16TH AVE,CONSOLIDATED MUTUAL WATER
Community Resources,Water,01/20/2021,17.90,General Fund,8765 W COLFAX AVE,CONSOLIDATED MUTUAL WATER
Community Resources,Water,01/20/2021,116.50,General Fund,1555 DOVER ST,CONSOLIDATED MUTUAL WATER
Community Resources,Water,01/20/2021,49.10,General Fund,1520 DUDLEY ST,CONSOLIDATED MUTUAL WATER
Community Resources,Water,01/20/2021,43.98,Open Space Fund,4751 S KIPLING PKWY,DENVER WATER DEPARTMENT
Community Resources,Water,01/20/2021,67.98,Open Space Fund,3250 S CARR ST,DENVER WATER DEPARTMENT
Community Resources,Water,01/20/2021,120.85,Open Space Fund,9600 W DARTMOUTH PL,DENVER WATER DEPARTMENT
Community Resources,Water,01/20/2021,16.46,Open Space Fund,7001 W STANFORD AVE,DENVER WATER DEPARTMENT
Community Resources,Water,01/20/2021,67.98,Open Space Fund,3350 S KIPLING ST,DENVER WATER DEPARTMENT
Community Resources,Water,01/20/2021,67.98,Open Space Fund,3333 S FIELD ST,DENVER WATER DEPARTMENT
Community Resources,Water,01/20/2021,35.17,Open Space Fund,9150 W CORNELL PL,DENVER WATER DEPARTMENT
Community Resources,Water,01/20/2021,25.69,General Fund,11498 W HAMPDEN AVE,DENVER WATER DEPARTMENT
Community Resources,Water,01/20/2021,110.18,General Fund,11500 W HAMPDEN AVE,DENVER WATER DEPARTMENT
Community Resources,Water,01/20/2021,21.70,Open Space Fund,11150 W COLFAX AVE,CONSOLIDATED MUTUAL WATER
Community Resources,Water,01/20/2021,17.90,Open Space Fund,1435 SIMMS ST,CONSOLIDATED MUTUAL WATER
Community Resources,Water,01/20/2021,21.70,Open Space Fund,11203 COLLINS AVE,CONSOLIDATED MUTUAL WATER
Community Resources,Water,01/20/2021,17.90,Open Space Fund,1355 SIMMS ST,CONSOLIDATED MUTUAL WATER
